﻿Organisation Name,Organisation Code,Effective Date,Directorate,Service Category,Service Category URI,Supplier Name,Payment Date,Transaction Number,Net Amount,Irrecoverable VAT,Purpose_of_the_expenditure,Merchant Category
Wyre Council,http://opendatacommunities.org/doc/district-council/wyre,30/05/2022,People and Places,Planning and Development Servs,132C,Duxburys Commercial,05/05/2022,PE141224,1250.00,0.00,Letting of 10 Victoria Square,Advertising - General
Wyre Council,http://opendatacommunities.org/doc/district-council/wyre,30/05/2022,People and Places,Cultural and Related Services,132A,BEECHMAN AND CO,31/05/2022,PE141770,1675.00,0.00,100k Wyre Theatres Tickets,Advertising - General
Wyre Council,http://opendatacommunities.org/doc/district-council/wyre,30/05/2022,People and Places,Planning and Development Servs,132C,JPI Media Publishig LTD,10/05/2022,PE141404,1080.00,0.00,Press notice for Garstang Courier and Blackpool Gazette on Wednesday 28th April 2022,Advertising - Statutory Notices
Wyre Council,http://opendatacommunities.org/doc/district-council/wyre,30/05/2022,People and Places,Planning and Development Servs,132C,National World Publishing Ltd,18/05/2022,PE141656,734.40,0.00,Press notice for Garstang Courier and Blackpool Gazette on Wednesday 11th May 2022,Advertising - Statutory Notices
Wyre Council,http://opendatacommunities.org/doc/district-council/wyre,30/05/2022,People and Places,Planning and Development Servs,132C,National World Publishing Ltd,18/05/2022,PE141655,155.40,0.00,Press notice for Fleetwood Weekly News Wednesday 11th May 2022,Advertising - Statutory Notices
Wyre Council,http://opendatacommunities.org/doc/district-council/wyre,30/05/2022,People and Places,Cultural and Related Services,132A,Catering Elite Ltd,05/05/2022,PE141222,557.46,0.00,Agenct staff 29/3/22,Agency Staff
Wyre Council,http://opendatacommunities.org/doc/district-council/wyre,30/05/2022,People and Places,Cultural and Related Services,132A,Catering Elite Ltd,05/05/2022,PE141221,687.66,0.00,Agency staff 22/3/22,Agency Staff
Wyre Council,http://opendatacommunities.org/doc/district-council/wyre,30/05/2022,People and Places,Cultural and Related Services,132A,Catering Elite Ltd,05/05/2022,PE141220,720.20,0.00,Agency staff 15/3/22,Agency Staff
Wyre Council,http://opendatacommunities.org/doc/district-council/wyre,30/05/2022,People and Places,Cultural and Related Services,132A,Catering Elite Ltd,05/05/2022,PE141219,637.10,0.00,Agency staff 8/3/22,Agency Staff
Wyre Council,http://opendatacommunities.org/doc/district-council/wyre,30/05/2022,People and Places,Cultural and Related Services,132A,Catering Elite Ltd,05/05/2022,PE141218,557.48,0.00,Agency staff,Agency Staff
Wyre Council,http://opendatacommunities.org/doc/district-council/wyre,30/05/2022,People and Places,Cultural and Related Services,132A,Catering Elite Ltd,05/05/2022,PE141217,727.13,0.00,Agency staff - Marine Hall 22/2/22,Agency Staff
Wyre Council,http://opendatacommunities.org/doc/district-council/wyre,30/05/2022,Resources,Support Services,135B,BUTLER ROSE,18/05/2022,RS141591,1909.05,0.00,Interim Accountant Support,Agency Staff
Wyre Council,http://opendatacommunities.org/doc/district-council/wyre,30/05/2022,Resources,Support Services,135B,BUTLER ROSE,10/05/2022,RS141313,1909.05,0.00,Interim Accountant Support,Agency Staff
Wyre Council,http://opendatacommunities.org/doc/district-council/wyre,30/05/2022,Resources,Support Services,135B,BUTLER ROSE,10/05/2022,RS141312,1909.05,0.00,Interim Accountant Support,Agency Staff
Wyre Council,http://opendatacommunities.org/doc/district-council/wyre,30/05/2022,Resources,Support Services,135B,BUTLER ROSE,10/05/2022,RS141099,1909.05,0.00,Interim Accountant Support,Agency Staff
Wyre Council,http://opendatacommunities.org/doc/district-council/wyre,30/05/2022,Resources,Support Services,135B,BUTLER ROSE,10/05/2022,RS140770,1800.00,0.00,Timesheet January 2022 - March 2022,Agency Staff
Wyre Council,http://opendatacommunities.org/doc/district-council/wyre,30/05/2022,Resources,Support Services,135B,BUTLER ROSE,10/05/2022,RS141402,1800.00,0.00,Timesheet January 2022 - March 2022,Agency Staff
Wyre Council,http://opendatacommunities.org/doc/district-council/wyre,30/05/2022,People and Places,Cultural and Related Services,132A,LINK SECURITY SERVICES NW LTD,17/05/2022,PE141608,224.50,0.00,Door Supervisors Marine Hall,Agency Staff
Wyre Council,http://opendatacommunities.org/doc/district-council/wyre,30/05/2022,People and Places,Planning and Development Servs,132C,LINK SECURITY SERVICES NW LTD,17/05/2022,PE141608,1041.12,0.00,Security guards Fleetwood Market,Agency Staff
Wyre Council,http://opendatacommunities.org/doc/district-council/wyre,30/05/2022,Resources,Housing General Fund,134A,G2V Recruitment Group Ltd T/A G2 Recruitment Solu,11/05/2022,RS141447,2608.90,0.00,"Agency Staff: Period/End 01/05/2022 T/S A314112 Basic Rate 41.52 HOURS @ 35. 00/ HOUR 1,453.20 S Period/End 24/04/2022 T/S A312611 Basic Rate",Agency Staff
Wyre Council,http://opendatacommunities.org/doc/district-council/wyre,30/05/2022,Resources,Housing General Fund,134A,G2V Recruitment Group Ltd T/A G2 Recruitment Solu,17/05/2022,RS141541,1040.20,0.00,Period/End 08/05/2022 T/S A316638,Agency Staff
Wyre Council,http://opendatacommunities.org/doc/district-council/wyre,30/05/2022,Resources,Housing General Fund,134A,G2V Recruitment Group Ltd T/A G2 Recruitment Solu,24/05/2022,RS141684,1327.20,0.00,Agency wage period ending 10/04/22,Agency Staff
Wyre Council,http://opendatacommunities.org/doc/district-council/wyre,30/05/2022,Resources,Housing General Fund,134A,G2V Recruitment Group Ltd T/A G2 Recruitment Solu,24/05/2022,RS141696,1162.00,0.00,Agency wage for period ending 17/4/22,Agency Staff
Wyre Council,http://opendatacommunities.org/doc/district-council/wyre,30/05/2022,Resources,Housing General Fund,134A,Park Avenue Recruitment Ltd,30/05/2022,RS141692,1227.96,0.00,Park Ave Agency 15/05/22,Agency Staff
Wyre Council,http://opendatacommunities.org/doc/district-council/wyre,30/05/2022,Resources,Housing General Fund,134A,Park Avenue Recruitment Ltd,30/05/2022,RS141694,2113.56,0.00,24/4/22 - 1/5/22 Park Avenue Agency staff,Agency Staff
Wyre Council,http://opendatacommunities.org/doc/district-council/wyre,30/05/2022,Resources,Housing General Fund,134A,Park Avenue Recruitment Ltd,30/05/2022,RS141693,1333.08,0.00,Park Ave Agency 08/05/22,Agency Staff
Wyre Council,http://opendatacommunities.org/doc/district-council/wyre,30/05/2022,People and Places,Support Services,135B,M D Security,30/05/2022,PE141753,60.00,0.00,Emergency Light Test at Civic Centre,Alarm Systems and Security - Annual
Wyre Council,http://opendatacommunities.org/doc/district-council/wyre,30/05/2022,People and Places,Cultural and Related Services,132A,M D Security,30/05/2022,PE141734,481.50,0.00,Maintenance of alrm system at Marine Hall,Alarm Systems and Security - Annual
Wyre Council,http://opendatacommunities.org/doc/district-council/wyre,30/05/2022,People and Places,Cultural and Related Services,132A,M D Security,30/05/2022,PE141736,432.60,0.00,Maintenance of alrm system at Thornton Little Theatre,Alarm Systems and Security - Annual
Wyre Council,http://opendatacommunities.org/doc/district-council/wyre,30/05/2022,People and Places,Cultural and Related Services,132A,M D Security,30/05/2022,PE141737,419.76,0.00,Maintenance of alrm system at River Side Rangers Containers,Alarm Systems and Security - Annual
Wyre Council,http://opendatacommunities.org/doc/district-council/wyre,30/05/2022,People and Places,Cultural and Related Services,132A,M D Security,30/05/2022,PE141732,120.00,0.00,Maintenance of fire alarm at Rossall Point,Alarm Systems and Security - Annual
Wyre Council,http://opendatacommunities.org/doc/district-council/wyre,30/05/2022,People and Places,Cultural and Related Services,132A,M D Security,30/05/2022,PE141739,508.80,0.00,Maintenance of alrm system at Memorial Park,Alarm Systems and Security - Annual
Wyre Council,http://opendatacommunities.org/doc/district-council/wyre,30/05/2022,People and Places,Cultural and Related Services,132A,M D Security,30/05/2022,PE141746,190.00,0.00,Maintenance of fire alarm at Mount Pavilion,Alarm Systems and Security - Annual
Wyre Council,http://opendatacommunities.org/doc/district-council/wyre,30/05/2022,People and Places,Cultural and Related Services,132A,M D Security,30/05/2022,PE141748,240.00,0.00,Maintenance of security alarm at Mount Pavilion,Alarm Systems and Security - Annual
Wyre Council,http://opendatacommunities.org/doc/district-council/wyre,30/05/2022,People and Places,Cultural and Related Services,132A,M D Security,30/05/2022,PE141724,290.00,0.00,Monitoring of security alarm for Mount Pavilion,Alarm Systems and Security - Annual
Wyre Council,http://opendatacommunities.org/doc/district-council/wyre,30/05/2022,People and Places,Cultural and Related Services,132A,M D Security,30/05/2022,PE141743,268.36,0.00,Maintenance of alrm system at New Wave Beah Patrol,Alarm Systems and Security - Annual
Wyre Council,http://opendatacommunities.org/doc/district-council/wyre,30/05/2022,People and Places,Cultural and Related Services,132A,M D Security,30/05/2022,PE141742,120.00,0.00,maintenance of fire alrm system at New Wave Cafe,Alarm Systems and Security - Annual
Wyre Council,http://opendatacommunities.org/doc/district-council/wyre,30/05/2022,People and Places,Cultural and Related Services,132A,M D Security,30/05/2022,PE141741,268.36,0.00,Maintenance of alrm at New Wave Cafe,Alarm Systems and Security - Annual
Wyre Council,http://opendatacommunities.org/doc/district-council/wyre,30/05/2022,People and Places,Cultural and Related Services,132A,M D Security,30/05/2022,PE141744,120.00,0.00,Maintenance of fire alarm at New Beach Patrol,Alarm Systems and Security - Annual
Wyre Council,http://opendatacommunities.org/doc/district-council/wyre,30/05/2022,People and Places,Cultural and Related Services,132A,M D Security,30/05/2022,PE141735,268.80,0.00,Maintenance of alrm system at Garstang TIC,Alarm Systems and Security - Annual
Wyre Council,http://opendatacommunities.org/doc/district-council/wyre,30/05/2022,People and Places,Environmental Services,132B,M D Security,30/05/2022,PE141738,432.60,0.00,Maintenance of alarm system at Chatswoth Depot,Alarm Systems and Security - Annual
Wyre Council,http://opendatacommunities.org/doc/district-council/wyre,30/05/2022,People and Places,Planning and Development Servs,132C,M D Security,30/05/2022,PE141751,190.00,0.00,Maintenance of security alarm at Copse Road Depot,Alarm Systems and Security - Annual
Wyre Council,http://opendatacommunities.org/doc/district-council/wyre,30/05/2022,People and Places,Planning and Development Servs,132C,M D Security,30/05/2022,PE141740,280.00,0.00,Maintenance of alrm at Fleetwood Market Studios,Alarm Systems and Security - Annual
Wyre Council,http://opendatacommunities.org/doc/district-council/wyre,30/05/2022,People and Places,Cultural and Related Services,132A,M D Security,19/05/2022,PE141604,86.00,0.00,Call out to false alarms at Stanah,Alarm Systems and Security - Responsive
Wyre Council,http://opendatacommunities.org/doc/district-council/wyre,30/05/2022,People and Places,Support Services,135B,M D Security,30/05/2022,PE141729,48.00,0.00,Repair to Call Point at Civic Centre,Alarm Systems and Security - Responsive
Wyre Council,http://opendatacommunities.org/doc/district-council/wyre,30/05/2022,People and Places,Support Services,135B,M D Security,30/05/2022,PE141731,464.40,0.00,Maintenance and monitoring of alrm system at Fleetwood Market,Alarm Systems and Security - Responsive
Wyre Council,http://opendatacommunities.org/doc/district-council/wyre,30/05/2022,Resources,Cultural and Related Services,132A,Visual Print and Design Ltd,06/05/2022,RS141355,347.50,0.00,"40 x beach safety banners (2 kinds, 20 of each kind)Mesh, 2m x 0.8m, Eyelets all around",Amenity and Information Signs
Wyre Council,http://opendatacommunities.org/doc/district-council/wyre,30/05/2022,Resources,Cultural and Related Services,132A,Visual Print and Design Ltd,06/05/2022,RS141355,347.50,0.00,"40 x beach safety banners (2 kinds, 20 of each kind)Mesh, 2m x 0.8m, Eyelets all around",Amenity and Information Signs
Wyre Council,http://opendatacommunities.org/doc/district-council/wyre,30/05/2022,Resources,Corporate and Democratic Core,131A,The New Penny Grill,11/05/2022,RS141438,396.00,0.00,Annual Meeting of the Council  Thursday 12 May 2022Supply of 80 servings of buffet Menu 1 at £4.95 each.,Annual Meeting
Wyre Council,http://opendatacommunities.org/doc/district-council/wyre,30/05/2022,Finance,Support Services,135B,,23/05/2022,WPST00054633,2856.00,0.00,,Apprenticeship Levy
Wyre Council,http://opendatacommunities.org/doc/district-council/wyre,30/05/2022,Resources,Corporate and Democratic Core,131A,PR Chauffeuring Services,17/05/2022,RS141551,1254.00,0.00,April Invoice for Mayoral journeys.,Attendant Chauffeur Service
Wyre Council,http://opendatacommunities.org/doc/district-council/wyre,30/05/2022,People and Places,Environmental Services,132B,Death To Pest,11/05/2022,PE141443,920.00,0.00,RE:To release as many birds as possible from inside.  Board up from the inside the holes and plug up any smaller holes with fixing foam.To clean the downstairs floors and walls. To treat all the property with anti,Boarding Up Premises/House Clearance
Wyre Council,http://opendatacommunities.org/doc/district-council/wyre,30/05/2022,People and Places,Cultural and Related Services,132A,NSL Services Group,03/05/2022,PE141145,74.33,0.00,Variable Fee - Car Park Enforcement by NSL March 2022,Cash Collection Security Service
Wyre Council,http://opendatacommunities.org/doc/district-council/wyre,30/05/2022,People and Places,Planning and Development Servs,132C,NSL Services Group,03/05/2022,PE141145,148.65,0.00,Variable Fee - Car Park Enforcement by NSL March 2022,Cash Collection Security Service
Wyre Council,http://opendatacommunities.org/doc/district-council/wyre,30/05/2022,People and Places,Parking Services,133F,NSL Services Group,03/05/2022,PE141145,1802.39,0.00,Variable Fee - Car Park Enforcement by NSL March 2022,Cash Collection Security Service
Wyre Council,http://opendatacommunities.org/doc/district-council/wyre,30/05/2022,People and Places,Support Services,135B,NSL Services Group,03/05/2022,PE141145,148.65,0.00,Variable Fee - Car Park Enforcement by NSL March 2022,Cash Collection Security Service
Wyre Council,http://opendatacommunities.org/doc/district-council/wyre,30/05/2022,People and Places,Environmental Services,132B,M D Security,03/05/2022,PE141169,1969.00,0.00,REF: CHATSWORTH DEPOTMONITORING OF CCTV SYSTEM FOR 1 YEARFROM 1/04/22 TO 31/04/23,CCTV Running Costs
Wyre Council,http://opendatacommunities.org/doc/district-council/wyre,30/05/2022,Resources,Support Services,135B,Konica Minolta Business Solutions UK LTD,16/05/2022,RS140409,54.24,0.00,Copy and Print 26/12/21-25/03/22,Central Printer/Copier Expenses
Wyre Council,http://opendatacommunities.org/doc/district-council/wyre,30/05/2022,People and Places,Cultural and Related Services,132A,Key Engineering & Hygiene Supplies LTD,11/05/2022,PE141446,12.90,0.00,Order code A 004A Evans Cyclone Spray with Bleach 750ml,Cleaning Materials
Wyre Council,http://opendatacommunities.org/doc/district-council/wyre,30/05/2022,People and Places,Cultural and Related Services,132A,Key Engineering & Hygiene Supplies LTD,11/05/2022,PE141446,18.84,0.00,EAUFRESH NON ACIDIC POT POURRI TOILET CLEANER 1 LTR,Cleaning Materials
Wyre Council,http://opendatacommunities.org/doc/district-council/wyre,30/05/2022,People and Places,Cultural and Related Services,132A,Key Engineering & Hygiene Supplies LTD,11/05/2022,PE141446,19.82,0.00,2PLY WHITE TOILET ROLLS 320SHEETS 36PER CASE,Cleaning Materials
Wyre Council,http://opendatacommunities.org/doc/district-council/wyre,30/05/2022,People and Places,Planning and Development Servs,132C,Key Engineering & Hygiene Supplies LTD,06/05/2022,PE141350,32.68,0.00,LATEX POWDER FREE GLOVES LARGE,Cleaning Materials
Wyre Council,http://opendatacommunities.org/doc/district-council/wyre,30/05/2022,People and Places,Planning and Development Servs,132C,Key Engineering & Hygiene Supplies LTD,06/05/2022,PE141350,370.80,0.00,2PLY WHITE JUMBO TOILET ROLL,Cleaning Materials
Wyre Council,http://opendatacommunities.org/doc/district-council/wyre,30/05/2022,People and Places,Planning and Development Servs,132C,Key Engineering & Hygiene Supplies LTD,06/05/2022,PE141350,28.20,0.00,FRESH AIR + FABRIC AEROSOL 400ML,Cleaning Materials
Wyre Council,http://opendatacommunities.org/doc/district-council/wyre,30/05/2022,Resources,Support Services,135B,Key Engineering & Hygiene Supplies LTD,03/05/2022,RS139819,29.61,0.00,MEDIUM BLACK REFUSE SACK 18X29X34 100G,Cleaning Materials
Wyre Council,http://opendatacommunities.org/doc/district-council/wyre,30/05/2022,People and Places,Planning and Development Servs,132C,Key Engineering & Hygiene Supplies LTD,03/05/2022,PE139818,18.84,0.00,EAUFRESH NON ACIDIC APPLE TOILET CLEANER 1 LTR,Cleaning Materials
Wyre Council,http://opendatacommunities.org/doc/district-council/wyre,30/05/2022,People and Places,Planning and Development Servs,132C,Key Engineering & Hygiene Supplies LTD,03/05/2022,PE139347,35.34,0.00,Versatile floor Cleaner 5 Litre,Cleaning Materials
Wyre Council,http://opendatacommunities.org/doc/district-council/wyre,30/05/2022,People and Places,Planning and Development Servs,132C,Key Engineering & Hygiene Supplies LTD,03/05/2022,PE139818,15.72,0.00,LAVATORY BRUSH WITH HOLDER,Cleaning Materials
Wyre Council,http://opendatacommunities.org/doc/district-council/wyre,30/05/2022,People and Places,Planning and Development Servs,132C,Key Engineering & Hygiene Supplies LTD,03/05/2022,PE139818,49.29,0.00,EXTRA STRONG BLACK REFUSE SACK 18X29X39 180G 90LTR (PER 200),Cleaning Materials
Wyre Council,http://opendatacommunities.org/doc/district-council/wyre,30/05/2022,People and Places,Planning and Development Servs,132C,Key Engineering & Hygiene Supplies LTD,03/05/2022,PE139818,53.50,0.00,2PLY WHITE JUMBO TOILET ROLL,Cleaning Materials
Wyre Council,http://opendatacommunities.org/doc/district-council/wyre,30/05/2022,People and Places,Planning and Development Servs,132C,Key Engineering & Hygiene Supplies LTD,03/05/2022,PE139818,9.60,0.00,ADJUST O SPRAY RED/WHITE SPRAY HEAD + BOTTLE,Cleaning Materials
Wyre Council,http://opendatacommunities.org/doc/district-council/wyre,30/05/2022,People and Places,Planning and Development Servs,132C,Key Engineering & Hygiene Supplies LTD,18/05/2022,PE140796,76.50,0.00,EXTRA STRONG BLACK REFUSE SACK 18X29X39 180G 90LTR (PER 200),Cleaning Materials
Wyre Council,http://opendatacommunities.org/doc/district-council/wyre,30/05/2022,People and Places,Planning and Development Servs,132C,Key Engineering & Hygiene Supplies LTD,18/05/2022,PE140796,48.12,0.00,LUX PEARL HAND/BODY SOAP 5 LTR,Cleaning Materials
Wyre Council,http://opendatacommunities.org/doc/district-council/wyre,30/05/2022,People and Places,Planning and Development Servs,132C,Key Engineering & Hygiene Supplies LTD,18/05/2022,PE140796,9.42,0.00,EAUFRESH NON ACIDIC APPLE TOILET CLEANER 1 LTR,Cleaning Materials
Wyre Council,http://opendatacommunities.org/doc/district-council/wyre,30/05/2022,People and Places,Planning and Development Servs,132C,Key Engineering & Hygiene Supplies LTD,18/05/2022,PE140796,8.16,0.00,Evans Cyclone Thickened Bleach 750 ml,Cleaning Materials
Wyre Council,http://opendatacommunities.org/doc/district-council/wyre,30/05/2022,People and Places,Planning and Development Servs,132C,Key Engineering & Hygiene Supplies LTD,18/05/2022,PE140796,35.34,0.00,Versatile floor Cleaner 5 Litre,Cleaning Materials
Wyre Council,http://opendatacommunities.org/doc/district-council/wyre,30/05/2022,People and Places,Planning and Development Servs,132C,Key Engineering & Hygiene Supplies LTD,18/05/2022,PE140796,160.50,0.00,2PLY WHITE JUMBO TOILET ROLL,Cleaning Materials
Wyre Council,http://opendatacommunities.org/doc/district-council/wyre,30/05/2022,People and Places,Planning and Development Servs,132C,Key Engineering & Hygiene Supplies LTD,18/05/2022,PE140796,21.18,0.00,KEYPINE GENERAL DISINFECTANT 5LTR,Cleaning Materials
Wyre Council,http://opendatacommunities.org/doc/district-council/wyre,30/05/2022,People and Places,Cultural and Related Services,132A,Key Engineering & Hygiene Supplies LTD,18/05/2022,PE140809,214.00,0.00,2PLY WHITE MINI JUMBO TOILET ROLLS 150M12 PER CASE,Cleaning Materials
Wyre Council,http://opendatacommunities.org/doc/district-council/wyre,30/05/2022,People and Places,Cultural and Related Services,132A,Key Engineering & Hygiene Supplies LTD,18/05/2022,PE140809,69.16,0.00,EXTRA STRONG BLACK REFUSE SACK 18X29X39 180G 90LTR (PER 200),Cleaning Materials
Wyre Council,http://opendatacommunities.org/doc/district-council/wyre,30/05/2022,Resources,Support Services,135B,AVC WISE LTD,03/05/2022,RS141170,562.62,0.00,Invoice Number: 102665,Commission Fees Etc.
Wyre Council,http://opendatacommunities.org/doc/district-council/wyre,30/05/2022,Resources,Support Services,135B,CCS MEDIA LTD,16/05/2022,RS141514,267.30,0.00,TAR300 Targus TAR300 notebook case 39.6,Comp Hardware Purchases
Wyre Council,http://opendatacommunities.org/doc/district-council/wyre,30/05/2022,Resources,Support Services,135B,CCS MEDIA LTD,16/05/2022,RS141511,18000.00,0.00,2X7U1EA#ABU - HP ProBook 450 G8 Notebook 39.6 cm (15.6``) Full HD 11th gen IntelCore i5 8 GB DDR4-SDRAM 256 GB SSD Wi-Fi 6 (802.11ax) Windows10 Pro Silver (United Kingdom),Comp Hardware Purchases
Wyre Council,http://opendatacommunities.org/doc/district-council/wyre,30/05/2022,Resources,Support Services,135B,CCS MEDIA LTD,30/05/2022,RS140889,1681.20,0.00,"WCH1CUK StarTech.com USB C Wall Charger - 60W PD 1m cable - Portable USB Type C Fast Charger - Universal Adapter Dell XPS, Lenovo X1 Carbon, HP Elitebook, Macbook Surface Pro 7 - USB IF/CE Certified",Comp Hardware Purchases
Wyre Council,http://opendatacommunities.org/doc/district-council/wyre,30/05/2022,Resources,Support Services,135B,Amazon Business,13/05/2022,RS141501,519.14,0.00,"2020 Apple Mac mini with Apple M1 Chip (8GB RAM, 256GB SSD)",Comp Hardware Purchases
Wyre Council,http://opendatacommunities.org/doc/district-council/wyre,30/05/2022,Resources,Support Services,135B,Amazon Business,13/05/2022,RS141481,102.45,0.00,"Amazon Basics Mini DisplayPort to HDMI Cable with Gold-plated connectors, supports seamless Digital audio and Full HD resolution - 1.83 m (6 Feet).",Comp Hardware Purchases
Wyre Council,http://opendatacommunities.org/doc/district-council/wyre,30/05/2022,Resources,Support Services,135B,THE NETWORKING PEOPLE (TNP) LTD,05/05/2022,RS141323,99.96,0.00,TNPSFP-GLC-LH-SM - 1G SFP LX,Computer Equipment Maintenance
Wyre Council,http://opendatacommunities.org/doc/district-council/wyre,30/05/2022,People and Places,Cultural and Related Services,132A,Lancashire & Westmorland Hedgelaying Association,18/05/2022,PE141654,619.00,0.00,"Provision of Prize Money, Cutting fees, Hedging Stakes, A Trainer and course fee for J Hickmott",Conservation
Wyre Council,http://opendatacommunities.org/doc/district-council/wyre,30/05/2022,Resources,Support Services,135B,Civica UK LTD,30/05/2022,RS141613,3088.00,0.00,Consultancy Days - 3 training days 2 business review days,Consultants Fees
Wyre Council,http://opendatacommunities.org/doc/district-council/wyre,30/05/2022,Resources,Corporate and Democratic Core,131A,Link Treasury Services LTD,17/05/2022,RS141539,4000.00,0.00,Treasury Management Contract from 01/10/21 - 31/03/22,Consultants Fees
Wyre Council,http://opendatacommunities.org/doc/district-council/wyre,30/05/2022,People and Places,Environmental Services,132B,Osborne Richardson,03/05/2022,PE141179,756.00,0.00,Contaminated land & Air Quality Consultancy  To replace PEO0022134 final invoice 21/3/22  to 27/3/22,Consultants Fees
Wyre Council,http://opendatacommunities.org/doc/district-council/wyre,30/05/2022,People and Places,Environmental Services,132B,Osborne Richardson,12/05/2022,PE141465,1159.20,0.00,To provide Contaminated land & Air Quality Consultancy April 2022-March 2023  (Annual purchase order to draw invoices from throughout the year),Consultants Fees
Wyre Council,http://opendatacommunities.org/doc/district-council/wyre,30/05/2022,Resources,Planning and Development Servs,132C,Richard Barber & CO,26/05/2022,RS141699,1690.00,0.00,Reference NLA544 21 Bourne Disposal of Land At Bourne Hill Thornton,Consultants Fees
Wyre Council,http://opendatacommunities.org/doc/district-council/wyre,30/05/2022,Resources,Support Services,135B,LG FUTURES LTD,18/05/2022,RS141627,2500.00,0.00,Collection Fund Support - CN,Consultants Fees
Wyre Council,http://opendatacommunities.org/doc/district-council/wyre,30/05/2022,People and Places,Planning and Development Servs,132C,Vivid Resourcing Ltd,18/05/2022,PE140924,1665.00,0.00,Additional costs for Andrew Cowley up to the 14th April 2022,Consultants Fees
Wyre Council,http://opendatacommunities.org/doc/district-council/wyre,30/05/2022,People and Places,Planning and Development Servs,132C,Vivid Resourcing Ltd,06/05/2022,PE140888,1665.00,0.00,Additional costs for Andrew Cowley up to the 14th April 2022,Consultants Fees
Wyre Council,http://opendatacommunities.org/doc/district-council/wyre,30/05/2022,People and Places,Planning and Development Servs,132C,Vivid Resourcing Ltd,06/05/2022,PE141375,1665.00,0.00,Additional Costs for Andrew Cowley - enforcement cover,Consultants Fees
Wyre Council,http://opendatacommunities.org/doc/district-council/wyre,30/05/2022,People and Places,Environmental Services,132B,MARLAN MARITIME TECHNOLOGIES LTD,03/05/2022,PE141178,60200.00,0.00,"Synoptic monitoring at Cleveleys & Rossall: 5-year serviceRef.: QRN-10096 - DN409872Installation full-rate £11,000 1 site-yearSynoptic package",Consultants Fees
Wyre Council,http://opendatacommunities.org/doc/district-council/wyre,30/05/2022,People and Places,Planning and Development Servs,132C,THIS GREAT ADVENTURE LTD,12/05/2022,PE140321,7147.50,0.00,Project: Relating to The Supply of a Digital and Engagement Consultant To assist in the  Establishment of the Finding Fleetwood Heritage Trails,Consultants Fees
Wyre Council,http://opendatacommunities.org/doc/district-council/wyre,30/05/2022,People and Places,Planning and Development Servs,132C,THIS GREAT ADVENTURE LTD,12/05/2022,PE141467,9530.00,0.00,Project: Relating to The Supply of a Digital and Engagement Consultant To assist in the Establishment of the Finding Fleetwood Heritage Trails,Consultants Fees
Wyre Council,http://opendatacommunities.org/doc/district-council/wyre,30/05/2022,People and Places,"Cultural, Environ and Planning",137B,Halcrow Group LTD,11/05/2022,PE141431,3741.13,0.00,Additional works as authorised by Carl Green,Consultants Fees (New CCR)
Wyre Council,http://opendatacommunities.org/doc/district-council/wyre,30/05/2022,Resources,"Cultural, Environ and Planning",137B,Lancashire County Council,17/05/2022,RS141615,700.00,0.00,File Ref LSG4 NH3 894 14369Completion StatementSection 278 AgreementSite Situate At land at Cleveleys Promenade Thornton Cleveleys in the County of LancashireContribution to Legal Fees £350.00Contribution to Highways Administration Fees £350.00,Consultants Fees (New CCR)
Wyre Council,http://opendatacommunities.org/doc/district-council/wyre,30/05/2022,People and Places,"Cultural, Environ and Planning",137B,Marine Management Organisation,06/05/2022,PE141371,1067.50,0.00,"MMO Licence application fee, case reference Wyre Beach Management Scheme",Consultants Fees (New CCR)
Wyre Council,http://opendatacommunities.org/doc/district-council/wyre,30/05/2022,People and Places,"Cultural, Environ and Planning",137B,SL Metalworkers LTD,13/05/2022,PE141479,2400.00,0.00,Project at fleetwood market,Consultants Fees (New CCR)
Wyre Council,http://opendatacommunities.org/doc/district-council/wyre,30/05/2022,People and Places,"Cultural, Environ and Planning",137B,Wyre Rivers Trust,05/05/2022,PE141325,6500.00,0.00,Eco-COBS Armhill Site Project Management Services,Consultants Fees (New CCR)
Wyre Council,http://opendatacommunities.org/doc/district-council/wyre,30/05/2022,People and Places,"Cultural, Environ and Planning",137B,MARLAN MARITIME TECHNOLOGIES LTD,05/05/2022,PE141266,13500.00,0.00,Works to provide synoptic radar monitoring at sites across NW for Eco-CoBS project.Deployment at first site Fleetwood 16 Dec 2021.Contract until 31 March 2027.,Consultants Fees (New CCR)
Wyre Council,http://opendatacommunities.org/doc/district-council/wyre,30/05/2022,People and Places,"Cultural, Environ and Planning",137B,Susannah Bleakley Consulting,27/05/2022,PE141714,4412.60,0.00,ECO-CoBS Project,Consultants Fees (New CCR)
Wyre Council,http://opendatacommunities.org/doc/district-council/wyre,30/05/2022,People and Places,"Cultural, Environ and Planning",137B,Susannah Bleakley Consulting,05/05/2022,PE141273,6000.00,0.00,ECO-CoBS Project,Consultants Fees (New CCR)
Wyre Council,http://opendatacommunities.org/doc/district-council/wyre,30/05/2022,People and Places,"Cultural, Environ and Planning",137B,GARRY CARR BUILDING SERVICES LTD,12/05/2022,PE140776,358.00,0.00,Haz project works 21/03/2022,Consultants Fees (New CCR)
Wyre Council,http://opendatacommunities.org/doc/district-council/wyre,30/05/2022,People and Places,Central Services to the Public,131C,Smiths Equipment Hire,17/05/2022,PE139476,218.40,0.00,03/1/22 to 31/1/22 1 x Chemical toilet  03/1/22 to 31/1/22 1 x Chemical toilet  Invoice 12-1008285,Contain Outbreak Management Fund
Wyre Council,http://opendatacommunities.org/doc/district-council/wyre,30/05/2022,People and Places,Central Services to the Public,131C,Smiths Equipment Hire,24/05/2022,PE141051,40.80,0.00,Chemical toilets April 2022,Contain Outbreak Management Fund
Wyre Council,http://opendatacommunities.org/doc/district-council/wyre,30/05/2022,People and Places,Central Services to the Public,131C,Smiths Equipment Hire,24/05/2022,PE141052,35.00,0.00,Chemical toilet Extra service 25.3.22,Contain Outbreak Management Fund
Wyre Council,http://opendatacommunities.org/doc/district-council/wyre,30/05/2022,People and Places,"Cultural, Environ and Planning",137B,Landscape Engineering LTD,18/05/2022,PE141586,34835.48,0.00,"External works at Custom House Car Park, Fleetwood (Historic England Heritage Action Zone Project).",Contract (New CCR)
Wyre Council,http://opendatacommunities.org/doc/district-council/wyre,30/05/2022,People and Places,"Cultural, Environ and Planning",137B,RAPID RETAIL LTD,12/05/2022,PE140805,250.00,0.00,Rental of 2 x Mobile Merchandising Units April 22 to March 23,Contract (New CCR)
Wyre Council,http://opendatacommunities.org/doc/district-council/wyre,30/05/2022,People and Places,"Cultural, Environ and Planning",137B,RAPID RETAIL LTD,12/05/2022,PE141336,250.00,0.00,Rental of 2 x Mobile Merchandising Units April 22 to March 23,Contract (New CCR)
Wyre Council,http://opendatacommunities.org/doc/district-council/wyre,30/05/2022,People and Places,"Cultural, Environ and Planning",137B,Balfour Beatty Civil Engineering Ltd,12/05/2022,PE141466,7505.86,0.00,Wyre Beach Management Scheme Phase 1 - Preconstruction Works.FAO Chloe SumnerBalfour Beatty Civil Engineering LtdChaddock Lane WorsleyManchesterM28 1XY,Contract (New CCR)
Wyre Council,http://opendatacommunities.org/doc/district-council/wyre,30/05/2022,People and Places,Corporate and Democratic Core,131A,Apse,06/05/2022,PE141369,2312.00,0.00,APSE Membership Fee 2022/23,Corporate and Professional Subscriptions
Wyre Council,http://opendatacommunities.org/doc/district-council/wyre,30/05/2022,People and Places,Corporate and Democratic Core,131A,Apse,06/05/2022,PE141369,300.00,0.00,APSE Regional Subscription Fee Northern Region,Corporate and Professional Subscriptions
Wyre Council,http://opendatacommunities.org/doc/district-council/wyre,30/05/2022,Resources,Support Services,135B,CIPFA Business LTD,03/05/2022,RS141174,3860.00,0.00,CIPFA Publications – 2022/23 subscription,Corporate and Professional Subscriptions
Wyre Council,http://opendatacommunities.org/doc/district-council/wyre,30/05/2022,Resources,Support Services,135B,CIPFA Business LTD,03/05/2022,RS139861,1935.00,0.00,TISonline Select 12 – 2022/23 subscription,Corporate and Professional Subscriptions
Wyre Council,http://opendatacommunities.org/doc/district-council/wyre,30/05/2022,Resources,Environmental Services,132B,Tameside Metropolitan Borough Council,24/05/2022,RS140885,1600.00,0.00,Subscription to National Anti Fraud Network for the coming financial year 01/04/2022 - 31-03/2023,Corporate and Professional Subscriptions
Wyre Council,http://opendatacommunities.org/doc/district-council/wyre,30/05/2022,Resources,Support Services,135B,LAVAT CONSULTING LTD,05/05/2022,RS141189,2950.00,0.00,PSTAX Club Membership 2022/23,Corporate and Professional Subscriptions
Wyre Council,http://opendatacommunities.org/doc/district-council/wyre,30/05/2022,Resources,Support Services,135B,Bill Rogerson Safety Services LTD,17/05/2022,RS141567,700.00,0.00,"To deliver Manual Handling training 2 x courses per day, 10 delegates per course:5 April 2022 and 11 May 2022  at your premises in Bispham",Corporate Training - Health and Safety
Wyre Council,http://opendatacommunities.org/doc/district-council/wyre,30/05/2022,Resources,Support Services,135B,First Aid Direct UK Ltd,26/05/2022,RS141712,395.00,0.00,To deliver First Aid course x 12 delegates May 16th 2022,Corporate Training - Health and Safety
Wyre Council,http://opendatacommunities.org/doc/district-council/wyre,30/05/2022,Resources,Support Services,135B,First Aid Direct UK Ltd,05/05/2022,RS141314,395.00,0.00,To deliver First Aid Course for 12 delegates April 26th 2022,Corporate Training - Health and Safety
Wyre Council,http://opendatacommunities.org/doc/district-council/wyre,30/05/2022,Finance,Current Assets,130B,,24/05/2022,WPST00054706,21090.67,0.00,,Council Tax Refunds
Wyre Council,http://opendatacommunities.org/doc/district-council/wyre,30/05/2022,Finance,Current Assets,130B,,11/05/2022,WPST00051725,27113.09,0.00,,Council Tax Refunds
Wyre Council,http://opendatacommunities.org/doc/district-council/wyre,30/05/2022,Finance,Current Assets,130B,,11/05/2022,WPST00051738,19672.50,0.00,,Council Tax Refunds
Wyre Council,http://opendatacommunities.org/doc/district-council/wyre,30/05/2022,Finance,Current Assets,130B,,17/05/2022,WPST00052604,41852.07,0.00,,Council Tax Refunds
Wyre Council,http://opendatacommunities.org/doc/district-council/wyre,30/05/2022,People and Places,Support Services,135B,FR Sharrock LTD,11/05/2022,PE141429,805.34,0.00,Various parts,Daywork Materials (Excl.Tyres)
Wyre Council,http://opendatacommunities.org/doc/district-council/wyre,30/05/2022,People and Places,Support Services,135B,FR Sharrock LTD,18/05/2022,PE141526,578.60,0.00,Various parts,Daywork Materials (Excl.Tyres)
Wyre Council,http://opendatacommunities.org/doc/district-council/wyre,30/05/2022,People and Places,Environmental Services,132B,Bucher Municipal Limited,24/05/2022,PE141647,346.59,0.00,Parts for sweepers,Daywork Materials (Excl.Tyres)
Wyre Council,http://opendatacommunities.org/doc/district-council/wyre,30/05/2022,People and Places,Environmental Services,132B,Bucher Municipal Limited,24/05/2022,PE141647,346.59,0.00,Parts for sweepers,Daywork Materials (Excl.Tyres)
Wyre Council,http://opendatacommunities.org/doc/district-council/wyre,30/05/2022,People and Places,Environmental Services,132B,Bucher Municipal Limited,24/05/2022,PE141647,346.59,0.00,Parts for sweepers,Daywork Materials (Excl.Tyres)
Wyre Council,http://opendatacommunities.org/doc/district-council/wyre,30/05/2022,People and Places,Environmental Services,132B,Bucher Municipal Limited,24/05/2022,PE141647,346.59,0.00,Parts for sweepers,Daywork Materials (Excl.Tyres)
Wyre Council,http://opendatacommunities.org/doc/district-council/wyre,30/05/2022,People and Places,Environmental Services,132B,RENTOKIL INITIAL UK LTD,26/05/2022,PE141706,613.74,0.00,Clinical waste collection and disposal services to Wyre domestic customers.  To include provision of containers for financial year 2022/23,Disposal Costs Hazardous Waste
Wyre Council,http://opendatacommunities.org/doc/district-council/wyre,30/05/2022,People and Places,Environmental Services,132B,RENTOKIL INITIAL UK LTD,13/05/2022,PE141470,694.85,0.00,payment of invoice 60281952 clinical waste removal for April 2022,Disposal Costs Hazardous Waste
Wyre Council,http://opendatacommunities.org/doc/district-council/wyre,30/05/2022,People and Places,Cultural and Related Services,132A,Carlsberg UK LTD,09/05/2022,PE141384,701.18,0.00,Marine Hall Bar,Drinks
Wyre Council,http://opendatacommunities.org/doc/district-council/wyre,30/05/2022,People and Places,Cultural and Related Services,132A,Carlsberg UK LTD,09/05/2022,PE141383,74.48,0.00,Gas cylinder rental 24/2/22,Drinks
Wyre Council,http://opendatacommunities.org/doc/district-council/wyre,30/05/2022,People and Places,Cultural and Related Services,132A,Carlsberg UK LTD,09/05/2022,PE141382,612.31,0.00,Marine Hall bar 2/3/22,Drinks
Wyre Council,http://opendatacommunities.org/doc/district-council/wyre,30/05/2022,People and Places,Cultural and Related Services,132A,Carlsberg UK LTD,09/05/2022,PE141381,106.35,0.00,Marine Hall bar 2/3/22,Drinks
Wyre Council,http://opendatacommunities.org/doc/district-council/wyre,30/05/2022,People and Places,Cultural and Related Services,132A,Carlsberg UK LTD,09/05/2022,PE141380,74.48,0.00,Gas Marine hall 24/3/22,Drinks
Wyre Council,http://opendatacommunities.org/doc/district-council/wyre,30/05/2022,People and Places,Cultural and Related Services,132A,Carlsberg UK LTD,09/05/2022,PE141379,1500.87,0.00,Marine Hall bar 16/2/22,Drinks
Wyre Council,http://opendatacommunities.org/doc/district-council/wyre,30/05/2022,People and Places,Cultural and Related Services,132A,L W C Drinks LTD,16/05/2022,PE141531,1623.04,0.00,Marine Hall Bar stock,Drinks
Wyre Council,http://opendatacommunities.org/doc/district-council/wyre,30/05/2022,Resources,Support Services,135B,Bryt Energy Limited,19/05/2022,RS141629,5254.52,0.00,Electricity Charges for the period 01/04/22-30/04/22,Electricity
Wyre Council,http://opendatacommunities.org/doc/district-council/wyre,30/05/2022,People and Places,Planning and Development Servs,132C,Bryt Energy Limited,19/05/2022,PE141555,986.88,0.00,Electricity Charges for the period 01/04/22-30/04/22,Electricity
Wyre Council,http://opendatacommunities.org/doc/district-council/wyre,30/05/2022,People and Places,Cultural and Related Services,132A,Bryt Energy Limited,19/05/2022,PE141556,3176.66,0.00,Electricity Charges for the period 01/04/22-30/04/22,Electricity
Wyre Council,http://opendatacommunities.org/doc/district-council/wyre,30/05/2022,People and Places,Cultural and Related Services,132A,Bryt Energy Limited,19/05/2022,PE141557,647.11,0.00,Electricity Charges for the period 01/04/22-30/04/22,Electricity
Wyre Council,http://opendatacommunities.org/doc/district-council/wyre,30/05/2022,People and Places,Cultural and Related Services,132A,Bryt Energy Limited,19/05/2022,PE141558,132.74,0.00,Electricity Charges for the period 01/04/22-30/04/22,Electricity
Wyre Council,http://opendatacommunities.org/doc/district-council/wyre,30/05/2022,People and Places,Planning and Development Servs,132C,Bryt Energy Limited,19/05/2022,PE141554,3118.73,0.00,Electricity Charges for the period 01/02/22-28/02/22,Electricity
Wyre Council,http://opendatacommunities.org/doc/district-council/wyre,30/05/2022,People and Places,Planning and Development Servs,132C,Bryt Energy Limited,19/05/2022,PE141560,3316.32,0.00,Electricity Charges for the period 01/04/22-30/04/22,Electricity
Wyre Council,http://opendatacommunities.org/doc/district-council/wyre,30/05/2022,People and Places,Planning and Development Servs,132C,Bryt Energy Limited,19/05/2022,PE141559,2931.36,0.00,Electricity Charges for the period 01/12/21-31/12/21,Electricity
Wyre Council,http://opendatacommunities.org/doc/district-council/wyre,30/05/2022,People and Places,Environmental Services,132B,Bryt Energy Limited,19/05/2022,PE141561,43.89,0.00,Electricity Charges for the period 01/04/2-30/04/22,Electricity
Wyre Council,http://opendatacommunities.org/doc/district-council/wyre,30/05/2022,People and Places,Planning and Development Servs,132C,Corona Energy Retail 4 Limited,19/05/2022,PE141671,632.38,0.00,Monthly Charges,Electricity
Wyre Council,http://opendatacommunities.org/doc/district-council/wyre,30/05/2022,People and Places,Cultural and Related Services,132A,Corona Energy Retail 4 Limited,19/05/2022,PE141671,139.86,0.00,Monthly Charges,Electricity
Wyre Council,http://opendatacommunities.org/doc/district-council/wyre,30/05/2022,People and Places,Cultural and Related Services,132A,Corona Energy Retail 4 Limited,19/05/2022,PE141671,77.44,0.00,Monthly Charges,Electricity
Wyre Council,http://opendatacommunities.org/doc/district-council/wyre,30/05/2022,People and Places,Cultural and Related Services,132A,Corona Energy Retail 4 Limited,19/05/2022,PE141671,370.68,0.00,Monthly Charges,Electricity
Wyre Council,http://opendatacommunities.org/doc/district-council/wyre,30/05/2022,People and Places,Cultural and Related Services,132A,Corona Energy Retail 4 Limited,19/05/2022,PE141671,46.48,0.00,Monthly Charges,Electricity
Wyre Council,http://opendatacommunities.org/doc/district-council/wyre,30/05/2022,People and Places,Environmental Services,132B,Corona Energy Retail 4 Limited,19/05/2022,PE141671,303.67,0.00,Monthly Charges,Electricity
Wyre Council,http://opendatacommunities.org/doc/district-council/wyre,30/05/2022,People and Places,Environmental Services,132B,Corona Energy Retail 4 Limited,19/05/2022,PE141671,154.78,0.00,Monthly Charges,Electricity
Wyre Council,http://opendatacommunities.org/doc/district-council/wyre,30/05/2022,People and Places,Cultural and Related Services,132A,Corona Energy Retail 4 Limited,19/05/2022,PE141671,30.43,0.00,Monthly Charges,Electricity
Wyre Council,http://opendatacommunities.org/doc/district-council/wyre,30/05/2022,People and Places,Cultural and Related Services,132A,Corona Energy Retail 4 Limited,19/05/2022,PE141671,175.64,0.00,Monthly Charges,Electricity
Wyre Council,http://opendatacommunities.org/doc/district-council/wyre,30/05/2022,People and Places,Cultural and Related Services,132A,Corona Energy Retail 4 Limited,19/05/2022,PE141671,219.94,0.00,Monthly Charges,Electricity
Wyre Council,http://opendatacommunities.org/doc/district-council/wyre,30/05/2022,People and Places,Cultural and Related Services,132A,Corona Energy Retail 4 Limited,19/05/2022,PE141671,150.91,0.00,Monthly Charges,Electricity
Wyre Council,http://opendatacommunities.org/doc/district-council/wyre,30/05/2022,People and Places,Cultural and Related Services,132A,Corona Energy Retail 4 Limited,19/05/2022,PE141671,91.96,0.00,Monthly Charges,Electricity
Wyre Council,http://opendatacommunities.org/doc/district-council/wyre,30/05/2022,People and Places,Cultural and Related Services,132A,Corona Energy Retail 4 Limited,19/05/2022,PE141671,301.63,0.00,Monthly Charges,Electricity
Wyre Council,http://opendatacommunities.org/doc/district-council/wyre,30/05/2022,People and Places,Central Services to the Public,131C,Corona Energy Retail 4 Limited,19/05/2022,PE141671,585.18,0.00,Monthly Charges,Electricity
Wyre Council,http://opendatacommunities.org/doc/district-council/wyre,30/05/2022,People and Places,Environmental Services,132B,Corona Energy Retail 4 Limited,19/05/2022,PE141671,494.37,0.00,Monthly Charges,Electricity
Wyre Council,http://opendatacommunities.org/doc/district-council/wyre,30/05/2022,People and Places,Environmental Services,132B,Corona Energy Retail 4 Limited,19/05/2022,PE141671,1243.65,0.00,Monthly Charges,Electricity
Wyre Council,http://opendatacommunities.org/doc/district-council/wyre,30/05/2022,People and Places,Environmental Services,132B,Corona Energy Retail 4 Limited,19/05/2022,PE141671,36.63,0.00,Monthly Charges,Electricity
Wyre Council,http://opendatacommunities.org/doc/district-council/wyre,30/05/2022,People and Places,Cultural and Related Services,132A,Corona Energy Retail 4 Limited,19/05/2022,PE141671,131.50,0.00,Monthly Charges,Electricity
Wyre Council,http://opendatacommunities.org/doc/district-council/wyre,30/05/2022,People and Places,Cultural and Related Services,132A,Corona Energy Retail 4 Limited,19/05/2022,PE141671,302.88,0.00,Monthly Charges,Electricity
Wyre Council,http://opendatacommunities.org/doc/district-council/wyre,30/05/2022,People and Places,Cultural and Related Services,132A,Corona Energy Retail 4 Limited,19/05/2022,PE141671,613.83,0.00,Monthly Charges,Electricity
Wyre Council,http://opendatacommunities.org/doc/district-council/wyre,30/05/2022,People and Places,Cultural and Related Services,132A,Corona Energy Retail 4 Limited,19/05/2022,PE141671,31.61,0.00,Monthly Charges,Electricity
Wyre Council,http://opendatacommunities.org/doc/district-council/wyre,30/05/2022,People and Places,Cultural and Related Services,132A,Corona Energy Retail 4 Limited,19/05/2022,PE141671,77.21,0.00,Monthly Charges,Electricity
Wyre Council,http://opendatacommunities.org/doc/district-council/wyre,30/05/2022,People and Places,Cultural and Related Services,132A,Corona Energy Retail 4 Limited,19/05/2022,PE141671,59.60,0.00,Monthly Charges,Electricity
Wyre Council,http://opendatacommunities.org/doc/district-council/wyre,30/05/2022,People and Places,Planning and Development Servs,132C,Corona Energy Retail 4 Limited,19/05/2022,PE141671,450.14,0.00,Monthly Charges,Electricity
Wyre Council,http://opendatacommunities.org/doc/district-council/wyre,30/05/2022,People and Places,Planning and Development Servs,132C,Corona Energy Retail 4 Limited,19/05/2022,PE141671,-211.52,0.00,Monthly Charges,Electricity
Wyre Council,http://opendatacommunities.org/doc/district-council/wyre,30/05/2022,People and Places,Environmental Services,132B,Corona Energy Retail 4 Limited,19/05/2022,PE141671,120.42,0.00,Monthly Charges,Electricity
Wyre Council,http://opendatacommunities.org/doc/district-council/wyre,30/05/2022,People and Places,Cultural and Related Services,132A,Corona Energy Retail 4 Limited,19/05/2022,PE141671,72.15,0.00,Monthly Charges,Electricity
Wyre Council,http://opendatacommunities.org/doc/district-council/wyre,30/05/2022,People and Places,Cultural and Related Services,132A,Corona Energy Retail 4 Limited,03/05/2022,PE141093,89.21,0.00,Monthly Charges,Electricity
Wyre Council,http://opendatacommunities.org/doc/district-council/wyre,30/05/2022,People and Places,Environmental Services,132B,Corona Energy Retail 4 Limited,03/05/2022,PE141093,385.38,0.00,Monthly Charges,Electricity
Wyre Council,http://opendatacommunities.org/doc/district-council/wyre,30/05/2022,People and Places,Planning and Development Servs,132C,Corona Energy Retail 4 Limited,03/05/2022,PE141093,604.24,0.00,Monthly Charges,Electricity
Wyre Council,http://opendatacommunities.org/doc/district-council/wyre,30/05/2022,People and Places,Planning and Development Servs,132C,Corona Energy Retail 4 Limited,03/05/2022,PE141093,284.27,0.00,Monthly Charges,Electricity
Wyre Council,http://opendatacommunities.org/doc/district-council/wyre,30/05/2022,People and Places,Cultural and Related Services,132A,Corona Energy Retail 4 Limited,03/05/2022,PE141093,83.38,0.00,Monthly Charges,Electricity
Wyre Council,http://opendatacommunities.org/doc/district-council/wyre,30/05/2022,People and Places,Environmental Services,132B,Corona Energy Retail 4 Limited,03/05/2022,PE141093,16.69,0.00,Monthly Charges,Electricity
Wyre Council,http://opendatacommunities.org/doc/district-council/wyre,30/05/2022,People and Places,Environmental Services,132B,Corona Energy Retail 4 Limited,03/05/2022,PE141093,213.54,0.00,Monthly Charges,Electricity
Wyre Council,http://opendatacommunities.org/doc/district-council/wyre,30/05/2022,People and Places,Cultural and Related Services,132A,Corona Energy Retail 4 Limited,03/05/2022,PE141093,468.58,0.00,Monthly Charges,Electricity
Wyre Council,http://opendatacommunities.org/doc/district-council/wyre,30/05/2022,People and Places,Cultural and Related Services,132A,Corona Energy Retail 4 Limited,03/05/2022,PE141093,50.65,0.00,Monthly Charges,Electricity
Wyre Council,http://opendatacommunities.org/doc/district-council/wyre,30/05/2022,People and Places,Cultural and Related Services,132A,Corona Energy Retail 4 Limited,03/05/2022,PE141093,145.13,0.00,Monthly Charges,Electricity
Wyre Council,http://opendatacommunities.org/doc/district-council/wyre,30/05/2022,People and Places,Environmental Services,132B,Corona Energy Retail 4 Limited,03/05/2022,PE141093,189.10,0.00,Monthly Charges,Electricity
Wyre Council,http://opendatacommunities.org/doc/district-council/wyre,30/05/2022,People and Places,Cultural and Related Services,132A,Corona Energy Retail 4 Limited,03/05/2022,PE141093,34.32,0.00,Monthly Charges,Electricity
Wyre Council,http://opendatacommunities.org/doc/district-council/wyre,30/05/2022,People and Places,Cultural and Related Services,132A,Corona Energy Retail 4 Limited,03/05/2022,PE141093,109.63,0.00,Monthly Charges,Electricity
Wyre Council,http://opendatacommunities.org/doc/district-council/wyre,30/05/2022,People and Places,Cultural and Related Services,132A,Corona Energy Retail 4 Limited,03/05/2022,PE141093,417.39,0.00,Monthly Charges,Electricity
Wyre Council,http://opendatacommunities.org/doc/district-council/wyre,30/05/2022,People and Places,Central Services to the Public,131C,Corona Energy Retail 4 Limited,03/05/2022,PE141093,707.38,0.00,Monthly Charges,Electricity
Wyre Council,http://opendatacommunities.org/doc/district-council/wyre,30/05/2022,People and Places,Cultural and Related Services,132A,Corona Energy Retail 4 Limited,03/05/2022,PE141093,61.23,0.00,Monthly Charges,Electricity
Wyre Council,http://opendatacommunities.org/doc/district-council/wyre,30/05/2022,People and Places,Cultural and Related Services,132A,Corona Energy Retail 4 Limited,03/05/2022,PE141093,389.62,0.00,Monthly Charges,Electricity
Wyre Council,http://opendatacommunities.org/doc/district-council/wyre,30/05/2022,People and Places,Cultural and Related Services,132A,Corona Energy Retail 4 Limited,03/05/2022,PE141093,73.28,0.00,Monthly Charges,Electricity
Wyre Council,http://opendatacommunities.org/doc/district-council/wyre,30/05/2022,People and Places,Cultural and Related Services,132A,Corona Energy Retail 4 Limited,03/05/2022,PE141093,31.61,0.00,Monthly Charges,Electricity
Wyre Council,http://opendatacommunities.org/doc/district-council/wyre,30/05/2022,People and Places,Cultural and Related Services,132A,Corona Energy Retail 4 Limited,03/05/2022,PE141093,126.57,0.00,Monthly Charges,Electricity
Wyre Council,http://opendatacommunities.org/doc/district-council/wyre,30/05/2022,People and Places,Cultural and Related Services,132A,Corona Energy Retail 4 Limited,03/05/2022,PE141093,176.15,0.00,Monthly Charges,Electricity
Wyre Council,http://opendatacommunities.org/doc/district-council/wyre,30/05/2022,People and Places,Environmental Services,132B,Corona Energy Retail 4 Limited,03/05/2022,PE141093,37.90,0.00,Monthly Charges,Electricity
Wyre Council,http://opendatacommunities.org/doc/district-council/wyre,30/05/2022,People and Places,Cultural and Related Services,132A,Corona Energy Retail 4 Limited,03/05/2022,PE141093,369.99,0.00,Monthly Charges,Electricity
Wyre Council,http://opendatacommunities.org/doc/district-council/wyre,30/05/2022,People and Places,Cultural and Related Services,132A,Corona Energy Retail 4 Limited,03/05/2022,PE141093,964.06,0.00,Monthly Charges,Electricity
Wyre Council,http://opendatacommunities.org/doc/district-council/wyre,30/05/2022,People and Places,Cultural and Related Services,132A,Corona Energy Retail 4 Limited,03/05/2022,PE141093,197.73,0.00,Monthly Charges,Electricity
Wyre Council,http://opendatacommunities.org/doc/district-council/wyre,30/05/2022,People and Places,Environmental Services,132B,Corona Energy Retail 4 Limited,03/05/2022,PE141093,726.94,0.00,Monthly Charges,Electricity
Wyre Council,http://opendatacommunities.org/doc/district-council/wyre,30/05/2022,People and Places,Environmental Services,132B,Corona Energy Retail 4 Limited,03/05/2022,PE141093,1071.99,0.00,Monthly Charges,Electricity
Wyre Council,http://opendatacommunities.org/doc/district-council/wyre,30/05/2022,Finance,Central Services to the Public,131C,,23/05/2022,WPST00054385,119850.00,0.00,energy rebate,Energy Rebate Payment
Wyre Council,http://opendatacommunities.org/doc/district-council/wyre,30/05/2022,Finance,Central Services to the Public,131C,,23/05/2022,WPST00054386,9600.00,0.00,energy rebate,Energy Rebate Payment
Wyre Council,http://opendatacommunities.org/doc/district-council/wyre,30/05/2022,Finance,Central Services to the Public,131C,,24/05/2022,WPST00054705,29850.00,0.00,,Energy Rebate Payment
Wyre Council,http://opendatacommunities.org/doc/district-council/wyre,30/05/2022,Finance,Central Services to the Public,131C,,10/05/2022,WPST00050205,121695.00,0.00,energy rebate,Energy Rebate Payment
Wyre Council,http://opendatacommunities.org/doc/district-council/wyre,30/05/2022,Finance,Central Services to the Public,131C,,11/05/2022,WPST00051736,217000.00,0.00,energy rebate,Energy Rebate Payment
Wyre Council,http://opendatacommunities.org/doc/district-council/wyre,30/05/2022,Finance,Central Services to the Public,131C,,11/05/2022,WPST00051737,999950.00,0.00,energy rebate,Energy Rebate Payment
Wyre Council,http://opendatacommunities.org/doc/district-council/wyre,30/05/2022,Finance,Central Services to the Public,131C,,11/05/2022,WPST00051724,756150.00,0.00,energy rebate,Energy Rebate Payment
Wyre Council,http://opendatacommunities.org/doc/district-council/wyre,30/05/2022,Finance,Central Services to the Public,131C,,31/05/2022,WPST00055424,126600.00,0.00,energy rebate,Energy Rebate Payment
Wyre Council,http://opendatacommunities.org/doc/district-council/wyre,30/05/2022,Finance,Central Services to the Public,131C,,18/05/2022,WPST00052665,10050.00,0.00,energy rebate,Energy Rebate Payment
Wyre Council,http://opendatacommunities.org/doc/district-council/wyre,30/05/2022,Finance,Central Services to the Public,131C,,18/05/2022,WPST00052666,1800.00,0.00,energy rebate,Energy Rebate Payment
Wyre Council,http://opendatacommunities.org/doc/district-council/wyre,30/05/2022,Finance,Central Services to the Public,131C,,18/05/2022,WPST00052664,72000.00,0.00,energy rebate,Energy Rebate Payment
Wyre Council,http://opendatacommunities.org/doc/district-council/wyre,30/05/2022,Resources,Central Services to the Public,131C,Critiqom LTD,05/05/2022,RS141185,1651.89,0.00,ER Rebate Letters DD,Energy Rebate Payment
Wyre Council,http://opendatacommunities.org/doc/district-council/wyre,30/05/2022,Resources,Central Services to the Public,131C,Critiqom LTD,05/05/2022,RS141186,10659.16,0.00,ER Rebate Letters DD,Energy Rebate Payment
Wyre Council,http://opendatacommunities.org/doc/district-council/wyre,30/05/2022,Resources,Central Services to the Public,131C,Critiqom LTD,18/05/2022,RS141569,5336.47,0.00,ER Rebate Letters DD,Energy Rebate Payment
Wyre Council,http://opendatacommunities.org/doc/district-council/wyre,30/05/2022,Resources,Central Services to the Public,131C,Critiqom LTD,17/05/2022,RS141542,1090.40,0.00,energy rebate leaflets,Energy Rebate Payment
Wyre Council,http://opendatacommunities.org/doc/district-council/wyre,30/05/2022,Resources,Housing General Fund,134A,KPMG LLP,06/05/2022,RS141334,13078.00,0.00,Housing Benefit subsidy audit 2020-21 - final fee,External Audit Fees
Wyre Council,http://opendatacommunities.org/doc/district-council/wyre,30/05/2022,Resources,Cultural and Related Services,132A,Play Inclusion Project,06/05/2022,RS141279,2554.50,0.00,For the delivery of the Easter Holiday Activity and Food programme£18 per place including food provision,External Coaching
Wyre Council,http://opendatacommunities.org/doc/district-council/wyre,30/05/2022,People and Places,Cultural and Related Services,132A,Cycling Projects,05/05/2022,PE141306,5720.00,0.00,Cycling Support for Wyre Wheels,External Coaching
Wyre Council,http://opendatacommunities.org/doc/district-council/wyre,30/05/2022,People and Places,Cultural and Related Services,132A,Acorns,17/05/2022,PE141524,1076.00,0.00,Delivery of Easter Holiday Activity and Food  Cost per place = £18 per half day or £29 per full day place including food provision,External Coaching
Wyre Council,http://opendatacommunities.org/doc/district-council/wyre,30/05/2022,People and Places,Cultural and Related Services,132A,The Fylde Rugby Community Foundation,16/05/2022,PE141474,1224.00,0.00,"Delivery of the Easter Holiday Activity and Food programme Staffing - £15 per place x 30 children x 3 days including coaching at appropriate ratios = £1,350 Venue - £100 per day x 3 days = £300 Enrichment Activities - £1 per child x 30 children x 3 days f",External Coaching
Wyre Council,http://opendatacommunities.org/doc/district-council/wyre,30/05/2022,People and Places,Planning and Development Servs,132C,PETER HEARN ELECTRICAL LTD,03/05/2022,PE141167,590.00,0.00,ELECTRICAL REPAIRS/WORKS WHEN FILMING LABOUR,External Filming Expenses
Wyre Council,http://opendatacommunities.org/doc/district-council/wyre,30/05/2022,People and Places,Planning and Development Servs,132C,PETER HEARN ELECTRICAL LTD,03/05/2022,PE141167,690.00,0.00,MATERIALS SUPPLIED TO SITE LIGHTS/BOXES ETC,External Filming Expenses
Wyre Council,http://opendatacommunities.org/doc/district-council/wyre,30/05/2022,People and Places,Public Transport,133G,Harrison External Display Systems,18/05/2022,PE141667,1328.00,0.00,2 no. 8 mtr. poles as per your quote 0000072305,Ferry Dock Maintenance
Wyre Council,http://opendatacommunities.org/doc/district-council/wyre,30/05/2022,People and Places,Public Transport,133G,Harrison External Display Systems,24/05/2022,PE140931,824.90,0.00,2 no. 6 mtr. poles as per your quote 0000078756,Ferry Dock Maintenance
Wyre Council,http://opendatacommunities.org/doc/district-council/wyre,30/05/2022,People and Places,Support Services,135B,Arco LTD,13/05/2022,PE141502,20.50,0.00,first aid kits,First Aid Supplies
Wyre Council,http://opendatacommunities.org/doc/district-council/wyre,30/05/2022,People and Places,Support Services,135B,Arco LTD,13/05/2022,PE141502,20.50,0.00,first aid kits,First Aid Supplies
Wyre Council,http://opendatacommunities.org/doc/district-council/wyre,30/05/2022,People and Places,Environmental Services,132B,UK Health Security Agency,03/05/2022,PE140711,573.03,0.00,For shellfish testing 2021/22,Food and Drug Etc Samples
Wyre Council,http://opendatacommunities.org/doc/district-council/wyre,30/05/2022,People and Places,Support Services,135B,Allstar Business Solutions LTD,30/05/2022,PE141683,273.77,0.00,Monthly Charges,Fuel
Wyre Council,http://opendatacommunities.org/doc/district-council/wyre,30/05/2022,People and Places,Support Services,135B,Allstar Business Solutions LTD,30/05/2022,PE141683,255.05,0.00,Monthly Charges,Fuel
Wyre Council,http://opendatacommunities.org/doc/district-council/wyre,30/05/2022,People and Places,Support Services,135B,Allstar Business Solutions LTD,16/05/2022,PE141168,298.38,0.00,Fuel Charges,Fuel
Wyre Council,http://opendatacommunities.org/doc/district-council/wyre,30/05/2022,People and Places,Support Services,135B,Allstar Business Solutions LTD,16/05/2022,PE141168,272.83,0.00,Fuel Charges,Fuel
Wyre Council,http://opendatacommunities.org/doc/district-council/wyre,30/05/2022,People and Places,Support Services,135B,Allstar Business Solutions LTD,10/05/2022,PE141191,426.63,0.00,Fuel Charges,Fuel
Wyre Council,http://opendatacommunities.org/doc/district-council/wyre,30/05/2022,People and Places,Support Services,135B,Allstar Business Solutions LTD,10/05/2022,PE141191,389.69,0.00,Fuel Charges,Fuel
Wyre Council,http://opendatacommunities.org/doc/district-council/wyre,30/05/2022,People and Places,Cultural and Related Services,132A,Loop Publishing LTD,24/05/2022,PE141548,200.00,0.00,GWF Advert in Northern Life No 67,Garstang Walking Festival
Wyre Council,http://opendatacommunities.org/doc/district-council/wyre,30/05/2022,People and Places,Cultural and Related Services,132A,AvantiGas ON Ltd,03/05/2022,PE141073,799.22,0.00,Gas charges for the period 01/03/22-31/03/22,Gas
Wyre Council,http://opendatacommunities.org/doc/district-council/wyre,30/05/2022,People and Places,Support Services,135B,AvantiGas ON Ltd,03/05/2022,PE141075,5589.08,0.00,Gas charges for the period 01/03/22-31/03/22,Gas
Wyre Council,http://opendatacommunities.org/doc/district-council/wyre,30/05/2022,People and Places,Planning and Development Servs,132C,AvantiGas ON Ltd,03/05/2022,PE141072,128.38,0.00,Gas charges for the period 01/03/22-31/03/22,Gas
Wyre Council,http://opendatacommunities.org/doc/district-council/wyre,30/05/2022,People and Places,Planning and Development Servs,132C,AvantiGas ON Ltd,03/05/2022,PE141074,5329.14,0.00,Gas charges for the period 01/03/22-31/03/22,Gas
Wyre Council,http://opendatacommunities.org/doc/district-council/wyre,30/05/2022,Resources,Support Services,135B,Konica Minolta Business Solutions UK LTD,03/05/2022,RS141104,43.53,0.00,18222507483 - Bizhub C3110 - Fleetwod Market CAB,Hire of Tools or Equipment
Wyre Council,http://opendatacommunities.org/doc/district-council/wyre,30/05/2022,Resources,Support Services,135B,Konica Minolta Business Solutions UK LTD,03/05/2022,RS141105,408.90,0.00,Epson Surecolor SC-T5200 Dual Roll/URPE000449 - Equipment number 1821320823 - 01/04/2022 - 31/03/2023,Hire of Tools or Equipment
Wyre Council,http://opendatacommunities.org/doc/district-council/wyre,30/05/2022,Resources,Planning and Development Servs,132C,Konica Minolta Business Solutions UK LTD,16/05/2022,RS140409,11.88,0.00,Copy and Print 26/12/21-25/03/22,Hire of Tools or Equipment
Wyre Council,http://opendatacommunities.org/doc/district-council/wyre,30/05/2022,Resources,Cultural and Related Services,132A,Konica Minolta Business Solutions UK LTD,16/05/2022,RS140409,60.85,0.00,Copy and Print 26/12/21-25/03/22,Hire of Tools or Equipment
Wyre Council,http://opendatacommunities.org/doc/district-council/wyre,30/05/2022,Resources,Housing General Fund,134A,Salvation Army,10/05/2022,RS141426,5000.00,0.00,"Tenancy training, for the period 01/04/22 - 31/03/23",Homelessness Tenancy Support
Wyre Council,http://opendatacommunities.org/doc/district-council/wyre,30/05/2022,Finance,Central Services to the Public,131C,,11/05/2022,WPST00051563,10000.00,0.00,Post office 08/04/2022,Household Support Fund
Wyre Council,http://opendatacommunities.org/doc/district-council/wyre,30/05/2022,Resources,Central Services to the Public,131C,Post Office Limited,05/05/2022,RS141294,387.20,0.00,Pay out scheme from 01/03/22-31/03/22,Household Support Fund
Wyre Council,http://opendatacommunities.org/doc/district-council/wyre,30/05/2022,Resources,Central Services to the Public,131C,Post Office Limited,16/05/2022,RS141518,357.00,0.00,Payout Scheme April 22,Household Support Fund
Wyre Council,http://opendatacommunities.org/doc/district-council/wyre,30/05/2022,People and Places,Environmental Services,132B,Poulton Pets LTD,17/05/2022,PE141506,1551.00,0.00,Provision of stray dog kennelling service 2022/23,Impounded Dogs Costs
Wyre Council,http://opendatacommunities.org/doc/district-council/wyre,30/05/2022,Resources,Support Services,135B,Vodafone LTD,16/05/2022,RS140951,404.49,0.00,PSN - Dedicated Access Bearer,Internet and Telephone Charges
Wyre Council,http://opendatacommunities.org/doc/district-council/wyre,30/05/2022,Resources,Support Services,135B,Vodafone LTD,16/05/2022,RS140951,199.98,0.00,PSN - Direct Network Service Provider,Internet and Telephone Charges
Wyre Council,http://opendatacommunities.org/doc/district-council/wyre,30/05/2022,Resources,Support Services,135B,THE NETWORKING PEOPLE (TNP) LTD,18/05/2022,RS141665,402.23,0.00," Wholesale FTTC connection to Stanah Country Park Visitor Ce, River Road,Thornton-Cleveleys, FY5 5LR - Annual rental 14/05/2021 - 13/05/2022",Internet and Telephone Charges
Wyre Council,http://opendatacommunities.org/doc/district-council/wyre,30/05/2022,Resources,Support Services,135B,THE NETWORKING PEOPLE (TNP) LTD,18/05/2022,RS141665,402.23,0.00," Wholesale FTTC connection to Unit 1, Cherestanc Square, Garstang, Preston, PR3 1EF - Annual rental 30/04/2021 - 29/04/2022",Internet and Telephone Charges
Wyre Council,http://opendatacommunities.org/doc/district-council/wyre,30/05/2022,Resources,Support Services,135B,THE NETWORKING PEOPLE (TNP) LTD,18/05/2022,RS141665,402.23,0.00,"Wholesale FTTC connection to The New Wave Cafe, North Promenade, Thornton-Cleveleys, FY5 1LW - Annual rental 27/05/2021 - 26/05/2022",Internet and Telephone Charges
Wyre Council,http://opendatacommunities.org/doc/district-council/wyre,30/05/2022,Resources,Support Services,135B,THE NETWORKING PEOPLE (TNP) LTD,18/05/2022,RS141665,402.23,0.00,"Wholesale FTTC connection to Thornton Little Theatre, Victoria Road East,Thornton Cleveleys, FY5 3S - Annual rental 13/05/2021 - 12/05/2022",Internet and Telephone Charges
Wyre Council,http://opendatacommunities.org/doc/district-council/wyre,30/05/2022,People and Places,Cultural and Related Services,132A,Northern Citrus Products LTD,16/05/2022,PE141525,836.94,0.00,Kiosk stock - Marine Hall,Kiosk stock
Wyre Council,http://opendatacommunities.org/doc/district-council/wyre,30/05/2022,Resources,Support Services,135B,Forbes Solicitors,13/05/2022,RS141472,60.00,0.00,Professional fees,Legal Fees
Wyre Council,http://opendatacommunities.org/doc/district-council/wyre,30/05/2022,Resources,Support Services,135B,Forbes Solicitors,13/05/2022,RS141473,360.00,0.00,Professional fees,Legal Fees
Wyre Council,http://opendatacommunities.org/doc/district-council/wyre,30/05/2022,Resources,Support Services,135B,Forbes Solicitors,18/05/2022,RS141573,2028.50,0.00,Employment Advice - Inv No 591278 - March 2022,Legal Fees
Wyre Council,http://opendatacommunities.org/doc/district-council/wyre,30/05/2022,Resources,Support Services,135B,Forbes Solicitors,18/05/2022,RS141574,13525.50,0.00,Professional Fees - April 2022,Legal Fees
Wyre Council,http://opendatacommunities.org/doc/district-council/wyre,30/05/2022,Resources,Support Services,135B,Forbes Solicitors,18/05/2022,RS141630,13525.50,0.00,Professional Fees - April 2022,Legal Fees
Wyre Council,http://opendatacommunities.org/doc/district-council/wyre,30/05/2022,Resources,Support Services,135B,Forbes Solicitors,19/05/2022,RS141576,1234.00,0.00,Professional Fees  (Andrew Halpin) April 22,Legal Fees
Wyre Council,http://opendatacommunities.org/doc/district-council/wyre,30/05/2022,Resources,Support Services,135B,Forbes Solicitors,19/05/2022,RS141575,2215.00,0.00,Professional Service - Josh Burke - April 22,Legal Fees
Wyre Council,http://opendatacommunities.org/doc/district-council/wyre,30/05/2022,Resources,Support Services,135B,Forbes Solicitors,18/05/2022,RS141574,-13525.50,0.00,Professional Fees - April 2022,Legal Fees
Wyre Council,http://opendatacommunities.org/doc/district-council/wyre,30/05/2022,People and Places,Highways,133B,Lancashire County Council,16/05/2022,PE141537,12420.00,0.00,Carry out maintenance of Wyre Council unadopted lighting - 414 units at £30 per annum.,Maint. of Unadopted Assets - Engineers
Wyre Council,http://opendatacommunities.org/doc/district-council/wyre,30/05/2022,People and Places,Planning and Development Servs,132C,A1 Streamline Road,05/05/2022,PE141304,350.00,0.00,Lines for Fleetwood Market,Maintenance of Tools or Equipment
Wyre Council,http://opendatacommunities.org/doc/district-council/wyre,30/05/2022,Resources,Cultural and Related Services,132A,Axiomatic Technology Limited,18/05/2022,RS141663,395.00,0.00,Upgrade Axiomatic People Counter to a hosted cloud solution (one off payment to upgrade).,Maintenance of Tools or Equipment
Wyre Council,http://opendatacommunities.org/doc/district-council/wyre,30/05/2022,Resources,Cultural and Related Services,132A,Axiomatic Technology Limited,18/05/2022,RS141662,125.00,0.00,People Counter Annual Hosting for 2022/23,Maintenance of Tools or Equipment
Wyre Council,http://opendatacommunities.org/doc/district-council/wyre,30/05/2022,People and Places,Planning and Development Servs,132C,Opal Design LTD,05/05/2022,PE140825,1287.61,0.00,Supply sink at Fleetwood Market,Maintenance of Tools or Equipment
Wyre Council,http://opendatacommunities.org/doc/district-council/wyre,30/05/2022,People and Places,Cultural and Related Services,132A,Steve Tuckey Cycles,05/05/2022,PE141198,1624.00,0.00,servicing and maintenance of the wyre wheels bikes at Memorial Park and the 2 wheeled bikes at Fleetwood and Stanah for the Social cycling sessions,Maintenance of Tools or Equipment
Wyre Council,http://opendatacommunities.org/doc/district-council/wyre,30/05/2022,People and Places,Highways,133B,Dr Tree Surgeons,20/05/2022,PE141678,125.00,0.00,Quote No: 565 11/03/22Maple - Tree work at o/s Meadows Ave - Raise roadside crown to 5.5m . Also remove anydeadwood 2.4cm diameter.Total Value: £125.00Vat(20%): £25.00Total Inc Vat: £150.00,Maintenance of Trees and Shrubs
Wyre Council,http://opendatacommunities.org/doc/district-council/wyre,30/05/2022,People and Places,Environmental Services,132B,Arco LTD,16/05/2022,PE141489,31.99,0.00,First aid kit,Materials and Consumables
Wyre Council,http://opendatacommunities.org/doc/district-council/wyre,30/05/2022,People and Places,Environmental Services,132B,Smiths Equipment Hire,03/05/2022,PE141059,388.00,0.00,Supply and deliver as per quotation H07-681452Equipment:21.0m Bi-Energy Self Prop.Articulated Boom 4x4 @ 475.00 per week,Materials and Consumables
Wyre Council,http://opendatacommunities.org/doc/district-council/wyre,30/05/2022,People and Places,Environmental Services,132B,Smiths Equipment Hire,03/05/2022,PE141059,80.00,0.00,Delivery @ £80,Materials and Consumables
Wyre Council,http://opendatacommunities.org/doc/district-council/wyre,30/05/2022,People and Places,Environmental Services,132B,Smiths Equipment Hire,03/05/2022,PE141059,80.00,0.00,Collection @ £80,Materials and Consumables
Wyre Council,http://opendatacommunities.org/doc/district-council/wyre,30/05/2022,People and Places,Environmental Services,132B, Travis Perkins Trading CO LTD,03/05/2022,PE140932,667.80,0.00,Bag of postfix  Delivery 21/03/2022,Materials and Consumables
Wyre Council,http://opendatacommunities.org/doc/district-council/wyre,30/05/2022,People and Places,Support Services,135B,Teleshore UK LTD,17/05/2022,PE141545,26.00,0.00,Carriage                                                               £26 Total                                                                      £520 + VAT,Materials and Consumables
Wyre Council,http://opendatacommunities.org/doc/district-council/wyre,30/05/2022,People and Places,Support Services,135B,Teleshore UK LTD,17/05/2022,PE141545,476.00,0.00,"Supply and deliver to Wyre Council, Copse Road Depot, Copse Road, Fleetwood, FY7 6RPQuotation Ref: Q11132 7 37-48 speed brace @ £68each                £476",Materials and Consumables
Wyre Council,http://opendatacommunities.org/doc/district-council/wyre,30/05/2022,People and Places,Support Services,135B,Teleshore UK LTD,17/05/2022,PE141545,18.00,0.00,1 cast ratchet mechanism @ £18,Materials and Consumables
Wyre Council,http://opendatacommunities.org/doc/district-council/wyre,30/05/2022,People and Places,Environmental Services,132B,Newauto Limited T/A Mogo,19/05/2022,PE141672,95.60,0.00,Private Hire Door Stickers,Materials and Consumables
Wyre Council,http://opendatacommunities.org/doc/district-council/wyre,30/05/2022,People and Places,Environmental Services,132B,Newauto Limited T/A Mogo,19/05/2022,PE141672,74.00,0.00,Windscreen Pouch WP-1,Materials and Consumables
Wyre Council,http://opendatacommunities.org/doc/district-council/wyre,30/05/2022,People and Places,Environmental Services,132B,Newauto Limited T/A Mogo,19/05/2022,PE141672,189.00,0.00,MP-2 Hackney printed plate rear,Materials and Consumables
Wyre Council,http://opendatacommunities.org/doc/district-council/wyre,30/05/2022,People and Places,Environmental Services,132B,Newauto Limited T/A Mogo,19/05/2022,PE141672,189.00,0.00,MP-2 Hackney front plate printed,Materials and Consumables
Wyre Council,http://opendatacommunities.org/doc/district-council/wyre,30/05/2022,People and Places,Environmental Services,132B,Newauto Limited T/A Mogo,19/05/2022,PE141672,100.00,0.00,Self Seal Pouch Internals,Materials and Consumables
Wyre Council,http://opendatacommunities.org/doc/district-council/wyre,30/05/2022,People and Places,Environmental Services,132B,Newauto Limited T/A Mogo,19/05/2022,PE141672,58.00,0.00,Private hire internals,Materials and Consumables
Wyre Council,http://opendatacommunities.org/doc/district-council/wyre,30/05/2022,People and Places,Environmental Services,132B,Newauto Limited T/A Mogo,19/05/2022,PE141672,58.00,0.00,Hackney internal disc,Materials and Consumables
Wyre Council,http://opendatacommunities.org/doc/district-council/wyre,30/05/2022,People and Places,Environmental Services,132B,Newauto Limited T/A Mogo,19/05/2022,PE141672,56.70,0.00,Street trader single sided plate,Materials and Consumables
Wyre Council,http://opendatacommunities.org/doc/district-council/wyre,30/05/2022,People and Places,Environmental Services,132B,Newauto Limited T/A Mogo,19/05/2022,PE141672,49.80,0.00,Scrap metal collectors licence,Materials and Consumables
Wyre Council,http://opendatacommunities.org/doc/district-council/wyre,30/05/2022,People and Places,Environmental Services,132B,Newauto Limited T/A Mogo,19/05/2022,PE141672,14.90,0.00,Postage,Materials and Consumables
Wyre Council,http://opendatacommunities.org/doc/district-council/wyre,30/05/2022,People and Places,Environmental Services,132B,Probrush T/A Northern Municipal Spares LTD,18/05/2022,PE141628,4944.00,0.00,"Supply and deliver Ref: Brush Quote 22,01016 71107/1-HD 500/850mm Blue 2.8mm Poly & 3.3mm Wire 2 ROW HEAVY DUTY DIS EACH 45.00 0.00 9,720.0050 SPEC-B5000-7002269 410/760mm Poly & Wire Brush 3x M10 bolts @ 280mm PCD @ 40deg EACH 35.50 0.00 1,775.004",Materials and Consumables
Wyre Council,http://opendatacommunities.org/doc/district-council/wyre,30/05/2022,People and Places,Environmental Services,132B,Probrush T/A Northern Municipal Spares LTD,18/05/2022,PE141544,260.00,0.00,Parts,Materials and Consumables
Wyre Council,http://opendatacommunities.org/doc/district-council/wyre,30/05/2022,People and Places,Environmental Services,132B,Probrush T/A Northern Municipal Spares LTD,19/05/2022,PE141631,3240.00,0.00,"Supply and deliver Ref: Brush Quote 22,01016 71107/1-HD 500/850mm Blue 2.8mm Poly & 3.3mm Wire 2 ROW HEAVY DUTY DIS EACH 45.00 0.00 9,720.0050 SPEC-B5000-7002269 410/760mm Poly & Wire Brush 3x M10 bolts @ 280mm PCD @ 40deg EACH 35.50 0.00 1,775.004",Materials and Consumables
Wyre Council,http://opendatacommunities.org/doc/district-council/wyre,30/05/2022,People and Places,Environmental Services,132B,Probrush T/A Northern Municipal Spares LTD,19/05/2022,PE141669,3240.00,0.00,"Supply and deliver Ref: Brush Quote 22,01016 71107/1-HD 500/850mm Blue 2.8mm Poly & 3.3mm Wire 2 ROW HEAVY DUTY DIS EACH 45.00 0.00 9,720.0050 SPEC-B5000-7002269 410/760mm Poly & Wire Brush 3x M10 bolts @ 280mm PCD @ 40deg EACH 35.50 0.00 1,775.004",Materials and Consumables
Wyre Council,http://opendatacommunities.org/doc/district-council/wyre,30/05/2022,People and Places,Support Services,135B,Agrovista UK LTD,05/05/2022,PE141341,585.00,0.00,Supply and deliver 9 packs of nematodes @ £65 each plus carriage at £15,Materials and Consumables
Wyre Council,http://opendatacommunities.org/doc/district-council/wyre,30/05/2022,People and Places,Support Services,135B,Agrovista UK LTD,05/05/2022,PE141341,15.00,0.00,"Carriage Delivery to Wyre Council, Copse Road Depot, Copse Road, Fleetwood, FY7 6RP.",Materials and Consumables
Wyre Council,http://opendatacommunities.org/doc/district-council/wyre,30/05/2022,People and Places,Support Services,135B,Agrovista UK LTD,13/05/2022,PE141498,49.90,0.00,Supply Nemaflo @ £49.95 / 500ml plus £8.95 carriage,Materials and Consumables
Wyre Council,http://opendatacommunities.org/doc/district-council/wyre,30/05/2022,People and Places,Support Services,135B,Agrovista UK LTD,13/05/2022,PE141498,8.95,0.00,"Delivery to Wyre Council, Copse Road Depot, Copse Road, Fleetwood, FY7 6RP.",Materials and Consumables
Wyre Council,http://opendatacommunities.org/doc/district-council/wyre,30/05/2022,People and Places,Support Services,135B,HUWS GRAY LTD,18/05/2022,PE140869,56.50,0.00,Materials,Materials and Consumables
Wyre Council,http://opendatacommunities.org/doc/district-council/wyre,30/05/2022,People and Places,Support Services,135B,HUWS GRAY LTD,18/05/2022,PE140869,44.85,0.00,Materials,Materials and Consumables
Wyre Council,http://opendatacommunities.org/doc/district-council/wyre,30/05/2022,People and Places,Support Services,135B,HUWS GRAY LTD,18/05/2022,PE140869,128.82,0.00,Materials,Materials and Consumables
Wyre Council,http://opendatacommunities.org/doc/district-council/wyre,30/05/2022,People and Places,Cultural and Related Services,132A,HUWS GRAY LTD,18/05/2022,PE140869,44.34,0.00,"Sand, cement, post creat",Materials and Consumables
Wyre Council,http://opendatacommunities.org/doc/district-council/wyre,30/05/2022,People and Places,Cultural and Related Services,132A,HUWS GRAY LTD,18/05/2022,PE140869,80.00,0.00,10 x bird mouth posts 4ft,Materials and Consumables
Wyre Council,http://opendatacommunities.org/doc/district-council/wyre,30/05/2022,Resources,Corporate and Democratic Core,131A,PR Chauffeuring Services,06/05/2022,RS141223,1326.00,0.00,Invoice Number 151 - Chauffeuring Services to 31 March 2022,Mayoral Ball
Wyre Council,http://opendatacommunities.org/doc/district-council/wyre,30/05/2022,Resources,Housing General Fund,134A,Huck Properties LTD,11/05/2022,RS141433,510.00,0.00,REDACT,Minor Adaptations
Wyre Council,http://opendatacommunities.org/doc/district-council/wyre,30/05/2022,Resources,Housing General Fund,134A,Huck Properties LTD,05/05/2022,RS141197,760.00,0.00,REDACT,Minor Adaptations
Wyre Council,http://opendatacommunities.org/doc/district-council/wyre,30/05/2022,Resources,Housing General Fund,134A,Mobility Care Services,06/05/2022,RS141368,154.00,0.00,REDACT,Minor Adaptations
Wyre Council,http://opendatacommunities.org/doc/district-council/wyre,30/05/2022,Resources,Housing General Fund,134A,Mobility Care Services,06/05/2022,RS141367,308.00,0.00,REDACT,Minor Adaptations
Wyre Council,http://opendatacommunities.org/doc/district-council/wyre,30/05/2022,Resources,Housing General Fund,134A,Mobility Care Services,06/05/2022,RS141366,320.00,0.00,REDACT,Minor Adaptations
Wyre Council,http://opendatacommunities.org/doc/district-council/wyre,30/05/2022,Resources,Housing General Fund,134A,Mobility Care Services,06/05/2022,RS141365,441.00,0.00,REDACT,Minor Adaptations
Wyre Council,http://opendatacommunities.org/doc/district-council/wyre,30/05/2022,Resources,Housing General Fund,134A,Mobility Care Services,06/05/2022,RS141364,955.00,0.00,REDACT,Minor Adaptations
Wyre Council,http://opendatacommunities.org/doc/district-council/wyre,30/05/2022,Resources,Housing General Fund,134A,Mobility Care Services,06/05/2022,RS141363,66.00,0.00,REDACT,Minor Adaptations
Wyre Council,http://opendatacommunities.org/doc/district-council/wyre,30/05/2022,Resources,Housing General Fund,134A,Mobility Care Services,06/05/2022,RS141362,220.00,0.00,REDACT,Minor Adaptations
Wyre Council,http://opendatacommunities.org/doc/district-council/wyre,30/05/2022,Resources,Housing General Fund,134A,Mobility Care Services,06/05/2022,RS141361,198.00,0.00,REDACT,Minor Adaptations
Wyre Council,http://opendatacommunities.org/doc/district-council/wyre,30/05/2022,Resources,Housing General Fund,134A,J A DICKENS LIMITED,05/05/2022,RS141212,200.00,0.00,REDACT,Minor Adaptations
Wyre Council,http://opendatacommunities.org/doc/district-council/wyre,30/05/2022,Resources,Housing General Fund,134A,J A DICKENS LIMITED,05/05/2022,RS141212,380.00,0.00,REDACT,Minor Adaptations
Wyre Council,http://opendatacommunities.org/doc/district-council/wyre,30/05/2022,Resources,Housing General Fund,134A,J A DICKENS LIMITED,05/05/2022,RS141207,60.00,0.00,REDACT,Minor Adaptations
Wyre Council,http://opendatacommunities.org/doc/district-council/wyre,30/05/2022,Resources,Housing General Fund,134A,J A DICKENS LIMITED,05/05/2022,RS141207,94.00,0.00,REDACT,Minor Adaptations
Wyre Council,http://opendatacommunities.org/doc/district-council/wyre,30/05/2022,Resources,Housing General Fund,134A,J A DICKENS LIMITED,05/05/2022,RS141208,160.00,0.00,REDACT,Minor Adaptations
Wyre Council,http://opendatacommunities.org/doc/district-council/wyre,30/05/2022,Resources,Housing General Fund,134A,J A DICKENS LIMITED,05/05/2022,RS141208,260.00,0.00,REDACT,Minor Adaptations
Wyre Council,http://opendatacommunities.org/doc/district-council/wyre,30/05/2022,Resources,Housing General Fund,134A,J A DICKENS LIMITED,05/05/2022,RS141209,128.00,0.00,REDACT,Minor Adaptations
Wyre Council,http://opendatacommunities.org/doc/district-council/wyre,30/05/2022,Resources,Housing General Fund,134A,J A DICKENS LIMITED,05/05/2022,RS141209,180.00,0.00,REDACT,Minor Adaptations
Wyre Council,http://opendatacommunities.org/doc/district-council/wyre,30/05/2022,Resources,Housing General Fund,134A,J A DICKENS LIMITED,05/05/2022,RS141210,400.00,0.00,REDACT,Minor Adaptations
Wyre Council,http://opendatacommunities.org/doc/district-council/wyre,30/05/2022,Resources,Housing General Fund,134A,J A DICKENS LIMITED,05/05/2022,RS141210,380.00,0.00,REDACT,Minor Adaptations
Wyre Council,http://opendatacommunities.org/doc/district-council/wyre,30/05/2022,Resources,Housing General Fund,134A,J A DICKENS LIMITED,19/05/2022,RS141657,400.00,0.00,REDACT,Minor Adaptations
Wyre Council,http://opendatacommunities.org/doc/district-council/wyre,30/05/2022,Resources,Housing General Fund,134A,J A DICKENS LIMITED,19/05/2022,RS141657,400.00,0.00,REDACT,Minor Adaptations
Wyre Council,http://opendatacommunities.org/doc/district-council/wyre,30/05/2022,Resources,Housing General Fund,134A,J A DICKENS LIMITED,19/05/2022,RS141658,120.00,0.00,REDACT,Minor Adaptations
Wyre Council,http://opendatacommunities.org/doc/district-council/wyre,30/05/2022,Resources,Housing General Fund,134A,J A DICKENS LIMITED,19/05/2022,RS141658,311.00,0.00,REDACT,Minor Adaptations
Wyre Council,http://opendatacommunities.org/doc/district-council/wyre,30/05/2022,Resources,Housing General Fund,134A,J A DICKENS LIMITED,19/05/2022,RS141659,100.00,0.00,REDACT,Minor Adaptations
Wyre Council,http://opendatacommunities.org/doc/district-council/wyre,30/05/2022,Resources,Housing General Fund,134A,J A DICKENS LIMITED,19/05/2022,RS141659,187.00,0.00,REDACT,Minor Adaptations
Wyre Council,http://opendatacommunities.org/doc/district-council/wyre,30/05/2022,Resources,Housing General Fund,134A,J A DICKENS LIMITED,19/05/2022,RS141660,60.00,0.00,REDACT,Minor Adaptations
Wyre Council,http://opendatacommunities.org/doc/district-council/wyre,30/05/2022,Resources,Housing General Fund,134A,J A DICKENS LIMITED,19/05/2022,RS141660,94.00,0.00,REDACT,Minor Adaptations
Wyre Council,http://opendatacommunities.org/doc/district-council/wyre,30/05/2022,Resources,Housing General Fund,134A,J A DICKENS LIMITED,05/05/2022,RS141211,360.00,0.00,REDACT,Minor Adaptations
Wyre Council,http://opendatacommunities.org/doc/district-council/wyre,30/05/2022,Resources,Housing General Fund,134A,J A DICKENS LIMITED,05/05/2022,RS141211,280.00,0.00,REDACT,Minor Adaptations
Wyre Council,http://opendatacommunities.org/doc/district-council/wyre,30/05/2022,Resources,Housing General Fund,134A,J A DICKENS LIMITED,06/05/2022,RS141360,60.00,0.00,REDACT,Minor Adaptations
Wyre Council,http://opendatacommunities.org/doc/district-council/wyre,30/05/2022,Resources,Housing General Fund,134A,J A DICKENS LIMITED,06/05/2022,RS141360,94.00,0.00,REDACT,Minor Adaptations
Wyre Council,http://opendatacommunities.org/doc/district-council/wyre,30/05/2022,Resources,Housing General Fund,134A,J A DICKENS LIMITED,06/05/2022,RS141358,120.00,0.00,REDACT,Minor Adaptations
Wyre Council,http://opendatacommunities.org/doc/district-council/wyre,30/05/2022,Resources,Housing General Fund,134A,J A DICKENS LIMITED,06/05/2022,RS141358,188.00,0.00,REDACT,Minor Adaptations
Wyre Council,http://opendatacommunities.org/doc/district-council/wyre,30/05/2022,Resources,Housing General Fund,134A,J A DICKENS LIMITED,06/05/2022,RS141359,440.00,0.00,REDACT,Minor Adaptations
Wyre Council,http://opendatacommunities.org/doc/district-council/wyre,30/05/2022,Resources,Housing General Fund,134A,J A DICKENS LIMITED,06/05/2022,RS141359,420.00,0.00,REDACT,Minor Adaptations
Wyre Council,http://opendatacommunities.org/doc/district-council/wyre,30/05/2022,Resources,Housing General Fund,134A,J A DICKENS LIMITED,06/05/2022,RS141357,94.00,0.00,REDACT,Minor Adaptations
Wyre Council,http://opendatacommunities.org/doc/district-council/wyre,30/05/2022,Resources,Housing General Fund,134A,J A DICKENS LIMITED,06/05/2022,RS141356,60.00,0.00,REDACT,Minor Adaptations
Wyre Council,http://opendatacommunities.org/doc/district-council/wyre,30/05/2022,Resources,Housing General Fund,134A,J A DICKENS LIMITED,06/05/2022,RS141356,94.00,0.00,REDACT,Minor Adaptations
Wyre Council,http://opendatacommunities.org/doc/district-council/wyre,30/05/2022,Resources,Housing General Fund,134A,J A DICKENS LIMITED,06/05/2022,RS141357,60.00,0.00,REDACT,Minor Adaptations
Wyre Council,http://opendatacommunities.org/doc/district-council/wyre,30/05/2022,Resources,Housing General Fund,134A,J A DICKENS LIMITED,05/05/2022,RS141205,60.00,0.00,REDACT,Minor Adaptations
Wyre Council,http://opendatacommunities.org/doc/district-council/wyre,30/05/2022,Resources,Housing General Fund,134A,J A DICKENS LIMITED,05/05/2022,RS141205,94.00,0.00,REDACT,Minor Adaptations
Wyre Council,http://opendatacommunities.org/doc/district-council/wyre,30/05/2022,Resources,Housing General Fund,134A,J A DICKENS LIMITED,05/05/2022,RS141202,60.00,0.00,REDACT,Minor Adaptations
Wyre Council,http://opendatacommunities.org/doc/district-council/wyre,30/05/2022,Resources,Housing General Fund,134A,J A DICKENS LIMITED,05/05/2022,RS141202,73.00,0.00,REDACT,Minor Adaptations
Wyre Council,http://opendatacommunities.org/doc/district-council/wyre,30/05/2022,Resources,Housing General Fund,134A,J A DICKENS LIMITED,05/05/2022,RS141203,80.00,0.00,REDACT,Minor Adaptations
Wyre Council,http://opendatacommunities.org/doc/district-council/wyre,30/05/2022,Resources,Housing General Fund,134A,J A DICKENS LIMITED,05/05/2022,RS141203,74.00,0.00,REDACT,Minor Adaptations
Wyre Council,http://opendatacommunities.org/doc/district-council/wyre,30/05/2022,Resources,Housing General Fund,134A,J A DICKENS LIMITED,05/05/2022,RS141206,60.00,0.00,REDACT,Minor Adaptations
Wyre Council,http://opendatacommunities.org/doc/district-council/wyre,30/05/2022,Resources,Housing General Fund,134A,J A DICKENS LIMITED,05/05/2022,RS141206,94.00,0.00,REDACT,Minor Adaptations
Wyre Council,http://opendatacommunities.org/doc/district-council/wyre,30/05/2022,Resources,Housing General Fund,134A,J A DICKENS LIMITED,05/05/2022,RS141204,160.00,0.00,REDACT,Minor Adaptations
Wyre Council,http://opendatacommunities.org/doc/district-council/wyre,30/05/2022,Resources,Housing General Fund,134A,J A DICKENS LIMITED,05/05/2022,RS141204,148.00,0.00,REDACT,Minor Adaptations
Wyre Council,http://opendatacommunities.org/doc/district-council/wyre,30/05/2022,Resources,Current Assets,130B,SME HCI Ltd,05/05/2022,RS141251,1023.30,0.00,Invoice Number: 138575,Miscellaneous Debits
Wyre Council,http://opendatacommunities.org/doc/district-council/wyre,30/05/2022,Resources,Current Assets,130B,SME HCI Ltd,05/05/2022,RS141252,1864.50,0.00,Invoice Number: 138979,Miscellaneous Debits
Wyre Council,http://opendatacommunities.org/doc/district-council/wyre,30/05/2022,Resources,Support Services,135B,Orange PCS LTD,05/05/2022,RS141126,12.00,0.00,Monthly Charges,Mobile Devices
Wyre Council,http://opendatacommunities.org/doc/district-council/wyre,30/05/2022,Resources,Support Services,135B,Orange PCS LTD,05/05/2022,RS141126,2.75,0.00,Monthly Charges,Mobile Devices
Wyre Council,http://opendatacommunities.org/doc/district-council/wyre,30/05/2022,Resources,Central Services to the Public,131C,Orange PCS LTD,05/05/2022,RS141125,16.00,0.00,Monthly Charges,Mobile Devices
Wyre Council,http://opendatacommunities.org/doc/district-council/wyre,30/05/2022,Resources,Parking Services,133F,Orange PCS LTD,05/05/2022,RS141126,5.50,0.00,Monthly Charges,Mobile Devices
Wyre Council,http://opendatacommunities.org/doc/district-council/wyre,30/05/2022,Resources,Support Services,135B,Orange PCS LTD,05/05/2022,RS141126,17.50,0.00,Monthly Charges,Mobile Devices
Wyre Council,http://opendatacommunities.org/doc/district-council/wyre,30/05/2022,Resources,Support Services,135B,Orange PCS LTD,05/05/2022,RS141125,24.50,0.00,Monthly Charges,Mobile Devices
Wyre Council,http://opendatacommunities.org/doc/district-council/wyre,30/05/2022,Resources,Support Services,135B,Orange PCS LTD,05/05/2022,RS141125,19.50,0.00,Monthly Charges,Mobile Devices
Wyre Council,http://opendatacommunities.org/doc/district-council/wyre,30/05/2022,Resources,Support Services,135B,Orange PCS LTD,05/05/2022,RS141126,10.00,0.00,Monthly Charges,Mobile Devices
Wyre Council,http://opendatacommunities.org/doc/district-council/wyre,30/05/2022,Resources,Support Services,135B,Orange PCS LTD,05/05/2022,RS141126,52.25,0.00,Monthly Charges,Mobile Devices
Wyre Council,http://opendatacommunities.org/doc/district-council/wyre,30/05/2022,Resources,Support Services,135B,Orange PCS LTD,05/05/2022,RS141125,85.54,0.00,Monthly Charges,Mobile Devices
Wyre Council,http://opendatacommunities.org/doc/district-council/wyre,30/05/2022,Resources,Support Services,135B,Orange PCS LTD,05/05/2022,RS141126,2.75,0.00,Monthly Charges,Mobile Devices
Wyre Council,http://opendatacommunities.org/doc/district-council/wyre,30/05/2022,Resources,Support Services,135B,Orange PCS LTD,05/05/2022,RS141126,8.25,0.00,Monthly Charges,Mobile Devices
Wyre Council,http://opendatacommunities.org/doc/district-council/wyre,30/05/2022,Resources,Support Services,135B,Orange PCS LTD,05/05/2022,RS141126,11.00,0.00,Monthly Charges,Mobile Devices
Wyre Council,http://opendatacommunities.org/doc/district-council/wyre,30/05/2022,Resources,Support Services,135B,Orange PCS LTD,05/05/2022,RS141126,62.75,0.00,Monthly Charges,Mobile Devices
Wyre Council,http://opendatacommunities.org/doc/district-council/wyre,30/05/2022,Resources,Housing General Fund,134A,Orange PCS LTD,05/05/2022,RS141126,2.75,0.00,Monthly Charges,Mobile Devices
Wyre Council,http://opendatacommunities.org/doc/district-council/wyre,30/05/2022,Resources,Support Services,135B,Orange PCS LTD,05/05/2022,RS141126,-14.40,0.00,Monthly Charges,Mobile Devices
Wyre Council,http://opendatacommunities.org/doc/district-council/wyre,30/05/2022,Resources,Support Services,135B,Orange PCS LTD,05/05/2022,RS141126,32.85,0.00,Monthly Charges,Mobile Devices
Wyre Council,http://opendatacommunities.org/doc/district-council/wyre,30/05/2022,Resources,Housing General Fund,134A,Orange PCS LTD,05/05/2022,RS141126,42.56,0.00,Monthly Charges,Mobile Devices
Wyre Council,http://opendatacommunities.org/doc/district-council/wyre,30/05/2022,Resources,Housing General Fund,134A,Orange PCS LTD,05/05/2022,RS141126,30.00,0.00,Monthly Charges,Mobile Devices
Wyre Council,http://opendatacommunities.org/doc/district-council/wyre,30/05/2022,Resources,Support Services,135B,Orange PCS LTD,05/05/2022,RS141126,5.50,0.00,Monthly Charges,Mobile Devices
Wyre Council,http://opendatacommunities.org/doc/district-council/wyre,30/05/2022,Resources,Support Services,135B,Orange PCS LTD,05/05/2022,RS141125,34.66,0.00,Monthly Charges,Mobile Devices
Wyre Council,http://opendatacommunities.org/doc/district-council/wyre,30/05/2022,Resources,Support Services,135B,Orange PCS LTD,05/05/2022,RS141125,19.50,0.00,Monthly Charges,Mobile Devices
Wyre Council,http://opendatacommunities.org/doc/district-council/wyre,30/05/2022,Resources,Support Services,135B,Orange PCS LTD,05/05/2022,RS141125,16.00,0.00,Monthly Charges,Mobile Devices
Wyre Council,http://opendatacommunities.org/doc/district-council/wyre,30/05/2022,Resources,Environmental Services,132B,Orange PCS LTD,05/05/2022,RS141125,24.50,0.00,Monthly Charges,Mobile Devices
Wyre Council,http://opendatacommunities.org/doc/district-council/wyre,30/05/2022,Resources,Planning and Development Servs,132C,Orange PCS LTD,05/05/2022,RS141126,2.75,0.00,Monthly Charges,Mobile Devices
Wyre Council,http://opendatacommunities.org/doc/district-council/wyre,30/05/2022,Resources,Cultural and Related Services,132A,Orange PCS LTD,05/05/2022,RS141126,30.00,0.00,Monthly Charges,Mobile Devices
Wyre Council,http://opendatacommunities.org/doc/district-council/wyre,30/05/2022,Resources,Corporate and Democratic Core,131A,Orange PCS LTD,05/05/2022,RS141126,158.75,0.00,Monthly Charges,Mobile Devices
Wyre Council,http://opendatacommunities.org/doc/district-council/wyre,30/05/2022,Resources,Support Services,135B,Orange PCS LTD,05/05/2022,RS141126,20.55,0.00,Monthly Charges,Mobile Devices
Wyre Council,http://opendatacommunities.org/doc/district-council/wyre,30/05/2022,Resources,Support Services,135B,Orange PCS LTD,05/05/2022,RS141125,19.50,0.00,Monthly Charges,Mobile Devices
Wyre Council,http://opendatacommunities.org/doc/district-council/wyre,30/05/2022,Resources,Support Services,135B,Orange PCS LTD,05/05/2022,RS141125,19.50,0.00,Monthly Charges,Mobile Devices
Wyre Council,http://opendatacommunities.org/doc/district-council/wyre,30/05/2022,Resources,Support Services,135B,Orange PCS LTD,05/05/2022,RS141126,5.50,0.00,Monthly Charges,Mobile Devices
Wyre Council,http://opendatacommunities.org/doc/district-council/wyre,30/05/2022,Resources,Environmental Services,132B,Orange PCS LTD,05/05/2022,RS141126,11.00,0.00,Monthly Charges,Mobile Devices
Wyre Council,http://opendatacommunities.org/doc/district-council/wyre,30/05/2022,Resources,Support Services,135B,Orange PCS LTD,05/05/2022,RS141126,24.50,0.00,Monthly Charges,Mobile Devices
Wyre Council,http://opendatacommunities.org/doc/district-council/wyre,30/05/2022,Resources,Support Services,135B,Orange PCS LTD,05/05/2022,RS141125,74.50,0.00,Monthly Charges,Mobile Devices
Wyre Council,http://opendatacommunities.org/doc/district-council/wyre,30/05/2022,Resources,Support Services,135B,Orange PCS LTD,05/05/2022,RS141125,24.50,0.00,Monthly Charges,Mobile Devices
Wyre Council,http://opendatacommunities.org/doc/district-council/wyre,30/05/2022,Resources,Support Services,135B,Orange PCS LTD,05/05/2022,RS141126,5.50,0.00,Monthly Charges,Mobile Devices
Wyre Council,http://opendatacommunities.org/doc/district-council/wyre,30/05/2022,Resources,Support Services,135B,Orange PCS LTD,05/05/2022,RS141126,16.50,0.00,Monthly Charges,Mobile Devices
Wyre Council,http://opendatacommunities.org/doc/district-council/wyre,30/05/2022,Resources,Support Services,135B,Orange PCS LTD,05/05/2022,RS141126,8.25,0.00,Monthly Charges,Mobile Devices
Wyre Council,http://opendatacommunities.org/doc/district-council/wyre,30/05/2022,Resources,Support Services,135B,Orange PCS LTD,05/05/2022,RS141125,2.75,0.00,Monthly Charges,Mobile Devices
Wyre Council,http://opendatacommunities.org/doc/district-council/wyre,30/05/2022,Resources,Planning and Development Servs,132C,Orange PCS LTD,19/05/2022,RS141565,2.75,0.00,Monthly Charges,Mobile Devices
Wyre Council,http://opendatacommunities.org/doc/district-council/wyre,30/05/2022,Resources,Housing General Fund,134A,Orange PCS LTD,19/05/2022,RS141565,51.81,0.00,Monthly Charges,Mobile Devices
Wyre Council,http://opendatacommunities.org/doc/district-council/wyre,30/05/2022,Resources,Housing General Fund,134A,Orange PCS LTD,19/05/2022,RS141565,48.00,0.00,Monthly Charges,Mobile Devices
Wyre Council,http://opendatacommunities.org/doc/district-council/wyre,30/05/2022,Resources,Support Services,135B,Orange PCS LTD,19/05/2022,RS141565,12.00,0.00,Monthly Charges,Mobile Devices
Wyre Council,http://opendatacommunities.org/doc/district-council/wyre,30/05/2022,Resources,Support Services,135B,Orange PCS LTD,19/05/2022,RS141565,2.75,0.00,Monthly Charges,Mobile Devices
Wyre Council,http://opendatacommunities.org/doc/district-council/wyre,30/05/2022,Resources,Support Services,135B,Orange PCS LTD,19/05/2022,RS141565,2.75,0.00,Monthly Charges,Mobile Devices
Wyre Council,http://opendatacommunities.org/doc/district-council/wyre,30/05/2022,Resources,Support Services,135B,Orange PCS LTD,19/05/2022,RS141565,2.75,0.00,Monthly Charges,Mobile Devices
Wyre Council,http://opendatacommunities.org/doc/district-council/wyre,30/05/2022,Resources,Support Services,135B,Orange PCS LTD,19/05/2022,RS141565,2.75,0.00,Monthly Charges,Mobile Devices
Wyre Council,http://opendatacommunities.org/doc/district-council/wyre,30/05/2022,Resources,Support Services,135B,Orange PCS LTD,19/05/2022,RS141565,2.75,0.00,Monthly Charges,Mobile Devices
Wyre Council,http://opendatacommunities.org/doc/district-council/wyre,30/05/2022,Resources,Support Services,135B,Orange PCS LTD,19/05/2022,RS141565,2.75,0.00,Monthly Charges,Mobile Devices
Wyre Council,http://opendatacommunities.org/doc/district-council/wyre,30/05/2022,Resources,Support Services,135B,Orange PCS LTD,19/05/2022,RS141565,2.75,0.00,Monthly Charges,Mobile Devices
Wyre Council,http://opendatacommunities.org/doc/district-council/wyre,30/05/2022,Resources,Support Services,135B,Orange PCS LTD,19/05/2022,RS141565,2.75,0.00,Monthly Charges,Mobile Devices
Wyre Council,http://opendatacommunities.org/doc/district-council/wyre,30/05/2022,Resources,Support Services,135B,Orange PCS LTD,19/05/2022,RS141565,30.00,0.00,Monthly Charges,Mobile Devices
Wyre Council,http://opendatacommunities.org/doc/district-council/wyre,30/05/2022,Resources,Support Services,135B,Orange PCS LTD,19/05/2022,RS141565,19.50,0.00,Monthly Charges,Mobile Devices
Wyre Council,http://opendatacommunities.org/doc/district-council/wyre,30/05/2022,Resources,Support Services,135B,Orange PCS LTD,19/05/2022,RS141565,2.75,0.00,Monthly Charges,Mobile Devices
Wyre Council,http://opendatacommunities.org/doc/district-council/wyre,30/05/2022,Resources,Support Services,135B,Orange PCS LTD,19/05/2022,RS141565,2.75,0.00,Monthly Charges,Mobile Devices
Wyre Council,http://opendatacommunities.org/doc/district-council/wyre,30/05/2022,Resources,Support Services,135B,Orange PCS LTD,19/05/2022,RS141564,85.54,0.00,Monthly Charges,Mobile Devices
Wyre Council,http://opendatacommunities.org/doc/district-council/wyre,30/05/2022,Resources,Support Services,135B,Orange PCS LTD,19/05/2022,RS141564,2.75,0.00,Monthly Charges,Mobile Devices
Wyre Council,http://opendatacommunities.org/doc/district-council/wyre,30/05/2022,Resources,Support Services,135B,Orange PCS LTD,19/05/2022,RS141564,24.50,0.00,Monthly Charges,Mobile Devices
Wyre Council,http://opendatacommunities.org/doc/district-council/wyre,30/05/2022,Resources,Support Services,135B,Orange PCS LTD,19/05/2022,RS141564,19.50,0.00,Monthly Charges,Mobile Devices
Wyre Council,http://opendatacommunities.org/doc/district-council/wyre,30/05/2022,Resources,Central Services to the Public,131C,Orange PCS LTD,19/05/2022,RS141564,16.00,0.00,Monthly Charges,Mobile Devices
Wyre Council,http://opendatacommunities.org/doc/district-council/wyre,30/05/2022,Resources,Support Services,135B,Orange PCS LTD,19/05/2022,RS141564,43.79,0.00,Monthly Charges,Mobile Devices
Wyre Council,http://opendatacommunities.org/doc/district-council/wyre,30/05/2022,Resources,Support Services,135B,Orange PCS LTD,19/05/2022,RS141564,24.50,0.00,Monthly Charges,Mobile Devices
Wyre Council,http://opendatacommunities.org/doc/district-council/wyre,30/05/2022,Resources,Support Services,135B,Orange PCS LTD,19/05/2022,RS141564,19.50,0.00,Monthly Charges,Mobile Devices
Wyre Council,http://opendatacommunities.org/doc/district-council/wyre,30/05/2022,Resources,Support Services,135B,Orange PCS LTD,19/05/2022,RS141564,19.50,0.00,Monthly Charges,Mobile Devices
Wyre Council,http://opendatacommunities.org/doc/district-council/wyre,30/05/2022,Resources,Support Services,135B,Orange PCS LTD,19/05/2022,RS141564,38.00,0.00,Monthly Charges,Mobile Devices
Wyre Council,http://opendatacommunities.org/doc/district-council/wyre,30/05/2022,Resources,Support Services,135B,Orange PCS LTD,19/05/2022,RS141564,19.50,0.00,Monthly Charges,Mobile Devices
Wyre Council,http://opendatacommunities.org/doc/district-council/wyre,30/05/2022,Resources,Support Services,135B,Orange PCS LTD,19/05/2022,RS141564,16.00,0.00,Monthly Charges,Mobile Devices
Wyre Council,http://opendatacommunities.org/doc/district-council/wyre,30/05/2022,Resources,Environmental Services,132B,Orange PCS LTD,19/05/2022,RS141564,24.50,0.00,Monthly Charges,Mobile Devices
Wyre Council,http://opendatacommunities.org/doc/district-council/wyre,30/05/2022,Resources,Support Services,135B,Orange PCS LTD,19/05/2022,RS141565,2.75,0.00,Monthly Charges,Mobile Devices
Wyre Council,http://opendatacommunities.org/doc/district-council/wyre,30/05/2022,Resources,Support Services,135B,Orange PCS LTD,19/05/2022,RS141565,2.75,0.00,Monthly Charges,Mobile Devices
Wyre Council,http://opendatacommunities.org/doc/district-council/wyre,30/05/2022,Resources,Support Services,135B,Orange PCS LTD,19/05/2022,RS141565,2.75,0.00,Monthly Charges,Mobile Devices
Wyre Council,http://opendatacommunities.org/doc/district-council/wyre,30/05/2022,Resources,Support Services,135B,Orange PCS LTD,19/05/2022,RS141565,2.75,0.00,Monthly Charges,Mobile Devices
Wyre Council,http://opendatacommunities.org/doc/district-council/wyre,30/05/2022,Resources,Environmental Services,132B,Orange PCS LTD,19/05/2022,RS141565,2.75,0.00,Monthly Charges,Mobile Devices
Wyre Council,http://opendatacommunities.org/doc/district-council/wyre,30/05/2022,Resources,Environmental Services,132B,Orange PCS LTD,19/05/2022,RS141565,2.75,0.00,Monthly Charges,Mobile Devices
Wyre Council,http://opendatacommunities.org/doc/district-council/wyre,30/05/2022,Resources,Environmental Services,132B,Orange PCS LTD,19/05/2022,RS141565,2.75,0.00,Monthly Charges,Mobile Devices
Wyre Council,http://opendatacommunities.org/doc/district-council/wyre,30/05/2022,Resources,Environmental Services,132B,Orange PCS LTD,19/05/2022,RS141565,2.75,0.00,Monthly Charges,Mobile Devices
Wyre Council,http://opendatacommunities.org/doc/district-council/wyre,30/05/2022,Resources,Support Services,135B,Orange PCS LTD,19/05/2022,RS141565,10.00,0.00,Monthly Charges,Mobile Devices
Wyre Council,http://opendatacommunities.org/doc/district-council/wyre,30/05/2022,Resources,Parking Services,133F,Orange PCS LTD,19/05/2022,RS141565,2.75,0.00,Monthly Charges,Mobile Devices
Wyre Council,http://opendatacommunities.org/doc/district-council/wyre,30/05/2022,Resources,Parking Services,133F,Orange PCS LTD,19/05/2022,RS141565,2.75,0.00,Monthly Charges,Mobile Devices
Wyre Council,http://opendatacommunities.org/doc/district-council/wyre,30/05/2022,Resources,Support Services,135B,Orange PCS LTD,19/05/2022,RS141565,24.50,0.00,Monthly Charges,Mobile Devices
Wyre Council,http://opendatacommunities.org/doc/district-council/wyre,30/05/2022,Resources,Support Services,135B,Orange PCS LTD,19/05/2022,RS141565,19.50,0.00,Monthly Charges,Mobile Devices
Wyre Council,http://opendatacommunities.org/doc/district-council/wyre,30/05/2022,Resources,Support Services,135B,Orange PCS LTD,19/05/2022,RS141565,16.00,0.00,Monthly Charges,Mobile Devices
Wyre Council,http://opendatacommunities.org/doc/district-council/wyre,30/05/2022,Resources,Support Services,135B,Orange PCS LTD,19/05/2022,RS141565,2.75,0.00,Monthly Charges,Mobile Devices
Wyre Council,http://opendatacommunities.org/doc/district-council/wyre,30/05/2022,Resources,Housing General Fund,134A,Orange PCS LTD,19/05/2022,RS141565,30.00,0.00,Monthly Charges,Mobile Devices
Wyre Council,http://opendatacommunities.org/doc/district-council/wyre,30/05/2022,Resources,Housing General Fund,134A,Orange PCS LTD,19/05/2022,RS141565,2.75,0.00,Monthly Charges,Mobile Devices
Wyre Council,http://opendatacommunities.org/doc/district-council/wyre,30/05/2022,Resources,Support Services,135B,Orange PCS LTD,19/05/2022,RS141565,2.75,0.00,Monthly Charges,Mobile Devices
Wyre Council,http://opendatacommunities.org/doc/district-council/wyre,30/05/2022,Resources,Support Services,135B,Orange PCS LTD,19/05/2022,RS141565,2.75,0.00,Monthly Charges,Mobile Devices
Wyre Council,http://opendatacommunities.org/doc/district-council/wyre,30/05/2022,Resources,Support Services,135B,Orange PCS LTD,19/05/2022,RS141565,2.75,0.00,Monthly Charges,Mobile Devices
Wyre Council,http://opendatacommunities.org/doc/district-council/wyre,30/05/2022,Resources,Support Services,135B,Orange PCS LTD,19/05/2022,RS141565,2.75,0.00,Monthly Charges,Mobile Devices
Wyre Council,http://opendatacommunities.org/doc/district-council/wyre,30/05/2022,Resources,Support Services,135B,Orange PCS LTD,19/05/2022,RS141565,2.75,0.00,Monthly Charges,Mobile Devices
Wyre Council,http://opendatacommunities.org/doc/district-council/wyre,30/05/2022,Resources,Support Services,135B,Orange PCS LTD,19/05/2022,RS141565,2.75,0.00,Monthly Charges,Mobile Devices
Wyre Council,http://opendatacommunities.org/doc/district-council/wyre,30/05/2022,Resources,Support Services,135B,Orange PCS LTD,19/05/2022,RS141565,2.75,0.00,Monthly Charges,Mobile Devices
Wyre Council,http://opendatacommunities.org/doc/district-council/wyre,30/05/2022,Resources,Support Services,135B,Orange PCS LTD,19/05/2022,RS141565,18.00,0.00,Monthly Charges,Mobile Devices
Wyre Council,http://opendatacommunities.org/doc/district-council/wyre,30/05/2022,Resources,Support Services,135B,Orange PCS LTD,19/05/2022,RS141565,10.00,0.00,Monthly Charges,Mobile Devices
Wyre Council,http://opendatacommunities.org/doc/district-council/wyre,30/05/2022,Resources,Support Services,135B,Orange PCS LTD,19/05/2022,RS141565,2.75,0.00,Monthly Charges,Mobile Devices
Wyre Council,http://opendatacommunities.org/doc/district-council/wyre,30/05/2022,Resources,Support Services,135B,Orange PCS LTD,19/05/2022,RS141565,2.75,0.00,Monthly Charges,Mobile Devices
Wyre Council,http://opendatacommunities.org/doc/district-council/wyre,30/05/2022,Resources,Housing General Fund,134A,Orange PCS LTD,19/05/2022,RS141565,48.00,0.00,Monthly Charges,Mobile Devices
Wyre Council,http://opendatacommunities.org/doc/district-council/wyre,30/05/2022,Resources,Housing General Fund,134A,Orange PCS LTD,19/05/2022,RS141565,2.75,0.00,Monthly Charges,Mobile Devices
Wyre Council,http://opendatacommunities.org/doc/district-council/wyre,30/05/2022,Resources,Housing General Fund,134A,Orange PCS LTD,19/05/2022,RS141565,2.75,0.00,Monthly Charges,Mobile Devices
Wyre Council,http://opendatacommunities.org/doc/district-council/wyre,30/05/2022,Resources,Support Services,135B,Orange PCS LTD,19/05/2022,RS141565,12.00,0.00,Monthly Charges,Mobile Devices
Wyre Council,http://opendatacommunities.org/doc/district-council/wyre,30/05/2022,Resources,Cultural and Related Services,132A,Orange PCS LTD,19/05/2022,RS141565,30.00,0.00,Monthly Charges,Mobile Devices
Wyre Council,http://opendatacommunities.org/doc/district-council/wyre,30/05/2022,Resources,Corporate and Democratic Core,131A,Orange PCS LTD,19/05/2022,RS141565,19.50,0.00,Monthly Charges,Mobile Devices
Wyre Council,http://opendatacommunities.org/doc/district-council/wyre,30/05/2022,Resources,Corporate and Democratic Core,131A,Orange PCS LTD,19/05/2022,RS141565,19.50,0.00,Monthly Charges,Mobile Devices
Wyre Council,http://opendatacommunities.org/doc/district-council/wyre,30/05/2022,Resources,Corporate and Democratic Core,131A,Orange PCS LTD,19/05/2022,RS141565,19.50,0.00,Monthly Charges,Mobile Devices
Wyre Council,http://opendatacommunities.org/doc/district-council/wyre,30/05/2022,Resources,Corporate and Democratic Core,131A,Orange PCS LTD,19/05/2022,RS141565,19.50,0.00,Monthly Charges,Mobile Devices
Wyre Council,http://opendatacommunities.org/doc/district-council/wyre,30/05/2022,Resources,Corporate and Democratic Core,131A,Orange PCS LTD,19/05/2022,RS141565,19.50,0.00,Monthly Charges,Mobile Devices
Wyre Council,http://opendatacommunities.org/doc/district-council/wyre,30/05/2022,Resources,Corporate and Democratic Core,131A,Orange PCS LTD,19/05/2022,RS141565,2.75,0.00,Monthly Charges,Mobile Devices
Wyre Council,http://opendatacommunities.org/doc/district-council/wyre,30/05/2022,Resources,Corporate and Democratic Core,131A,Orange PCS LTD,19/05/2022,RS141565,19.50,0.00,Monthly Charges,Mobile Devices
Wyre Council,http://opendatacommunities.org/doc/district-council/wyre,30/05/2022,Resources,Corporate and Democratic Core,131A,Orange PCS LTD,19/05/2022,RS141565,19.50,0.00,Monthly Charges,Mobile Devices
Wyre Council,http://opendatacommunities.org/doc/district-council/wyre,30/05/2022,Resources,Support Services,135B,Orange PCS LTD,19/05/2022,RS141565,2.75,0.00,Monthly Charges,Mobile Devices
Wyre Council,http://opendatacommunities.org/doc/district-council/wyre,30/05/2022,Resources,Support Services,135B,Orange PCS LTD,19/05/2022,RS141565,2.75,0.00,Monthly Charges,Mobile Devices
Wyre Council,http://opendatacommunities.org/doc/district-council/wyre,30/05/2022,Resources,Support Services,135B,Orange PCS LTD,19/05/2022,RS141565,20.00,0.00,Monthly Charges,Mobile Devices
Wyre Council,http://opendatacommunities.org/doc/district-council/wyre,30/05/2022,Resources,Support Services,135B,Orange PCS LTD,19/05/2022,RS141565,19.50,0.00,Monthly Charges,Mobile Devices
Wyre Council,http://opendatacommunities.org/doc/district-council/wyre,30/05/2022,Resources,Support Services,135B,Orange PCS LTD,19/05/2022,RS141565,2.75,0.00,Monthly Charges,Mobile Devices
Wyre Council,http://opendatacommunities.org/doc/district-council/wyre,30/05/2022,Resources,Support Services,135B,Orange PCS LTD,19/05/2022,RS141565,2.75,0.00,Monthly Charges,Mobile Devices
Wyre Council,http://opendatacommunities.org/doc/district-council/wyre,30/05/2022,Resources,Support Services,135B,Orange PCS LTD,19/05/2022,RS141565,2.75,0.00,Monthly Charges,Mobile Devices
Wyre Council,http://opendatacommunities.org/doc/district-council/wyre,30/05/2022,Resources,Corporate and Democratic Core,131A,Orange PCS LTD,19/05/2022,RS141565,19.50,0.00,Monthly Charges,Mobile Devices
Wyre Council,http://opendatacommunities.org/doc/district-council/wyre,30/05/2022,Resources,Support Services,135B,Orange PCS LTD,19/05/2022,RS141565,2.75,0.00,Monthly Charges,Mobile Devices
Wyre Council,http://opendatacommunities.org/doc/district-council/wyre,30/05/2022,Resources,Support Services,135B,Orange PCS LTD,19/05/2022,RS141565,2.75,0.00,Monthly Charges,Mobile Devices
Wyre Council,http://opendatacommunities.org/doc/district-council/wyre,30/05/2022,Resources,Support Services,135B,Orange PCS LTD,19/05/2022,RS141565,2.75,0.00,Monthly Charges,Mobile Devices
Wyre Council,http://opendatacommunities.org/doc/district-council/wyre,30/05/2022,Resources,Support Services,135B,Orange PCS LTD,19/05/2022,RS141565,2.75,0.00,Monthly Charges,Mobile Devices
Wyre Council,http://opendatacommunities.org/doc/district-council/wyre,30/05/2022,Resources,Support Services,135B,Orange PCS LTD,19/05/2022,RS141565,2.75,0.00,Monthly Charges,Mobile Devices
Wyre Council,http://opendatacommunities.org/doc/district-council/wyre,30/05/2022,Resources,Support Services,135B,Orange PCS LTD,19/05/2022,RS141565,2.75,0.00,Monthly Charges,Mobile Devices
Wyre Council,http://opendatacommunities.org/doc/district-council/wyre,30/05/2022,Resources,Support Services,135B,Orange PCS LTD,19/05/2022,RS141565,2.75,0.00,Monthly Charges,Mobile Devices
Wyre Council,http://opendatacommunities.org/doc/district-council/wyre,30/05/2022,Resources,Support Services,135B,Orange PCS LTD,19/05/2022,RS141565,2.75,0.00,Monthly Charges,Mobile Devices
Wyre Council,http://opendatacommunities.org/doc/district-council/wyre,30/05/2022,Resources,Support Services,135B,Orange PCS LTD,19/05/2022,RS141565,16.00,0.00,Monthly Charges,Mobile Devices
Wyre Council,http://opendatacommunities.org/doc/district-council/wyre,30/05/2022,Resources,Support Services,135B,Orange PCS LTD,19/05/2022,RS141565,3.00,0.00,Monthly Charges,Mobile Devices
Wyre Council,http://opendatacommunities.org/doc/district-council/wyre,30/05/2022,Resources,Support Services,135B,Orange PCS LTD,19/05/2022,RS141565,2.75,0.00,Monthly Charges,Mobile Devices
Wyre Council,http://opendatacommunities.org/doc/district-council/wyre,30/05/2022,Resources,Support Services,135B,Orange PCS LTD,19/05/2022,RS141565,2.75,0.00,Monthly Charges,Mobile Devices
Wyre Council,http://opendatacommunities.org/doc/district-council/wyre,30/05/2022,Resources,Support Services,135B,Orange PCS LTD,19/05/2022,RS141565,2.75,0.00,Monthly Charges,Mobile Devices
Wyre Council,http://opendatacommunities.org/doc/district-council/wyre,30/05/2022,Finance,Current Assets,130B,,24/05/2022,WPST00054704,345262.43,0.00,,NNDR Refunds
Wyre Council,http://opendatacommunities.org/doc/district-council/wyre,30/05/2022,Finance,Current Assets,130B,,10/05/2022,WPST00050207,5015.47,0.00,,NNDR Refunds
Wyre Council,http://opendatacommunities.org/doc/district-council/wyre,30/05/2022,Finance,Current Assets,130B,,11/05/2022,WPST00051739,5015.47,0.00,,NNDR Refunds
Wyre Council,http://opendatacommunities.org/doc/district-council/wyre,30/05/2022,Finance,Current Assets,130B,,11/05/2022,WPST00051726,1347.19,0.00,,NNDR Refunds
Wyre Council,http://opendatacommunities.org/doc/district-council/wyre,30/05/2022,Finance,Current Assets,130B,,17/05/2022,WPST00052605,4005.42,0.00,,NNDR Refunds
Wyre Council,http://opendatacommunities.org/doc/district-council/wyre,30/05/2022,Resources,Support Services,135B,People Asset Management LTD,26/05/2022,RS141147,-590.00,0.00,Monthly service charge November 2021,Occupational Health Fees
Wyre Council,http://opendatacommunities.org/doc/district-council/wyre,30/05/2022,Resources,Support Services,135B,People Asset Management LTD,03/05/2022,RS140965,990.08,0.00,Monthly Occupational Health Service Charge,Occupational Health Fees
Wyre Council,http://opendatacommunities.org/doc/district-council/wyre,30/05/2022,Resources,Support Services,135B,People Asset Management LTD,26/05/2022,RS141353,990.08,0.00,Monthly Occupational Health Service Charge,Occupational Health Fees
Wyre Council,http://opendatacommunities.org/doc/district-council/wyre,30/05/2022,Resources,Support Services,135B,People Asset Management LTD,26/05/2022,RS138927,465.00,0.00,Monthly Invoice Service Charge - Dec 21,Occupational Health Fees
Wyre Council,http://opendatacommunities.org/doc/district-council/wyre,30/05/2022,Resources,Support Services,135B,People Asset Management LTD,26/05/2022,RS137716,440.00,0.00,Monthly Service Charge - Oct 2021,Occupational Health Fees
Wyre Council,http://opendatacommunities.org/doc/district-council/wyre,30/05/2022,Resources,Support Services,135B,People Asset Management LTD,26/05/2022,RS138336,675.00,0.00,Monthly service charge November 2021,Occupational Health Fees
Wyre Council,http://opendatacommunities.org/doc/district-council/wyre,30/05/2022,Resources,Support Services,135B,People Asset Management LTD,26/05/2022,RS138336,245.00,0.00,Monthly service charge November 2021,Occupational Health Fees
Wyre Council,http://opendatacommunities.org/doc/district-council/wyre,30/05/2022,Resources,Support Services,135B,People Asset Management LTD,18/05/2022,RS141142,85.00,0.00,March 22 Monthly Service Charge,Occupational Health Fees
Wyre Council,http://opendatacommunities.org/doc/district-council/wyre,30/05/2022,Resources,Support Services,135B,People Asset Management LTD,18/05/2022,RS141142,39.90,0.00,March 22 Monthly Service Charge,Occupational Health Fees
Wyre Council,http://opendatacommunities.org/doc/district-council/wyre,30/05/2022,Resources,Support Services,135B,Karen Openshaw Consultancy,17/05/2022,RS141582,520.00,0.00,To provision of Listening Ear and Mindfulness sessions 1 Apr 2022 - 31 March 2023,Occupational Health Fees
Wyre Council,http://opendatacommunities.org/doc/district-council/wyre,30/05/2022,People and Places,Central Services to the Public,131C,Police and Crime Commissioner for Lancashire,05/05/2022,PE141311,896.06,0.00,LRF Secretary Contribution - 2022-2023,Other Contributions
Wyre Council,http://opendatacommunities.org/doc/district-council/wyre,30/05/2022,People and Places,Parking Services,133F,ELECTRIC BLUE UK,05/05/2022,PE141188,73743.75,0.00,"Provide, install and maintain 23 fast chargers to Wyre car parks as agreed under OZEV ORCs scheme.",Other Contributions
Wyre Council,http://opendatacommunities.org/doc/district-council/wyre,30/05/2022,People and Places,Parking Services,133F,ELECTRIC BLUE UK,05/05/2022,PE141188,13000.00,0.00,Provide and install 23 EV chargers to Wyre car parks under ORCS approval. Wyre Council contribution.,Other Contributions
Wyre Council,http://opendatacommunities.org/doc/district-council/wyre,30/05/2022,People and Places,Cultural and Related Services,132A,ELECTRIC BLUE UK,05/05/2022,PE141188,16818.75,0.00,"Provide, install and maintain 23 fast chargers to Wyre car parks as agreed under OZEV ORCs scheme.",Other Contributions
Wyre Council,http://opendatacommunities.org/doc/district-council/wyre,30/05/2022,People and Places,Cultural and Related Services,132A,ELECTRIC BLUE UK,05/05/2022,PE141188,5175.00,0.00,"Provide, install and maintain 23 fast chargers to Wyre car parks as agreed under OZEV ORCs scheme.",Other Contributions
Wyre Council,http://opendatacommunities.org/doc/district-council/wyre,30/05/2022,People and Places,Parking Services,133F,ELECTRIC BLUE UK,05/05/2022,PE141188,16818.75,0.00,"Provide, install and maintain 23 fast chargers to Wyre car parks as agreed under OZEV ORCs scheme.",Other Contributions
Wyre Council,http://opendatacommunities.org/doc/district-council/wyre,30/05/2022,People and Places,Support Services,135B,ELECTRIC BLUE UK,05/05/2022,PE141188,16818.75,0.00,"Provide, install and maintain 23 fast chargers to Wyre car parks as agreed under OZEV ORCs scheme.",Other Contributions
Wyre Council,http://opendatacommunities.org/doc/district-council/wyre,30/05/2022,People and Places,Parking Services,133F,CHIPSIDE LTD,12/05/2022,PE141143,30.00,0.00,Monthly data sim April 2022,Other Local Authorities
Wyre Council,http://opendatacommunities.org/doc/district-council/wyre,30/05/2022,People and Places,Parking Services,133F,CHIPSIDE LTD,12/05/2022,PE141128,42.00,0.00,Chipside Banking transaction fees for March 2022,Other Local Authorities
Wyre Council,http://opendatacommunities.org/doc/district-council/wyre,30/05/2022,People and Places,Parking Services,133F,A1 Streamline Road,05/05/2022,PE141345,1183.75,0.00,"Relining to Albert Street car park, Fleetwood.Undertake relining works to car park, as discussed","Paths, Roads and Car Park Mtnce Annual"
Wyre Council,http://opendatacommunities.org/doc/district-council/wyre,30/05/2022,People and Places,Parking Services,133F,TARMAC TRADING LTD,11/05/2022,PE141265,559.72,0.00,Limestone   Ticket 1002559689 22.4.22,"Paths, Roads and Car Park Mtnce Annual"
Wyre Council,http://opendatacommunities.org/doc/district-council/wyre,30/05/2022,People and Places,Support Services,135B,GARRY CARR BUILDING SERVICES LTD,18/05/2022,PE141638,182.00,0.00,mouse proofing,Pest Control
Wyre Council,http://opendatacommunities.org/doc/district-council/wyre,30/05/2022,People and Places,Support Services,135B,Allstar Business Solutions LTD,30/05/2022,PE141683,170.03,0.00,Monthly Charges,Petrol
Wyre Council,http://opendatacommunities.org/doc/district-council/wyre,30/05/2022,People and Places,Support Services,135B,Allstar Business Solutions LTD,30/05/2022,PE141683,41.46,0.00,Monthly Charges,Petrol
Wyre Council,http://opendatacommunities.org/doc/district-council/wyre,30/05/2022,People and Places,Support Services,135B,Allstar Business Solutions LTD,30/05/2022,PE141683,90.16,0.00,Monthly Charges,Petrol
Wyre Council,http://opendatacommunities.org/doc/district-council/wyre,30/05/2022,People and Places,Support Services,135B,Allstar Business Solutions LTD,30/05/2022,PE141683,142.82,0.00,Monthly Charges,Petrol
Wyre Council,http://opendatacommunities.org/doc/district-council/wyre,30/05/2022,People and Places,Support Services,135B,Allstar Business Solutions LTD,30/05/2022,PE141683,41.74,0.00,Monthly Charges,Petrol
Wyre Council,http://opendatacommunities.org/doc/district-council/wyre,30/05/2022,People and Places,Support Services,135B,Allstar Business Solutions LTD,30/05/2022,PE141683,58.35,0.00,Monthly Charges,Petrol
Wyre Council,http://opendatacommunities.org/doc/district-council/wyre,30/05/2022,People and Places,Support Services,135B,Allstar Business Solutions LTD,16/05/2022,PE141168,110.50,0.00,Fuel Charges,Petrol
Wyre Council,http://opendatacommunities.org/doc/district-council/wyre,30/05/2022,People and Places,Support Services,135B,Allstar Business Solutions LTD,16/05/2022,PE141168,49.07,0.00,Fuel Charges,Petrol
Wyre Council,http://opendatacommunities.org/doc/district-council/wyre,30/05/2022,People and Places,Support Services,135B,Allstar Business Solutions LTD,16/05/2022,PE141168,51.92,0.00,Fuel Charges,Petrol
Wyre Council,http://opendatacommunities.org/doc/district-council/wyre,30/05/2022,People and Places,Support Services,135B,Allstar Business Solutions LTD,16/05/2022,PE141168,95.69,0.00,Fuel Charges,Petrol
Wyre Council,http://opendatacommunities.org/doc/district-council/wyre,30/05/2022,People and Places,Support Services,135B,Allstar Business Solutions LTD,16/05/2022,PE141168,47.20,0.00,Fuel Charges,Petrol
Wyre Council,http://opendatacommunities.org/doc/district-council/wyre,30/05/2022,People and Places,Support Services,135B,Allstar Business Solutions LTD,10/05/2022,PE141191,65.10,0.00,Fuel Charges,Petrol
Wyre Council,http://opendatacommunities.org/doc/district-council/wyre,30/05/2022,People and Places,Support Services,135B,Allstar Business Solutions LTD,10/05/2022,PE141191,54.91,0.00,Fuel Charges,Petrol
Wyre Council,http://opendatacommunities.org/doc/district-council/wyre,30/05/2022,People and Places,Support Services,135B,Allstar Business Solutions LTD,10/05/2022,PE141191,69.51,0.00,Fuel Charges,Petrol
Wyre Council,http://opendatacommunities.org/doc/district-council/wyre,30/05/2022,People and Places,Support Services,135B,Allstar Business Solutions LTD,10/05/2022,PE141191,112.50,0.00,Fuel Charges,Petrol
Wyre Council,http://opendatacommunities.org/doc/district-council/wyre,30/05/2022,People and Places,Planning and Development Servs,132C,EAS Electrical Mechanical,03/05/2022,PE141154,3694.19,0.00,EICR Remedials,Planned Building Maintenance
Wyre Council,http://opendatacommunities.org/doc/district-council/wyre,30/05/2022,People and Places,Cultural and Related Services,132A,Schneider Electric LTD,12/05/2022,PE141301,767.50,0.00,Maintenance 01/01/2021-30/09/2022,Planned Building Maintenance
Wyre Council,http://opendatacommunities.org/doc/district-council/wyre,30/05/2022,People and Places,Cultural and Related Services,132A,Opal Design LTD,03/05/2022,PE141158,530.73,0.00,Investigate noise from plumbing system at Garstang TIC,Planned Building Maintenance
Wyre Council,http://opendatacommunities.org/doc/district-council/wyre,30/05/2022,People and Places,Support Services,135B,M D Security,12/05/2022,PE141453,60.00,0.00,emergency light testing 03/22,Planned Building Maintenance
Wyre Council,http://opendatacommunities.org/doc/district-council/wyre,30/05/2022,People and Places,Support Services,135B,GARRY CARR BUILDING SERVICES LTD,12/05/2022,PE140777,691.00,0.00,Works at Civic Centre march 22,Planned Building Maintenance
Wyre Council,http://opendatacommunities.org/doc/district-council/wyre,30/05/2022,People and Places,Cultural and Related Services,132A,GARRY CARR BUILDING SERVICES LTD,03/05/2022,PE140773,118.00,0.00,"clean fire escape, malgicide all footpaths",Planned Building Maintenance
Wyre Council,http://opendatacommunities.org/doc/district-council/wyre,30/05/2022,People and Places,Environmental Services,132B,The Columbaria Company,26/05/2022,PE141710,55.00,0.00,REDACT,Plaque Inscriptions and Furniture
Wyre Council,http://opendatacommunities.org/doc/district-council/wyre,30/05/2022,People and Places,Environmental Services,132B,The Columbaria Company,06/05/2022,PE141282,143.00,0.00,REDACT,Plaque Inscriptions and Furniture
Wyre Council,http://opendatacommunities.org/doc/district-council/wyre,30/05/2022,People and Places,Environmental Services,132B,The Columbaria Company,13/05/2022,PE141504,169.00,0.00,REDACT,Plaque Inscriptions and Furniture
Wyre Council,http://opendatacommunities.org/doc/district-council/wyre,30/05/2022,People and Places,Environmental Services,132B,The Columbaria Company,06/05/2022,PE141283,89.00,0.00,REDACT,Plaque Inscriptions and Furniture
Wyre Council,http://opendatacommunities.org/doc/district-council/wyre,30/05/2022,People and Places,Environmental Services,132B,The Columbaria Company,10/05/2022,PE141316,172.50,0.00,REDACT,Plaque Inscriptions and Furniture
Wyre Council,http://opendatacommunities.org/doc/district-council/wyre,30/05/2022,People and Places,Environmental Services,132B,The Columbaria Company,05/05/2022,PE141284,85.75,0.00,REDACT,Plaque Inscriptions and Furniture
Wyre Council,http://opendatacommunities.org/doc/district-council/wyre,30/05/2022,Finance,Central Services to the Public,131C,SANTANDER,09/05/2022,WPST00048783,936.94,0.00,santander bank charges,Plastic Cards Processing Fees
Wyre Council,http://opendatacommunities.org/doc/district-council/wyre,30/05/2022,Resources,Central Services to the Public,131C,Critiqom LTD,05/05/2022,RS141186,1943.60,0.00,Daily Bills,Postage
Wyre Council,http://opendatacommunities.org/doc/district-council/wyre,30/05/2022,Resources,Central Services to the Public,131C,Critiqom LTD,05/05/2022,RS141185,498.94,0.00,Daily Bills,Postage
Wyre Council,http://opendatacommunities.org/doc/district-council/wyre,30/05/2022,Resources,Central Services to the Public,131C,Critiqom LTD,05/05/2022,RS141185,170.78,0.00,IQ post - Electoral,Postage
Wyre Council,http://opendatacommunities.org/doc/district-council/wyre,30/05/2022,Resources,Support Services,135B,Critiqom LTD,05/05/2022,RS141185,1210.89,0.00,IQ post - Off Serv  Admin,Postage
Wyre Council,http://opendatacommunities.org/doc/district-council/wyre,30/05/2022,Resources,Support Services,135B,Critiqom LTD,05/05/2022,RS141185,7.45,0.00,IQ post - Recovery,Postage
Wyre Council,http://opendatacommunities.org/doc/district-council/wyre,30/05/2022,Resources,Support Services,135B,Critiqom LTD,05/05/2022,RS141185,101.23,0.00,Ctax Reminders,Postage
Wyre Council,http://opendatacommunities.org/doc/district-council/wyre,30/05/2022,Resources,Support Services,135B,Critiqom LTD,05/05/2022,RS141185,2.39,0.00,NNDR Reminders,Postage
Wyre Council,http://opendatacommunities.org/doc/district-council/wyre,30/05/2022,Resources,Housing General Fund,134A,Critiqom LTD,05/05/2022,RS141186,243.31,0.00,Benefit Notifications,Postage
Wyre Council,http://opendatacommunities.org/doc/district-council/wyre,30/05/2022,Resources,Housing General Fund,134A,Critiqom LTD,05/05/2022,RS141185,75.54,0.00,Benefit Notifications,Postage
Wyre Council,http://opendatacommunities.org/doc/district-council/wyre,30/05/2022,Resources,Support Services,135B,Critiqom LTD,05/05/2022,RS141185,402.54,0.00,IQ post - CC,Postage
Wyre Council,http://opendatacommunities.org/doc/district-council/wyre,30/05/2022,Resources,Support Services,135B,Critiqom LTD,05/05/2022,RS141185,505.77,0.00,IQ Post - Planning,Postage
Wyre Council,http://opendatacommunities.org/doc/district-council/wyre,30/05/2022,Resources,Central Services to the Public,131C,Critiqom LTD,16/05/2022,RS141523,-1090.40,0.00,energy rebate insert,Postage
Wyre Council,http://opendatacommunities.org/doc/district-council/wyre,30/05/2022,Resources,Support Services,135B,Critiqom LTD,05/05/2022,RS141185,64.25,0.00,Ctax Summons,Postage
Wyre Council,http://opendatacommunities.org/doc/district-council/wyre,30/05/2022,Resources,Support Services,135B,Critiqom LTD,05/05/2022,RS141185,2.48,0.00,NNDR Summons,Postage
Wyre Council,http://opendatacommunities.org/doc/district-council/wyre,30/05/2022,Resources,Support Services,135B,Critiqom LTD,05/05/2022,RS141186,306.57,0.00,Council Tax Reminders,Postage
Wyre Council,http://opendatacommunities.org/doc/district-council/wyre,30/05/2022,Resources,Support Services,135B,Critiqom LTD,05/05/2022,RS141186,15.36,0.00,NNDR Reminders,Postage
Wyre Council,http://opendatacommunities.org/doc/district-council/wyre,30/05/2022,Resources,Support Services,135B,Critiqom LTD,05/05/2022,RS141186,171.66,0.00,Council Tax Summons,Postage
Wyre Council,http://opendatacommunities.org/doc/district-council/wyre,30/05/2022,Resources,Support Services,135B,Critiqom LTD,05/05/2022,RS141186,8.21,0.00,NNDR Summons,Postage
Wyre Council,http://opendatacommunities.org/doc/district-council/wyre,30/05/2022,Resources,Housing General Fund,134A,Critiqom LTD,18/05/2022,RS141570,187.31,0.00,Benefit Notifications,Postage
Wyre Council,http://opendatacommunities.org/doc/district-council/wyre,30/05/2022,Resources,Housing General Fund,134A,Critiqom LTD,18/05/2022,RS141569,61.76,0.00,Benefit Notifications,Postage
Wyre Council,http://opendatacommunities.org/doc/district-council/wyre,30/05/2022,Resources,Central Services to the Public,131C,Critiqom LTD,16/05/2022,RS141523,1090.40,0.00,energy rebate insert,Postage
Wyre Council,http://opendatacommunities.org/doc/district-council/wyre,30/05/2022,Resources,Central Services to the Public,131C,Critiqom LTD,16/05/2022,RS141522,400.00,0.00,AB Technical charges,Postage
Wyre Council,http://opendatacommunities.org/doc/district-council/wyre,30/05/2022,Resources,Central Services to the Public,131C,Critiqom LTD,16/05/2022,RS141521,22990.03,0.00,AB Postage,Postage
Wyre Council,http://opendatacommunities.org/doc/district-council/wyre,30/05/2022,Resources,Central Services to the Public,131C,Critiqom LTD,16/05/2022,RS141520,3218.41,0.00,AB services,Postage
Wyre Council,http://opendatacommunities.org/doc/district-council/wyre,30/05/2022,Resources,Support Services,135B,Critiqom LTD,05/05/2022,RS141296,10.00,0.00,Data Quality,Postage
Wyre Council,http://opendatacommunities.org/doc/district-council/wyre,30/05/2022,Resources,Support Services,135B,Critiqom LTD,18/05/2022,RS141569,22.02,0.00,IQ post - Recovery,Postage
Wyre Council,http://opendatacommunities.org/doc/district-council/wyre,30/05/2022,Resources,Central Services to the Public,131C,Critiqom LTD,18/05/2022,RS141570,1503.37,0.00,Daily Bills,Postage
Wyre Council,http://opendatacommunities.org/doc/district-council/wyre,30/05/2022,Resources,Central Services to the Public,131C,Critiqom LTD,18/05/2022,RS141569,386.53,0.00,Daily Bills,Postage
Wyre Council,http://opendatacommunities.org/doc/district-council/wyre,30/05/2022,Resources,Central Services to the Public,131C,Critiqom LTD,18/05/2022,RS141569,160.82,0.00,IQ post - Electoral,Postage
Wyre Council,http://opendatacommunities.org/doc/district-council/wyre,30/05/2022,Resources,Support Services,135B,Critiqom LTD,18/05/2022,RS141569,373.88,0.00,IQ post - Off Serv  Admin,Postage
Wyre Council,http://opendatacommunities.org/doc/district-council/wyre,30/05/2022,Resources,Support Services,135B,Critiqom LTD,18/05/2022,RS141569,413.20,0.00,IQ post - CC,Postage
Wyre Council,http://opendatacommunities.org/doc/district-council/wyre,30/05/2022,Resources,Support Services,135B,Critiqom LTD,18/05/2022,RS141569,420.39,0.00,IQ Post - Planning,Postage
Wyre Council,http://opendatacommunities.org/doc/district-council/wyre,30/05/2022,People and Places,Cultural and Related Services,132A,Bates Office Services Ltd,11/05/2022,PE141430,66.00,0.00,SECOND CLASS POSTAGE STAMPS BOOK OF 100,Postage
Wyre Council,http://opendatacommunities.org/doc/district-council/wyre,30/05/2022,Resources,Corporate and Democratic Core,131A,Critiqom LTD,16/05/2022,RS141519,8819.80,0.00,"Wyre Voice A5 24pp, 55k copiesMailed to all households in Wyre with council tax bill",Printing
Wyre Council,http://opendatacommunities.org/doc/district-council/wyre,30/05/2022,People and Places,Public Transport,133G,Wyre Marine Services,16/05/2022,PE141535,8685.00,0.00,"Fleetwood - Knott End Ferry Service.Schedule of payments12 April 2022             - 11 May 2022                        £,8685.0012 May 2022             - 11 June 2022                       £8,685.0012 June 2022            - 11 July 2022",Private Contractors
Wyre Council,http://opendatacommunities.org/doc/district-council/wyre,30/05/2022,People and Places,Parking Services,133F,NSL Services Group,03/05/2022,PE141145,3545.22,0.00,Variable Fee - Car Park Enforcement by NSL March 2022,Private Contractors
Wyre Council,http://opendatacommunities.org/doc/district-council/wyre,30/05/2022,People and Places,Support Services,135B,Relandscape LTD,31/05/2022,PE141783,804.80,0.00,Covid memorial garden: developed design; technical design; construction; handover services as detailed in your quotation dated 19 August 2021  Please liaise with Mark Fenton regarding any questions and dates etc..,Private Contractors
Wyre Council,http://opendatacommunities.org/doc/district-council/wyre,30/05/2022,People and Places,Parking Services,133F,CHIPSIDE LTD,11/05/2022,PE141439,30.00,0.00,Provide 2 no 500mb SiMS for Wyre handheld units 1 April 2022 - 31 March 2023,Private Contractors
Wyre Council,http://opendatacommunities.org/doc/district-council/wyre,30/05/2022,People and Places,Parking Services,133F,CHIPSIDE LTD,05/05/2022,PE141200,598.89,0.00,Provision of notice processing services March 2022,Private Contractors
Wyre Council,http://opendatacommunities.org/doc/district-council/wyre,30/05/2022,People and Places,Parking Services,133F,CHIPSIDE LTD,06/05/2022,PE141354,-30.00,0.00,Provide 2 no 500mb SiMS for Wyre handheld units 1 April 2022 - 31 March 2023,Private Contractors
Wyre Council,http://opendatacommunities.org/doc/district-council/wyre,30/05/2022,People and Places,Parking Services,133F,CHIPSIDE LTD,16/05/2022,PE141536,37.60,0.00,Wyre Council parking - Bank Transaction Fees 1 April 2022 - 31 March 2023,Private Contractors
Wyre Council,http://opendatacommunities.org/doc/district-council/wyre,30/05/2022,People and Places,Parking Services,133F,CHIPSIDE LTD,06/05/2022,PE141354,30.00,0.00,Provide 2 no 500mb SiMS for Wyre handheld units 1 April 2022 - 31 March 2023,Private Contractors
Wyre Council,http://opendatacommunities.org/doc/district-council/wyre,30/05/2022,People and Places,Parking Services,133F,CHIPSIDE LTD,18/05/2022,PE141644,629.82,0.00,April 2022 charges,Private Contractors
Wyre Council,http://opendatacommunities.org/doc/district-council/wyre,30/05/2022,People and Places,Parking Services,133F,FLOWBIRD SMART CITY UK LTD,16/05/2022,PE141505,6171.60,0.00,Provide Weboffice (including airtime) for 16 no. meters 1 April 2022 - 31 March 2023Provide credit card facilities for 10 no meters 1 April 2022 - 31 March 2023,Private Contractors
Wyre Council,http://opendatacommunities.org/doc/district-council/wyre,30/05/2022,People and Places,Planning and Development Servs,132C,JPI Media Publishig LTD,03/05/2022,PE141067,1169.20,0.00,Dino Alive Adverts & webpage takeover,Promotions - General
Wyre Council,http://opendatacommunities.org/doc/district-council/wyre,30/05/2022,People and Places,Planning and Development Servs,132C,Loop Publishing LTD,11/05/2022,PE141452,550.00,0.00,Northern Life Full Page for FM - May/June,Promotions - General
Wyre Council,http://opendatacommunities.org/doc/district-council/wyre,30/05/2022,People and Places,Planning and Development Servs,132C,Loop Publishing LTD,11/05/2022,PE141451,550.00,0.00,Northern Life Full Page for FM - March/April,Promotions - General
Wyre Council,http://opendatacommunities.org/doc/district-council/wyre,30/05/2022,People and Places,Planning and Development Servs,132C,Mcgrath Regional Media,30/05/2022,PE141263,800.00,0.00,2 x full pages,Promotions - General
Wyre Council,http://opendatacommunities.org/doc/district-council/wyre,30/05/2022,People and Places,Planning and Development Servs,132C,Wolstenholme Signs LTD,17/05/2022,PE141580,755.00,0.00,New signage and banners for The Wok Box Food Stall,Promotions - General
Wyre Council,http://opendatacommunities.org/doc/district-council/wyre,30/05/2022,People and Places,Planning and Development Servs,132C,Northern Print Distribution,31/05/2022,PE141795,526.55,0.00,Bags of Info for the Kids - Leaflet drop 12k,Promotions - General
Wyre Council,http://opendatacommunities.org/doc/district-council/wyre,30/05/2022,Resources,Environmental Services,132B,Critiqom LTD,05/05/2022,RS141186,765.90,0.00,Green Waste 2022,Promotions - General
Wyre Council,http://opendatacommunities.org/doc/district-council/wyre,30/05/2022,Resources,Environmental Services,132B,Critiqom LTD,05/05/2022,RS141185,667.45,0.00,Green Waste 2022,Promotions - General
Wyre Council,http://opendatacommunities.org/doc/district-council/wyre,30/05/2022,Resources,Environmental Services,132B,Critiqom LTD,18/05/2022,RS141569,403.94,0.00,Green Waste 2022,Promotions - General
Wyre Council,http://opendatacommunities.org/doc/district-council/wyre,30/05/2022,Resources,Environmental Services,132B,Critiqom LTD,18/05/2022,RS141570,1593.05,0.00,Green Waste 2022,Promotions - General
Wyre Council,http://opendatacommunities.org/doc/district-council/wyre,30/05/2022,People and Places,Planning and Development Servs,132C,Wilcop Media Ltd,05/05/2022,PE141330,500.00,0.00,2 x Full page adverts 1 x Web Banner Fleetwood Market,Promotions - General
Wyre Council,http://opendatacommunities.org/doc/district-council/wyre,30/05/2022,People and Places,Support Services,135B,Arco LTD,13/05/2022,PE141488,55.62,0.00,Boots Christina,Protective Clothing
Wyre Council,http://opendatacommunities.org/doc/district-council/wyre,30/05/2022,People and Places,Support Services,135B,Arco LTD,13/05/2022,PE141493,55.72,0.00,Clothing Street Scene,Protective Clothing
Wyre Council,http://opendatacommunities.org/doc/district-council/wyre,30/05/2022,People and Places,Support Services,135B,Arco LTD,13/05/2022,PE141495,67.46,0.00,Boots,Protective Clothing
Wyre Council,http://opendatacommunities.org/doc/district-council/wyre,30/05/2022,People and Places,Environmental Services,132B,Arco LTD,16/05/2022,PE141494,76.26,0.00,"1 Rockfill Safety boot, size 11",Protective Clothing
Wyre Council,http://opendatacommunities.org/doc/district-council/wyre,30/05/2022,People and Places,Environmental Services,132B,Arco LTD,16/05/2022,PE141491,69.56,0.00,4 pairs of Trojan Trousers code: 2629236,Protective Clothing
Wyre Council,http://opendatacommunities.org/doc/district-council/wyre,30/05/2022,People and Places,Environmental Services,132B,Arco LTD,16/05/2022,PE141490,43.00,0.00,Poloshirts - black,Protective Clothing
Wyre Council,http://opendatacommunities.org/doc/district-council/wyre,30/05/2022,People and Places,Support Services,135B,Arco LTD,16/05/2022,PE141503,54.78,0.00,Clothing Street Scene,Protective Clothing
Wyre Council,http://opendatacommunities.org/doc/district-council/wyre,30/05/2022,People and Places,Support Services,135B,Arco LTD,16/05/2022,PE141492,90.00,0.00,2 ladies regatta jackets,Protective Clothing
Wyre Council,http://opendatacommunities.org/doc/district-council/wyre,30/05/2022,People and Places,Support Services,135B,St Gobain Building Distribution LTD,18/05/2022,PE139578,106.65,0.00,Protective Clothing  Keith Urwin,Protective Clothing
Wyre Council,http://opendatacommunities.org/doc/district-council/wyre,30/05/2022,People and Places,Support Services,135B,Key Engineering & Hygiene Supplies LTD,05/05/2022,PE139342,30.24,0.00,Sample 3 in 1 jacket,Protective Clothing
Wyre Council,http://opendatacommunities.org/doc/district-council/wyre,30/05/2022,People and Places,Support Services,135B,Key Engineering & Hygiene Supplies LTD,05/05/2022,PE139342,47.76,0.00,Chukka Boot,Protective Clothing
Wyre Council,http://opendatacommunities.org/doc/district-council/wyre,30/05/2022,People and Places,Environmental Services,132B,Key Engineering & Hygiene Supplies LTD,05/05/2022,PE139342,26.46,0.00,6 x Sports grey T-Shirts in LARGE with Wyre emb logo to front @ £3.98,Protective Clothing
Wyre Council,http://opendatacommunities.org/doc/district-council/wyre,30/05/2022,People and Places,Environmental Services,132B,Key Engineering & Hygiene Supplies LTD,05/05/2022,PE139342,39.66,0.00,"6 x Sports grey polo-shirt in size XL with Wyre emb logo, code GD40SGYL or equivalent",Protective Clothing
Wyre Council,http://opendatacommunities.org/doc/district-council/wyre,30/05/2022,People and Places,Environmental Services,132B,Key Engineering & Hygiene Supplies LTD,05/05/2022,PE139342,50.40,0.00,"10 X Hi-vis yellow vest with Wyre logo to front and rear in size LARGE   Delivery to Wyre Council, Copse Road, Fleetwood, Lancashire, FY7 6RP.",Protective Clothing
Wyre Council,http://opendatacommunities.org/doc/district-council/wyre,30/05/2022,People and Places,Support Services,135B,Key Engineering & Hygiene Supplies LTD,06/05/2022,PE141347,243.38,0.00,"URGENT SUPPLY OF CLOTHING AS PER QUOTATION WITH JOHN 144870ORDER TAKEN OVER THE PHONE DELIVERY AS SOON AS POSSIBLE TO WYRE COUNCIL, COPSE ROAD DEPOT, COPSE ROAD, FLEETWOOD, FY7 6RP",Protective Clothing
Wyre Council,http://opendatacommunities.org/doc/district-council/wyre,30/05/2022,People and Places,Environmental Services,132B,Key Engineering & Hygiene Supplies LTD,26/05/2022,PE141681,-694.68,0.00,Credit re PE141347 already paid  Blue Refuse sacks,"Provision of Bins, Boxes and Sacks"
Wyre Council,http://opendatacommunities.org/doc/district-council/wyre,30/05/2022,People and Places,Environmental Services,132B,Key Engineering & Hygiene Supplies LTD,06/05/2022,PE141347,827.00,0.00,"SUPPLY AND DELIVER 50 BOXES OF STRONG BLUE REFUSE BAGS 18/29, 39, 90 LITRE PER 200, CODE BL2939BS @ LATEST RPICE QUOTED £16.54 PER BOX   DELIVERY TO WYRE COUNCIL, COPSE ROAD DEPOT,COPSE ROAD, FLEETWOOD, LANCASHIRE, FY7 6RP","Provision of Bins, Boxes and Sacks"
Wyre Council,http://opendatacommunities.org/doc/district-council/wyre,30/05/2022,People and Places,Environmental Services,132B,Veolia ES (UK) LTD,30/05/2022,PE141754,4188.00,0.00,Bin delivery,"Provision of Bins, Boxes and Sacks"
Wyre Council,http://opendatacommunities.org/doc/district-council/wyre,30/05/2022,Resources,Support Services,135B,Visual Print and Design Ltd,18/05/2022,RS141605,190.00,0.00,"2000 x A5 2pp Jubilee leaflets (£58)7 x banners, each 2m x 0.8m, on mesh with eyelets (£190)Artwork split as follows:1 x Beacon1 x Alice - All dates1 x Alice - Fleetwood2 x Alice - Poulton2 x Jubilee Picnic - Garstang",Public Relations
Wyre Council,http://opendatacommunities.org/doc/district-council/wyre,30/05/2022,Resources,Support Services,135B,Visual Print and Design Ltd,18/05/2022,RS141605,58.00,0.00,"2000 x A5 2pp Jubilee leaflets (£58)7 x banners, each 2m x 0.8m, on mesh with eyelets (£190)Artwork split as follows:1 x Beacon1 x Alice - All dates1 x Alice - Fleetwood2 x Alice - Poulton2 x Jubilee Picnic - Garstang",Public Relations
Wyre Council,http://opendatacommunities.org/doc/district-council/wyre,30/05/2022,Resources,Support Services,135B,Bates Office Services Ltd,05/05/2022,RS141228,149.00,0.00,TSK Task Chair - Black,Purchase Furniture
Wyre Council,http://opendatacommunities.org/doc/district-council/wyre,30/05/2022,Resources,Support Services,135B,Bates Office Services Ltd,11/05/2022,RS141441,142.00,0.00,1 x TSK Chair Black with arms.Deliver to Room 208 - Jo Billington,Purchase Furniture
Wyre Council,http://opendatacommunities.org/doc/district-council/wyre,30/05/2022,People and Places,Planning and Development Servs,132C,Haymarket Media Group,31/05/2022,PE141792,5330.00,0.00,DCP Online subscription,Purchase of Publications
Wyre Council,http://opendatacommunities.org/doc/district-council/wyre,30/05/2022,People and Places,Support Services,135B,LABC,05/05/2022,PE141293,2140.81,0.00,LABC Service Fee 2022/23,Purchase of Publications
Wyre Council,http://opendatacommunities.org/doc/district-council/wyre,30/05/2022,People and Places,Support Services,135B,RH Environmental LTD,05/05/2022,PE141337,3822.00,0.00,Annual RIAMS subscription 2022/23 at a cost of £3822 (plus VAT).,Purchase of Publications
Wyre Council,http://opendatacommunities.org/doc/district-council/wyre,30/05/2022,People and Places,Support Services,135B,RH Environmental LTD,05/05/2022,PE141337,660.00,0.00,Noise App subscription fee for the period 24/052022 - 23/05/2023£660 (plus VAT),Purchase of Publications
Wyre Council,http://opendatacommunities.org/doc/district-council/wyre,30/05/2022,People and Places,Support Services,135B,RH Environmental LTD,05/05/2022,PE141337,300.00,0.00,CPD facility (£150 + VAT) and the formatted notices (£150 + VAT),Purchase of Publications
Wyre Council,http://opendatacommunities.org/doc/district-council/wyre,30/05/2022,Resources,Support Services,135B,District Councils Network C/O Hinckley & Bosworth,19/05/2022,RS141517,2996.00,0.00,DCN Annual Membership 2022-23,Purchase of Publications
Wyre Council,http://opendatacommunities.org/doc/district-council/wyre,30/05/2022,People and Places,Support Services,135B,Arco LTD,24/05/2022,PE141688,11.30,0.00,WD40,Purchase of Tools or Equipment
Wyre Council,http://opendatacommunities.org/doc/district-council/wyre,30/05/2022,Resources,Housing General Fund,134A,St Gobain Building Distribution LTD,10/05/2022,RS141415,116.67,0.00,Payment of invoice 0963/00105751,Purchase of Tools or Equipment
Wyre Council,http://opendatacommunities.org/doc/district-council/wyre,30/05/2022,Resources,Housing General Fund,134A,St Gobain Building Distribution LTD,05/05/2022,RS141315,49.17,0.00,Payment of invoice - 3104/00155845,Purchase of Tools or Equipment
Wyre Council,http://opendatacommunities.org/doc/district-council/wyre,30/05/2022,People and Places,Environmental Services,132B,Key Engineering & Hygiene Supplies LTD,05/05/2022,PE139342,640.20,0.00,"Supply and deliver 3M Masks as price quoted £64.02 ex vat per 10.  Delivery to Wyre Council, Copse Road Depot, Copse Road, Fleetwood, FY7 6RP",Purchase of Tools or Equipment
Wyre Council,http://opendatacommunities.org/doc/district-council/wyre,30/05/2022,People and Places,Cultural and Related Services,132A,Key Engineering & Hygiene Supplies LTD,18/05/2022,PE139343,128.37,0.00,various cleaning products Wyre estuary country park,Purchase of Tools or Equipment
Wyre Council,http://opendatacommunities.org/doc/district-council/wyre,30/05/2022,People and Places,Cultural and Related Services,132A,Cycling Projects,05/05/2022,PE141305,12839.99,0.00,Wyre Wheels Bikes,Purchase of Tools or Equipment
Wyre Council,http://opendatacommunities.org/doc/district-council/wyre,30/05/2022,Resources,Support Services,135B,TMR Executive Agency LTD,05/05/2022,RS141184,829.58,0.00,TMR maintenance charge - Folder inserter 23/06/2022-22/06/2023,Purchase of Tools or Equipment
Wyre Council,http://opendatacommunities.org/doc/district-council/wyre,30/05/2022,People and Places,Cultural and Related Services,132A,M D Security,11/05/2022,PE141454,80.00,0.00,10 x green access fobs for Rossall point Tower,Purchase of Tools or Equipment
Wyre Council,http://opendatacommunities.org/doc/district-council/wyre,30/05/2022,People and Places,Support Services,135B,Steve Wear Blinds,18/05/2022,PE141585,518.00,0.00,Replacemt parts to blinds in rooms 75 78 79,Purchase of Tools or Equipment
Wyre Council,http://opendatacommunities.org/doc/district-council/wyre,30/05/2022,People and Places,Cultural and Related Services,132A,HUWS GRAY LTD,18/05/2022,PE140869,29.94,0.00,work boots and trousers,Purchase of Tools or Equipment
Wyre Council,http://opendatacommunities.org/doc/district-council/wyre,30/05/2022,People and Places,Cultural and Related Services,132A,HUWS GRAY LTD,18/05/2022,PE140869,46.54,0.00,2 x tidy cases,Purchase of Tools or Equipment
Wyre Council,http://opendatacommunities.org/doc/district-council/wyre,30/05/2022,People and Places,Cultural and Related Services,132A,HUWS GRAY LTD,18/05/2022,PE140869,93.10,0.00,6x boxes of screws 4 x post crete,Purchase of Tools or Equipment
Wyre Council,http://opendatacommunities.org/doc/district-council/wyre,30/05/2022,People and Places,Cultural and Related Services,132A,HUWS GRAY LTD,18/05/2022,PE140869,329.30,0.00,various wood and post crete  4 by 4 and 2 by 2,Purchase of Tools or Equipment
Wyre Council,http://opendatacommunities.org/doc/district-council/wyre,30/05/2022,People and Places,Cultural and Related Services,132A,HUWS GRAY LTD,18/05/2022,PE140869,49.99,0.00,PEO0023761 work boots,Purchase of Tools or Equipment
Wyre Council,http://opendatacommunities.org/doc/district-council/wyre,30/05/2022,Resources,Housing General Fund,134A,DESTIN SOLUTIONS LTD,13/05/2022,RS141500,9000.00,0.00,Implementation of Destin ASPIRE and HUB Solutions,Purchase of Tools or Equipment
Wyre Council,http://opendatacommunities.org/doc/district-council/wyre,30/05/2022,Resources,Environmental Services,132B,Bates Office Services Ltd,16/05/2022,RS141532,142.00,0.00,"1 x TSK/ZA Task Chair, Black with Arms (Neil Greenwood)1 x 103066 Fellowes Blue Ocean Mousepad (Neil Greenwood)2 x BB91712 Fellowes Standard Monitor Riser (Elizabeth Sansbury)1 x AC30281 Kensington USB Wired Mouse (Daine Banks)1 x MSF74164 Microso",Purchase of Tools or Equipment
Wyre Council,http://opendatacommunities.org/doc/district-council/wyre,30/05/2022,Resources,Environmental Services,132B,Bates Office Services Ltd,10/05/2022,RS141387,5.80,0.00,"1 x TSK/ZA Task Chair, Black with Arms (Neil Greenwood)1 x 103066 Fellowes Blue Ocean Mousepad (Neil Greenwood)2 x BB91712 Fellowes Standard Monitor Riser (Elizabeth Sansbury)1 x AC30281 Kensington USB Wired Mouse (Daine Banks)1 x MSF74164 Microso",Purchase of Tools or Equipment
Wyre Council,http://opendatacommunities.org/doc/district-council/wyre,30/05/2022,People and Places,Planning and Development Servs,132C,PSM Group,05/05/2022,PE141270,550.00,0.00,to take apart and insert sand bags on site at Fleetwood Market in planters PLANTERS x 30 -,Purchase of Tools or Equipment
Wyre Council,http://opendatacommunities.org/doc/district-council/wyre,30/05/2022,People and Places,Planning and Development Servs,132C,EVOLUTION CONSTRUCTION GROUP LTD,17/05/2022,PE141516,324.89,0.00,Alter stall 192 at Fleetwood Market,Purchase of Tools or Equipment
Wyre Council,http://opendatacommunities.org/doc/district-council/wyre,30/05/2022,People and Places,Cultural and Related Services,132A,THE WINDMILL PLAYERS,05/05/2022,PE141320,4080.00,0.00,Refund of ticket sales - Marine Hall 8th - 12th February 2022,Refund of Ticket Sales to Ext Promoters
Wyre Council,http://opendatacommunities.org/doc/district-council/wyre,30/05/2022,People and Places,Cultural and Related Services,132A,Red Rose Stage Academy,17/05/2022,PE141609,4203.00,0.00,Refund of ticket sales 3/3/22,Refund of Ticket Sales to Ext Promoters
Wyre Council,http://opendatacommunities.org/doc/district-council/wyre,30/05/2022,People and Places,Cultural and Related Services,132A,Last Choir Singing Community Foundation,03/05/2022,PE141141,2709.00,0.00,Tickets sold at Marine Hall,Refund of Ticket Sales to Ext Promoters
Wyre Council,http://opendatacommunities.org/doc/district-council/wyre,30/05/2022,People and Places,Cultural and Related Services,132A,Blackpool Symphony Orchestra,17/05/2022,PE141610,1760.00,0.00,Refund of ticket sales  - 19-3-22,Refund of Ticket Sales to Ext Promoters
Wyre Council,http://opendatacommunities.org/doc/district-council/wyre,30/05/2022,Finance,Cultural and Related Services,132A,,20/05/2022,WPST00054259,31232.61,0.00,Veolia DD,Refuse Collection
Wyre Council,http://opendatacommunities.org/doc/district-council/wyre,30/05/2022,People and Places,Planning and Development Servs,132C,Suez Recycling And Recovery UK LTD,11/05/2022,PE140842,1024.76,0.00,waste removal market suez,Refuse Collection
Wyre Council,http://opendatacommunities.org/doc/district-council/wyre,30/05/2022,People and Places,Planning and Development Servs,132C,Suez Recycling And Recovery UK LTD,11/05/2022,PE141411,845.48,0.00,waste removal market suez,Refuse Collection
Wyre Council,http://opendatacommunities.org/doc/district-council/wyre,30/05/2022,People and Places,Environmental Services,132B,Blackpool Council,09/05/2022,PE141385,976.71,0.00,Bulky Matters Service Recharge 2021/22,Refuse Collection Contract
Wyre Council,http://opendatacommunities.org/doc/district-council/wyre,30/05/2022,People and Places,Environmental Services,132B,Blackpool Council,18/05/2022,PE141562,1674.47,0.00,Bulky Matters Service Recharge 2021/22,Refuse Collection Contract
Wyre Council,http://opendatacommunities.org/doc/district-council/wyre,30/05/2022,People and Places,Environmental Services,132B,Veolia ES (UK) LTD,30/05/2022,PE141754,163088.76,0.00,Domestic Waste Management Collection Contract 2021/22  Core Contract,Refuse Collection Contract
Wyre Council,http://opendatacommunities.org/doc/district-council/wyre,30/05/2022,People and Places,Environmental Services,132B,Veolia ES (UK) LTD,30/05/2022,PE141754,1995.51,0.00,Pension pass through,Refuse Collection Contract
Wyre Council,http://opendatacommunities.org/doc/district-council/wyre,30/05/2022,People and Places,Public Transport,133G,G W SHELTER SOLUTIONS LTD,05/05/2022,PE141187,218.38,0.00,"Supply and install 1 sheet of toughened glass 1143 x 1210 x 8mm to an existing Arun enclosed shelter Elm Street, Fleetwood",Repairs to Non-WBC Buildings
Wyre Council,http://opendatacommunities.org/doc/district-council/wyre,30/05/2022,People and Places,Public Transport,133G,G W SHELTER SOLUTIONS LTD,05/05/2022,PE141194,7728.00,0.00,"Quotation GWQ901Replace shelter on Lancaster Road, Preesall FY6 0DU - location to be confirmed",Repairs to Non-WBC Buildings
Wyre Council,http://opendatacommunities.org/doc/district-council/wyre,30/05/2022,People and Places,Planning and Development Servs,132C,EAS Electrical Mechanical,03/05/2022,PE141155,48.00,0.00,Emergency call out at Fleetwood Market,Responsive Building Maintenance
Wyre Council,http://opendatacommunities.org/doc/district-council/wyre,30/05/2022,People and Places,Support Services,135B,EAS Electrical Mechanical,03/05/2022,PE141140,123.15,0.00,Repairs to toilets in Civic Centre,Responsive Building Maintenance
Wyre Council,http://opendatacommunities.org/doc/district-council/wyre,30/05/2022,People and Places,Support Services,135B,EAS Electrical Mechanical,05/05/2022,PE141318,302.09,0.00,Isolate water to taps in ladies at Civic Centre,Responsive Building Maintenance
Wyre Council,http://opendatacommunities.org/doc/district-council/wyre,30/05/2022,People and Places,Planning and Development Servs,132C,EAS Electrical Mechanical,30/05/2022,PE141726,48.00,0.00,Investigate fairy lights at Fleetwood Market,Responsive Building Maintenance
Wyre Council,http://opendatacommunities.org/doc/district-council/wyre,30/05/2022,People and Places,Cultural and Related Services,132A,EAS Electrical Mechanical,18/05/2022,PE141636,537.00,0.00,works at Marine hall,Responsive Building Maintenance
Wyre Council,http://opendatacommunities.org/doc/district-council/wyre,30/05/2022,People and Places,Cultural and Related Services,132A,EAS Electrical Mechanical,18/05/2022,PE141635,469.50,0.00,works at kite club,Responsive Building Maintenance
Wyre Council,http://opendatacommunities.org/doc/district-council/wyre,30/05/2022,People and Places,Cultural and Related Services,132A,Pipescan LTD,30/05/2022,PE141547,400.00,0.00,Drainage investigation at Kiosk 6 The Esplanade,Responsive Building Maintenance
Wyre Council,http://opendatacommunities.org/doc/district-council/wyre,30/05/2022,People and Places,Cultural and Related Services,132A,Pipescan LTD,30/05/2022,PE141546,380.00,0.00,Drainage investigation at Beach Bungalow,Responsive Building Maintenance
Wyre Council,http://opendatacommunities.org/doc/district-council/wyre,30/05/2022,People and Places,Cultural and Related Services,132A,Pipescan LTD,05/05/2022,PE141292,180.00,0.00,Emergency drain clearance at Boat Store Marine Lake,Responsive Building Maintenance
Wyre Council,http://opendatacommunities.org/doc/district-council/wyre,30/05/2022,People and Places,Cultural and Related Services,132A,Opal Design LTD,17/05/2022,PE139692,504.64,0.00,replace water heater,Responsive Building Maintenance
Wyre Council,http://opendatacommunities.org/doc/district-council/wyre,30/05/2022,People and Places,Cultural and Related Services,132A,Opal Design LTD,17/05/2022,PE140736,247.04,0.00,call out to leaks,Responsive Building Maintenance
Wyre Council,http://opendatacommunities.org/doc/district-council/wyre,30/05/2022,People and Places,Support Services,135B,Opal Design LTD,17/05/2022,PE140737,170.64,0.00,call out to leaks,Responsive Building Maintenance
Wyre Council,http://opendatacommunities.org/doc/district-council/wyre,30/05/2022,People and Places,Support Services,135B,Opal Design LTD,17/05/2022,PE140738,322.64,0.00,call out to civic centre,Responsive Building Maintenance
Wyre Council,http://opendatacommunities.org/doc/district-council/wyre,30/05/2022,People and Places,Cultural and Related Services,132A,GARRY CARR BUILDING SERVICES LTD,12/05/2022,PE141338,23.00,0.00,inspect leak over box office,Responsive Building Maintenance
Wyre Council,http://opendatacommunities.org/doc/district-council/wyre,30/05/2022,People and Places,Cultural and Related Services,132A,GARRY CARR BUILDING SERVICES LTD,12/05/2022,PE141339,151.00,0.00,"Remove graffti - shelter 5, marine lake",Responsive Building Maintenance
Wyre Council,http://opendatacommunities.org/doc/district-council/wyre,30/05/2022,People and Places,Planning and Development Servs,132C,GARRY CARR BUILDING SERVICES LTD,16/05/2022,PE138407,60.00,0.00,Fix roofing 17 Butts Close,Responsive Building Maintenance
Wyre Council,http://opendatacommunities.org/doc/district-council/wyre,30/05/2022,People and Places,Planning and Development Servs,132C,GARRY CARR BUILDING SERVICES LTD,19/05/2022,PE141597,40.00,0.00,Survey leaky roof at Unit 9 Butts Close,Responsive Building Maintenance
Wyre Council,http://opendatacommunities.org/doc/district-council/wyre,30/05/2022,People and Places,Planning and Development Servs,132C,GARRY CARR BUILDING SERVICES LTD,19/05/2022,PE141599,96.00,0.00,Repair leaking roof at Fleetwood Market,Responsive Building Maintenance
Wyre Council,http://opendatacommunities.org/doc/district-council/wyre,30/05/2022,People and Places,Cultural and Related Services,132A,GARRY CARR BUILDING SERVICES LTD,19/05/2022,PE141602,85.00,0.00,Secure lighting at Pharos Lighthouse,Responsive Building Maintenance
Wyre Council,http://opendatacommunities.org/doc/district-council/wyre,30/05/2022,People and Places,Cultural and Related Services,132A,GARRY CARR BUILDING SERVICES LTD,19/05/2022,PE141643,154.00,0.00,Clean internal walls at Fleetwood Lighthouse,Responsive Building Maintenance
Wyre Council,http://opendatacommunities.org/doc/district-council/wyre,30/05/2022,People and Places,Cultural and Related Services,132A,GARRY CARR BUILDING SERVICES LTD,19/05/2022,PE141642,88.00,0.00,Weed kill all external areas at Fleetwood Lighthouse,Responsive Building Maintenance
Wyre Council,http://opendatacommunities.org/doc/district-council/wyre,30/05/2022,People and Places,Planning and Development Servs,132C,GARRY CARR BUILDING SERVICES LTD,19/05/2022,PE141600,108.00,0.00,Re-fix coppings to building at Unit 10 Butts Close,Responsive Building Maintenance
Wyre Council,http://opendatacommunities.org/doc/district-council/wyre,30/05/2022,People and Places,Support Services,135B,GARRY CARR BUILDING SERVICES LTD,18/05/2022,PE141639,40.00,0.00,Provide ladder access for Dan Long,Responsive Building Maintenance
Wyre Council,http://opendatacommunities.org/doc/district-council/wyre,30/05/2022,People and Places,Cultural and Related Services,132A,GARRY CARR BUILDING SERVICES LTD,18/05/2022,PE141641,44.00,0.00,remove graffiti,Responsive Building Maintenance
Wyre Council,http://opendatacommunities.org/doc/district-council/wyre,30/05/2022,People and Places,Cultural and Related Services,132A,EVOLUTION CONSTRUCTION GROUP LTD,03/05/2022,PE140960,61.38,0.00,Reglaze smashed window at Mount cottages,Responsive Building Maintenance
Wyre Council,http://opendatacommunities.org/doc/district-council/wyre,30/05/2022,People and Places,Cultural and Related Services,132A,EVOLUTION CONSTRUCTION GROUP LTD,03/05/2022,PE140957,392.80,0.00,Repair and repaint doors,Responsive Building Maintenance
Wyre Council,http://opendatacommunities.org/doc/district-council/wyre,30/05/2022,People and Places,Cultural and Related Services,132A,EVOLUTION CONSTRUCTION GROUP LTD,03/05/2022,PE140956,121.25,0.00,Replace glazing to cottage 2 Mount Road,Responsive Building Maintenance
Wyre Council,http://opendatacommunities.org/doc/district-council/wyre,30/05/2022,People and Places,Cultural and Related Services,132A,EVOLUTION CONSTRUCTION GROUP LTD,03/05/2022,PE140955,98.20,0.00,Secure front doors at Mount Pavilion,Responsive Building Maintenance
Wyre Council,http://opendatacommunities.org/doc/district-council/wyre,30/05/2022,People and Places,Planning and Development Servs,132C,EVOLUTION CONSTRUCTION GROUP LTD,03/05/2022,PE140961,49.10,0.00,Remove timber boxing above shutter fleetwood market,Responsive Building Maintenance
Wyre Council,http://opendatacommunities.org/doc/district-council/wyre,30/05/2022,People and Places,Planning and Development Servs,132C,EVOLUTION CONSTRUCTION GROUP LTD,03/05/2022,PE140954,212.68,0.00,Fix shutter,Responsive Building Maintenance
Wyre Council,http://opendatacommunities.org/doc/district-council/wyre,30/05/2022,People and Places,Planning and Development Servs,132C,EVOLUTION CONSTRUCTION GROUP LTD,03/05/2022,PE140952,111.05,0.00,Repairs to kitchen cupboard at Fleetwood Market,Responsive Building Maintenance
Wyre Council,http://opendatacommunities.org/doc/district-council/wyre,30/05/2022,People and Places,Support Services,135B,EVOLUTION CONSTRUCTION GROUP LTD,03/05/2022,PE140953,140.94,0.00,Replace faulty door at Civic Centre,Responsive Building Maintenance
Wyre Council,http://opendatacommunities.org/doc/district-council/wyre,30/05/2022,People and Places,Cultural and Related Services,132A,EVOLUTION CONSTRUCTION GROUP LTD,16/05/2022,PE141289,98.20,0.00,remove old locks to chalets for new meters,Responsive Building Maintenance
Wyre Council,http://opendatacommunities.org/doc/district-council/wyre,30/05/2022,People and Places,Cultural and Related Services,132A,EVOLUTION CONSTRUCTION GROUP LTD,16/05/2022,PE141285,185.47,0.00,Repairs to Beach Bungalow,Responsive Building Maintenance
Wyre Council,http://opendatacommunities.org/doc/district-council/wyre,30/05/2022,People and Places,Cultural and Related Services,132A,EVOLUTION CONSTRUCTION GROUP LTD,16/05/2022,PE141286,73.65,0.00,Replace the lock to mens bowling pavilion,Responsive Building Maintenance
Wyre Council,http://opendatacommunities.org/doc/district-council/wyre,30/05/2022,People and Places,Support Services,135B,EVOLUTION CONSTRUCTION GROUP LTD,12/05/2022,PE141288,202.97,0.00,Adjust windows @ civic centre,Responsive Building Maintenance
Wyre Council,http://opendatacommunities.org/doc/district-council/wyre,30/05/2022,People and Places,Planning and Development Servs,132C,EVOLUTION CONSTRUCTION GROUP LTD,12/05/2022,PE141290,291.17,0.00,works to walls and roof at the market,Responsive Building Maintenance
Wyre Council,http://opendatacommunities.org/doc/district-council/wyre,30/05/2022,People and Places,Cultural and Related Services,132A,EVOLUTION CONSTRUCTION GROUP LTD,12/05/2022,PE141291,325.11,0.00,repairs at cottam hall,Responsive Building Maintenance
Wyre Council,http://opendatacommunities.org/doc/district-council/wyre,30/05/2022,People and Places,Cultural and Related Services,132A,EVOLUTION CONSTRUCTION GROUP LTD,12/05/2022,PE141287,343.70,0.00,works at marine hall,Responsive Building Maintenance
Wyre Council,http://opendatacommunities.org/doc/district-council/wyre,30/05/2022,People and Places,Support Services,135B,EVOLUTION CONSTRUCTION GROUP LTD,03/05/2022,PE140962,396.03,0.00,Supply and fit digital door combination lock,Responsive Building Maintenance
Wyre Council,http://opendatacommunities.org/doc/district-council/wyre,30/05/2022,People and Places,Cultural and Related Services,132A,Weldlag Ltd,12/05/2022,PE141329,3792.78,0.00,Removal of asbestos @ Fleetwood marine hall,Responsive Building Maintenance
Wyre Council,http://opendatacommunities.org/doc/district-council/wyre,30/05/2022,People and Places,Cultural and Related Services,132A,Weldlag Ltd,12/05/2022,PE141328,3900.00,0.00,removal of asbestos March 22,Responsive Building Maintenance
Wyre Council,http://opendatacommunities.org/doc/district-council/wyre,30/05/2022,Resources,Housing General Fund,134A,Harris & CO. Estate Agency,06/05/2022,RS141352,867.00,0.00,REDACT,Rough Sleeper Project/NSNO
Wyre Council,http://opendatacommunities.org/doc/district-council/wyre,30/05/2022,People and Places,Support Services,135B,Broxap,18/05/2022,PE141664,858.00,0.00,BX71 3954  Sneyd Hill Recycled Plastic Picnic Units 1500mm length Coloured black Supplied fully assembled,Routine Maintenance
Wyre Council,http://opendatacommunities.org/doc/district-council/wyre,30/05/2022,People and Places,Support Services,135B,Broxap,18/05/2022,PE141664,52.00,0.00,BX71 3991 Sets of fixing bolts,Routine Maintenance
Wyre Council,http://opendatacommunities.org/doc/district-council/wyre,30/05/2022,People and Places,Support Services,135B,Broxap,18/05/2022,PE141664,125.00,0.00,Delivery,Routine Maintenance
Wyre Council,http://opendatacommunities.org/doc/district-council/wyre,30/05/2022,People and Places,Central Services to the Public,131C,WATER PLUS LTD,24/05/2022,PE141675,49.18,0.00,Water Waste Water Charges,Sewerage
Wyre Council,http://opendatacommunities.org/doc/district-council/wyre,30/05/2022,People and Places,Environmental Services,132B,WATER PLUS LTD,24/05/2022,PE141675,3.51,0.00,Water Waste Water Charges,Sewerage
Wyre Council,http://opendatacommunities.org/doc/district-council/wyre,30/05/2022,People and Places,Cultural and Related Services,132A,WATER PLUS LTD,24/05/2022,PE141675,2.34,0.00,Water Waste Water Charges,Sewerage
Wyre Council,http://opendatacommunities.org/doc/district-council/wyre,30/05/2022,People and Places,Cultural and Related Services,132A,WATER PLUS LTD,24/05/2022,PE141675,46.84,0.00,Water Waste Water Charges,Sewerage
Wyre Council,http://opendatacommunities.org/doc/district-council/wyre,30/05/2022,People and Places,Cultural and Related Services,132A,WATER PLUS LTD,24/05/2022,PE141675,588.96,0.00,Water Waste Water Charges,Sewerage
Wyre Council,http://opendatacommunities.org/doc/district-council/wyre,30/05/2022,People and Places,Cultural and Related Services,132A,WATER PLUS LTD,24/05/2022,PE141675,7.03,0.00,Water Waste Water Charges,Sewerage
Wyre Council,http://opendatacommunities.org/doc/district-council/wyre,30/05/2022,People and Places,Cultural and Related Services,132A,WATER PLUS LTD,24/05/2022,PE141675,7.02,0.00,Water Waste Water Charges,Sewerage
Wyre Council,http://opendatacommunities.org/doc/district-council/wyre,30/05/2022,People and Places,Environmental Services,132B,WATER PLUS LTD,24/05/2022,PE141679,69.42,0.00,Water Waste Water Charges,Sewerage
Wyre Council,http://opendatacommunities.org/doc/district-council/wyre,30/05/2022,People and Places,Environmental Services,132B,WATER PLUS LTD,24/05/2022,PE141675,453.07,0.00,Water Waste Water Charges,Sewerage
Wyre Council,http://opendatacommunities.org/doc/district-council/wyre,30/05/2022,People and Places,Cultural and Related Services,132A,WATER PLUS LTD,24/05/2022,PE141675,50.35,0.00,Water Waste Water Charges,Sewerage
Wyre Council,http://opendatacommunities.org/doc/district-council/wyre,30/05/2022,People and Places,Cultural and Related Services,132A,WATER PLUS LTD,24/05/2022,PE141675,3.51,0.00,Water Waste Water Charges,Sewerage
Wyre Council,http://opendatacommunities.org/doc/district-council/wyre,30/05/2022,People and Places,Environmental Services,132B,WATER PLUS LTD,24/05/2022,PE141675,14.05,0.00,Water Waste Water Charges,Sewerage
Wyre Council,http://opendatacommunities.org/doc/district-council/wyre,30/05/2022,People and Places,Environmental Services,132B,WATER PLUS LTD,24/05/2022,PE141679,41.87,0.00,Water Waste Water Charges,Sewerage
Wyre Council,http://opendatacommunities.org/doc/district-council/wyre,30/05/2022,People and Places,Environmental Services,132B,WATER PLUS LTD,24/05/2022,PE141675,9.37,0.00,Water Waste Water Charges,Sewerage
Wyre Council,http://opendatacommunities.org/doc/district-council/wyre,30/05/2022,People and Places,Support Services,135B,WATER PLUS LTD,24/05/2022,PE141675,6206.40,0.00,Water Waste Water Charges,Sewerage
Wyre Council,http://opendatacommunities.org/doc/district-council/wyre,30/05/2022,People and Places,Cultural and Related Services,132A,WATER PLUS LTD,24/05/2022,PE141675,31.61,0.00,Water Waste Water Charges,Sewerage
Wyre Council,http://opendatacommunities.org/doc/district-council/wyre,30/05/2022,People and Places,Cultural and Related Services,132A,WATER PLUS LTD,24/05/2022,PE141675,41.05,0.00,Water Waste Water Charges,Sewerage
Wyre Council,http://opendatacommunities.org/doc/district-council/wyre,30/05/2022,People and Places,Cultural and Related Services,132A,WATER PLUS LTD,24/05/2022,PE141675,319.57,0.00,Water Waste Water Charges,Sewerage
Wyre Council,http://opendatacommunities.org/doc/district-council/wyre,30/05/2022,People and Places,Cultural and Related Services,132A,WATER PLUS LTD,24/05/2022,PE141675,3.45,0.00,Water Waste Water Charges,Sewerage
Wyre Council,http://opendatacommunities.org/doc/district-council/wyre,30/05/2022,People and Places,Cultural and Related Services,132A,WATER PLUS LTD,03/05/2022,PE141087,1.17,0.00,Monthly Charges,Sewerage
Wyre Council,http://opendatacommunities.org/doc/district-council/wyre,30/05/2022,People and Places,Cultural and Related Services,132A,WATER PLUS LTD,03/05/2022,PE141087,52.76,0.00,Monthly Charges,Sewerage
Wyre Council,http://opendatacommunities.org/doc/district-council/wyre,30/05/2022,People and Places,Cultural and Related Services,132A,WATER PLUS LTD,03/05/2022,PE141087,72.70,0.00,Monthly Charges,Sewerage
Wyre Council,http://opendatacommunities.org/doc/district-council/wyre,30/05/2022,People and Places,Cultural and Related Services,132A,WATER PLUS LTD,03/05/2022,PE141087,3.52,0.00,Monthly Charges,Sewerage
Wyre Council,http://opendatacommunities.org/doc/district-council/wyre,30/05/2022,People and Places,Environmental Services,132B,WATER PLUS LTD,03/05/2022,PE141087,36.34,0.00,Monthly Charges,Sewerage
Wyre Council,http://opendatacommunities.org/doc/district-council/wyre,30/05/2022,People and Places,Environmental Services,132B,WATER PLUS LTD,03/05/2022,PE141087,7.03,0.00,Monthly Charges,Sewerage
Wyre Council,http://opendatacommunities.org/doc/district-council/wyre,30/05/2022,People and Places,Support Services,135B,WATER PLUS LTD,03/05/2022,PE141087,3475.35,0.00,Monthly Charges,Sewerage
Wyre Council,http://opendatacommunities.org/doc/district-council/wyre,30/05/2022,People and Places,Environmental Services,132B,WATER PLUS LTD,03/05/2022,PE141087,3.52,0.00,Monthly Charges,Sewerage
Wyre Council,http://opendatacommunities.org/doc/district-council/wyre,30/05/2022,People and Places,Cultural and Related Services,132A,WATER PLUS LTD,16/05/2022,PE141086,80.22,0.00,Charges for changing rooms at King Georges,Sewerage
Wyre Council,http://opendatacommunities.org/doc/district-council/wyre,30/05/2022,People and Places,Cultural and Related Services,132A,WATER PLUS LTD,03/05/2022,PE141087,287.70,0.00,Monthly Charges,Sewerage
Wyre Council,http://opendatacommunities.org/doc/district-council/wyre,30/05/2022,People and Places,Planning and Development Servs,132C,WATER PLUS LTD,03/05/2022,PE141087,48.58,0.00,Monthly Charges,Sewerage
Wyre Council,http://opendatacommunities.org/doc/district-council/wyre,30/05/2022,People and Places,Planning and Development Servs,132C,WATER PLUS LTD,03/05/2022,PE141087,57.45,0.00,Monthly Charges,Sewerage
Wyre Council,http://opendatacommunities.org/doc/district-council/wyre,30/05/2022,People and Places,Cultural and Related Services,132A,WATER PLUS LTD,03/05/2022,PE141087,12.90,0.00,Monthly Charges,Sewerage
Wyre Council,http://opendatacommunities.org/doc/district-council/wyre,30/05/2022,People and Places,Cultural and Related Services,132A,WATER PLUS LTD,03/05/2022,PE141087,2.34,0.00,Monthly Charges,Sewerage
Wyre Council,http://opendatacommunities.org/doc/district-council/wyre,30/05/2022,People and Places,Central Services to the Public,131C,WATER PLUS LTD,03/05/2022,PE141087,51.42,0.00,Monthly Charges,Sewerage
Wyre Council,http://opendatacommunities.org/doc/district-council/wyre,30/05/2022,People and Places,Cultural and Related Services,132A,WATER PLUS LTD,03/05/2022,PE141087,107.50,0.00,Monthly Charges,Sewerage
Wyre Council,http://opendatacommunities.org/doc/district-council/wyre,30/05/2022,People and Places,Cultural and Related Services,132A,WATER PLUS LTD,03/05/2022,PE141087,107.45,0.00,Monthly Charges,Sewerage
Wyre Council,http://opendatacommunities.org/doc/district-council/wyre,30/05/2022,People and Places,Cultural and Related Services,132A,WATER PLUS LTD,03/05/2022,PE141087,51.74,0.00,Monthly Charges,Sewerage
Wyre Council,http://opendatacommunities.org/doc/district-council/wyre,30/05/2022,People and Places,Cultural and Related Services,132A,WATER PLUS LTD,03/05/2022,PE141087,840.12,0.00,Monthly Charges,Sewerage
Wyre Council,http://opendatacommunities.org/doc/district-council/wyre,30/05/2022,People and Places,Cultural and Related Services,132A,WATER PLUS LTD,03/05/2022,PE141087,142.36,0.00,Monthly Charges,Sewerage
Wyre Council,http://opendatacommunities.org/doc/district-council/wyre,30/05/2022,People and Places,Cultural and Related Services,132A,WATER PLUS LTD,03/05/2022,PE141087,182.86,0.00,Monthly Charges,Sewerage
Wyre Council,http://opendatacommunities.org/doc/district-council/wyre,30/05/2022,People and Places,Environmental Services,132B,WATER PLUS LTD,03/05/2022,PE141087,594.69,0.00,Monthly Charges,Sewerage
Wyre Council,http://opendatacommunities.org/doc/district-council/wyre,30/05/2022,People and Places,Cultural and Related Services,132A,WATER PLUS LTD,24/05/2022,PE141675,258.77,0.00,Water Waste Water Charges,Sewerage
Wyre Council,http://opendatacommunities.org/doc/district-council/wyre,30/05/2022,People and Places,Cultural and Related Services,132A,WATER PLUS LTD,24/05/2022,PE141675,2.34,0.00,Water Waste Water Charges,Sewerage
Wyre Council,http://opendatacommunities.org/doc/district-council/wyre,30/05/2022,People and Places,Planning and Development Servs,132C,WATER PLUS LTD,24/05/2022,PE141675,44.49,0.00,Water Waste Water Charges,Sewerage
Wyre Council,http://opendatacommunities.org/doc/district-council/wyre,30/05/2022,People and Places,Planning and Development Servs,132C,WATER PLUS LTD,24/05/2022,PE141675,53.59,0.00,Water Waste Water Charges,Sewerage
Wyre Council,http://opendatacommunities.org/doc/district-council/wyre,30/05/2022,Resources,Support Services,135B,Civica UK LTD,05/05/2022,RS140857,12341.88,0.00,"eXpress Annual Fee, Maintenance for ALDM, Annual Fee for signature verification For the period 01/04/2022 to 31/03/2023",Software Maintenance
Wyre Council,http://opendatacommunities.org/doc/district-council/wyre,30/05/2022,Resources,Support Services,135B,Civica UK LTD,30/05/2022,RS141070,13165.00,0.00,Invoice C/PY240740 CivicaPay implementation of V17.8 and WPS 1.5 WebPay Staff 1.5 Annual Fee Year 1,Software Maintenance
Wyre Council,http://opendatacommunities.org/doc/district-council/wyre,30/05/2022,Resources,Support Services,135B,Civica UK LTD,30/05/2022,RS141513,23126.00,0.00,Invoice C/PY240190 ICON CivicaPay Annual Subscription Year 1  1 July 2021 to 30 June 2022,Software Maintenance
Wyre Council,http://opendatacommunities.org/doc/district-council/wyre,30/05/2022,Resources,Support Services,135B,Phoenix Software LTD,05/05/2022,RS141331,758.08,0.00,Photoshop CC for teams. Team Licensing Subscription Renewal.,Software Maintenance
Wyre Council,http://opendatacommunities.org/doc/district-council/wyre,30/05/2022,Resources,Support Services,135B,Phoenix Software LTD,05/05/2022,RS141331,1702.00,0.00,Creative Cloud for Teams All Apps -Team Licensing Subscription Renewal.,Software Maintenance
Wyre Council,http://opendatacommunities.org/doc/district-council/wyre,30/05/2022,Resources,Support Services,135B,Phoenix Software LTD,05/05/2022,RS141331,3444.56,0.00,Acrobat Professional - DC for teams. Team Licensing Subscription Renewal.,Software Maintenance
Wyre Council,http://opendatacommunities.org/doc/district-council/wyre,30/05/2022,Resources,Support Services,135B,Phoenix Software LTD,05/05/2022,RS141331,369.04,0.00,Adobe Premiere Professional - CC for teams. Team Licensing Subscription Renewal.,Software Maintenance
Wyre Council,http://opendatacommunities.org/doc/district-council/wyre,30/05/2022,Resources,Support Services,135B,NEC Software Solutions UK Limited,03/05/2022,RS140903,15000.00,0.00,"Contract reference number:CAT: 4373 Supplier reference number: CRM: 113774  NEC Document Management software to be hosted in the Supplier cloud  Year One Charges NEC Document Management Software                    £21,250 on Contract Signature Impleme",Software Maintenance
Wyre Council,http://opendatacommunities.org/doc/district-council/wyre,30/05/2022,Resources,Support Services,135B,NEC Software Solutions UK Limited,03/05/2022,RS140687,21250.00,0.00,"Contract reference number:CAT: 4373 Supplier reference number: CRM: 113774  NEC Document Management software to be hosted in the Supplier cloud  Year One Charges NEC Document Management Software                    £21,250 on Contract Signature Impleme",Software Maintenance
Wyre Council,http://opendatacommunities.org/doc/district-council/wyre,30/05/2022,Resources,Support Services,135B,NEC Software Solutions UK Limited,17/05/2022,RS141579,13980.00,0.00,Citizen Access - Revenues (CA-R) 17.06.22 - 16.06.23,Software Maintenance
Wyre Council,http://opendatacommunities.org/doc/district-council/wyre,30/05/2022,Resources,Support Services,135B,NEC Software Solutions UK Limited,17/05/2022,RS141578,3060.00,0.00,Citizen Access - Integration (CA-I) 17.06.22 - 16.06.23,Software Maintenance
Wyre Council,http://opendatacommunities.org/doc/district-council/wyre,30/05/2022,Resources,Support Services,135B,NEC Software Solutions UK Limited,17/05/2022,RS141577,11057.74,0.00,"Wyre - Quote 135544SHBE                        £4,698.52SA/TA        BMI305_2022£4,614.13SA/TA CRsBMI305_2022£1,745.09",Software Maintenance
Wyre Council,http://opendatacommunities.org/doc/district-council/wyre,30/05/2022,Resources,Support Services,135B,NEC Software Solutions UK Limited,03/05/2022,RS140848,7000.00,0.00,"Contract reference number:CAT: 4373 Supplier reference number: CRM: 113774  NEC Document Management software to be hosted in the Supplier cloud  Year One Charges NEC Document Management Software                    £21,250 on Contract Signature Impleme",Software Maintenance
Wyre Council,http://opendatacommunities.org/doc/district-council/wyre,30/05/2022,Resources,Support Services,135B,NEC Software Solutions UK Limited,03/05/2022,RS141152,5500.00,0.00,SUPPLIER REFERENCE: DW / CRM 134253  Energy Payments Extract            £725.00 Energy Payments Processing    £5500.00,Software Maintenance
Wyre Council,http://opendatacommunities.org/doc/district-council/wyre,30/05/2022,Resources,Support Services,135B,NEC Software Solutions UK Limited,03/05/2022,RS141153,725.00,0.00,SUPPLIER REFERENCE: DW / CRM 134253  Energy Payments Extract            £725.00 Energy Payments Processing    £5500.00,Software Maintenance
Wyre Council,http://opendatacommunities.org/doc/district-council/wyre,30/05/2022,Resources,Support Services,135B,Patronbase (UK) Partners LTD,17/05/2022,RS141421,3402.56,0.00,Annual Software Support,Software Maintenance
Wyre Council,http://opendatacommunities.org/doc/district-council/wyre,30/05/2022,Resources,Support Services,135B,Patronbase (UK) Partners LTD,17/05/2022,RS141421,1515.38,0.00,Annual Software Maintenance,Software Maintenance
Wyre Council,http://opendatacommunities.org/doc/district-council/wyre,30/05/2022,Resources,Support Services,135B,Patronbase (UK) Partners LTD,17/05/2022,RS141421,1492.84,0.00,Annual Web Hosting,Software Maintenance
Wyre Council,http://opendatacommunities.org/doc/district-council/wyre,30/05/2022,Resources,Support Services,135B,Crown Computing LTD,18/05/2022,RS141583,975.00,0.00,Crown monthly fee April 22 to March 23,Software Maintenance
Wyre Council,http://opendatacommunities.org/doc/district-council/wyre,30/05/2022,Resources,Support Services,135B,Bytes Software Services Ltd,05/05/2022,RS141278,13338.99,0.00,Part Code - TLUMTenable Lumin Dates: 3/3/2022 to 3/2/2025Term: 36 MonthsAssets: 500Order Type: New,Software Maintenance
Wyre Council,http://opendatacommunities.org/doc/district-council/wyre,30/05/2022,Resources,Support Services,135B,Bytes Software Services Ltd,05/05/2022,RS141278,25679.35,0.00,Part Code - TIOVMCID #: 49162Tenable.io Vulnerability ManagementDates: 3/3/2022 to 3/2/2025Term: 36 MonthsAssets: 500Order Type: New,Software Maintenance
Wyre Council,http://opendatacommunities.org/doc/district-council/wyre,30/05/2022,Resources,Support Services,135B,Coolspirit LTD,18/05/2022,RS141666,1454.93,0.00,GUA-CASP-EXTENDED   GUARDiAN Support Subscription - Level: CASP-E,Software Maintenance
Wyre Council,http://opendatacommunities.org/doc/district-council/wyre,30/05/2022,Resources,Support Services,135B,Coolspirit LTD,26/05/2022,RS141711,2674.51,0.00,COM-CASP-EXTENDED  Commvault License Maintenance Subscription - Level: CASP-E  SN: F549F Start Date: 01-Jun-2022 End Date: 31-May-2023,Software Maintenance
Wyre Council,http://opendatacommunities.org/doc/district-council/wyre,30/05/2022,Resources,Support Services,135B,Coolspirit LTD,26/05/2022,RS141711,780.00,0.00,COMCH-HOST-STOR-D-1  COOLSPIRiT CX Compute Single Site Dense Storage (SATA)  Start Date: 01-Apr-2022 End Date: 31-Mar-2023,Software Maintenance
Wyre Council,http://opendatacommunities.org/doc/district-council/wyre,30/05/2022,Resources,Support Services,135B,Coolspirit LTD,26/05/2022,RS141711,876.00,0.00,COMCH-HOST-WAN-1M  COOLSPIRiT CX 1Mb/s (Megabit) Dedicated WAN Bandwidth Start Date: 01-Apr-2022 End Date: 31-Mar-2023,Software Maintenance
Wyre Council,http://opendatacommunities.org/doc/district-council/wyre,30/05/2022,Resources,Support Services,135B,Coolspirit LTD,26/05/2022,RS141711,1665.13,0.00,DELSUPPORT  Dell Support 1Yr ProSupport and 4hr Mission Critical  SN: FB6LYJ2 Start Date: 24-Apr-2022 End Date: 23-Apr-2023,Software Maintenance
Wyre Council,http://opendatacommunities.org/doc/district-council/wyre,30/05/2022,Resources,Support Services,135B,Coolspirit LTD,26/05/2022,RS141711,657.53,0.00,"NETCS-WARRANTY-EXTENSION  NetApp Warranty Extension Point-of-Sale SN: 721716500013 Start Date: 01-May-2022 End Date: 31-Dec-2022 Warranty Item: E2700A,8GB Cntl",Software Maintenance
Wyre Council,http://opendatacommunities.org/doc/district-council/wyre,30/05/2022,Resources,Support Services,135B,Coolspirit LTD,26/05/2022,RS141711,274.65,0.00,"NETCS-A2-NBR  NetApp SupportEdge Standard Part Replace NBD FAS2020 Post Warranty SN: 721716500013 Start Date: 01-May-2022 End Date: 31-Dec-2022 Warranty Item: E2700A,8GB Cntl",Software Maintenance
Wyre Council,http://opendatacommunities.org/doc/district-council/wyre,30/05/2022,People and Places,Support Services,135B,JADU CREATIVE LTD,16/05/2022,PE140764,800.00,0.00,Annual Support for Bin Lookup Page 12/05/22 to 11/05/23,Software Maintenance
Wyre Council,http://opendatacommunities.org/doc/district-council/wyre,30/05/2022,Resources,Support Services,135B,JADU CREATIVE LTD,05/05/2022,RS140030,3000.00,0.00,CXM Sandbox Subscription 12 months at £250 per month. 11/04/2022 to 10/04/2023,Software Maintenance
Wyre Council,http://opendatacommunities.org/doc/district-council/wyre,30/05/2022,Resources,Support Services,135B,Altair Engineering Ltd,17/05/2022,RS141376,3608.00,0.00,Altair Monarch Complete Citrix User Subscription- Lease,Software Maintenance
Wyre Council,http://opendatacommunities.org/doc/district-council/wyre,30/05/2022,People and Places,Cultural and Related Services,132A,Stardrivemusic,30/05/2022,PE141755,1500.00,0.00,For the hiring and subcontracting of Jubilee event infrastructure:  Greens - Portable Toilet Hire 2 x Disabled Portable toilets (this price includes waste removal on collection) @ £144.00 + vat each = £288.00 + vat 1 x Delivery and set up of the 2 disable,Special Events
Wyre Council,http://opendatacommunities.org/doc/district-council/wyre,30/05/2022,Resources,Corporate and Democratic Core,131A,The New Penny Grill,11/05/2022,RS141455,2053.75,0.00,Freedom of the Borough Parade - Monday 23 May 2022Buffet Menu 2 for 250 peopleIncluding Russian Cake; Lemon Drizzle Cake; Bakewell Slices & Fruit Cake,Special Events
Wyre Council,http://opendatacommunities.org/doc/district-council/wyre,30/05/2022,People and Places,Cultural and Related Services,132A,Hausfrau UK (Ltd),17/05/2022,PE141590,720.00,0.00,Delivery of 3 X arts sessions as part of Easter HAF 2022 project,Special Events
Wyre Council,http://opendatacommunities.org/doc/district-council/wyre,30/05/2022,People and Places,Cultural and Related Services,132A,GARRY CARR BUILDING SERVICES LTD,19/05/2022,PE141596,150.00,0.00,Test Sails at Marsh Mill,Special Events
Wyre Council,http://opendatacommunities.org/doc/district-council/wyre,30/05/2022,People and Places,Support Services,135B,Dr Tree Surgeons,17/05/2022,PE141588,550.00,0.00,Quotation 564Tree work at South Strand Fleetwood as per plan provided. Total Value: £550.00Vat(20%): £110.00Total Inc Vat: £660.0,Special Maintenance - Trees
Wyre Council,http://opendatacommunities.org/doc/district-council/wyre,30/05/2022,People and Places,Environmental Services,132B,St Gobain Building Distribution LTD,11/05/2022,PE141444,1519.90,0.00,"Supply and deliver to Poulton Cemetery on garstang road, Please contact  Shaun Hague on tel: 07837037724 before or upon arrival 161 no 3.6mtr 47x50 treated cut to make322 no 1.5mtr and 161 no 0.6mtr                   £1043.2841 no 2.4mtr 47x100",Special Works
Wyre Council,http://opendatacommunities.org/doc/district-council/wyre,30/05/2022,People and Places,Cultural and Related Services,132A,Playtop Ltd,18/05/2022,PE141634,23594.00,0.00,Carry out resurfacing of Splash Pad with EN1177 certified WetPour Rubber Surfacing in Teal and Sky Blue Colour. Similardesign as current but to include a feathered/blending splitbetween the 2 colours.245m² wet pour rubber to a total minimum depth,Special Works
Wyre Council,http://opendatacommunities.org/doc/district-council/wyre,30/05/2022,People and Places,Cultural and Related Services,132A,PETER HEARN ELECTRICAL LTD,17/05/2022,PE141527,80.00,0.00,ELECTRICAL REPAIRS/WORKSLABOUR,Special Works
Wyre Council,http://opendatacommunities.org/doc/district-council/wyre,30/05/2022,People and Places,Cultural and Related Services,132A,PETER HEARN ELECTRICAL LTD,17/05/2022,PE141527,228.50,0.00,MATERIALS,Special Works
Wyre Council,http://opendatacommunities.org/doc/district-council/wyre,30/05/2022,People and Places,Support Services,135B,Key Engineering & Hygiene Supplies LTD,19/05/2022,PE139342,218.04,0.00,"Supply and deliver Premium Disley Williams Pilot Men`s White Short-Sleeve Shirt, made from 155g/m² fabric (65% polyester, 35% cotton), £16.70 incl Wyre logo to front of the shirt, ex vat in the following sizes:-  4 x shirts in size 15½ "" neck 8 x  shirts",Stationery
Wyre Council,http://opendatacommunities.org/doc/district-council/wyre,30/05/2022,Resources,Support Services,135B,Bates Office Services Ltd,17/05/2022,RS141540,39.90,0.00,A2 LAMINATING POUCHES - 15c20041n,Stationery
Wyre Council,http://opendatacommunities.org/doc/district-council/wyre,30/05/2022,Resources,Support Services,135B,Bates Office Services Ltd,10/05/2022,RS141425,92.40,0.00,GUILDHALL HVY WGHT PCKT SPIRAL FILE BLUE,Stationery
Wyre Council,http://opendatacommunities.org/doc/district-council/wyre,30/05/2022,Resources,Support Services,135B,Bates Office Services Ltd,10/05/2022,RS141387,20.92,0.00,"1 x TSK/ZA Task Chair, Black with Arms (Neil Greenwood)1 x 103066 Fellowes Blue Ocean Mousepad (Neil Greenwood)2 x BB91712 Fellowes Standard Monitor Riser (Elizabeth Sansbury)1 x AC30281 Kensington USB Wired Mouse (Daine Banks)1 x MSF74164 Microso",Stationery
Wyre Council,http://opendatacommunities.org/doc/district-council/wyre,30/05/2022,Resources,Support Services,135B,Bates Office Services Ltd,11/05/2022,RS141442,262.50,0.00,A4 80GSM WHITEBOX COPIER PAPER,Stationery
Wyre Council,http://opendatacommunities.org/doc/district-council/wyre,30/05/2022,Resources,Support Services,135B,Bates Office Services Ltd,11/05/2022,RS141229,46.20,0.00,incorrect files - credit note received,Stationery
Wyre Council,http://opendatacommunities.org/doc/district-council/wyre,30/05/2022,Resources,Support Services,135B,Bates Office Services Ltd,11/05/2022,RS141428,46.20,0.00,1 x Pack of 25 Guildhall Heavy Weight Pocket Spiral File Yellow  £46.20 - Quote number SQ4449258 x ( 1 Pack of 10 ) ZT1255622P Company Seal Labels Red £19.95,Stationery
Wyre Council,http://opendatacommunities.org/doc/district-council/wyre,30/05/2022,Resources,Support Services,135B,Bates Office Services Ltd,11/05/2022,RS141229,19.85,0.00,1 x Pack of 25 Guildhall Heavy Weight Pocket Spiral File Yellow  £46.20 - Quote number SQ444925 8 x ( 1 Pack of 10 ) ZT1255622P Company Seal Labels Red £19.95,Stationery
Wyre Council,http://opendatacommunities.org/doc/district-council/wyre,30/05/2022,Resources,Support Services,135B,Bates Office Services Ltd,10/05/2022,RS141387,43.00,0.00,"1 x TSK/ZA Task Chair, Black with Arms (Neil Greenwood)1 x 103066 Fellowes Blue Ocean Mousepad (Neil Greenwood)2 x BB91712 Fellowes Standard Monitor Riser (Elizabeth Sansbury)1 x AC30281 Kensington USB Wired Mouse (Daine Banks)1 x MSF74164 Microso",Stationery
Wyre Council,http://opendatacommunities.org/doc/district-council/wyre,30/05/2022,People and Places,Support Services,135B,Bates Office Services Ltd,18/05/2022,PE141645,12.65,0.00,INITIATIVE LAMG POUCH A4 150 MIC PK100,Stationery
Wyre Council,http://opendatacommunities.org/doc/district-council/wyre,30/05/2022,People and Places,Support Services,135B,Bates Office Services Ltd,19/05/2022,PE141373,74.62,0.00,BI-SILQUE WHITEBOARD 900X600 BLACK FRAME,Stationery
Wyre Council,http://opendatacommunities.org/doc/district-council/wyre,30/05/2022,People and Places,Cultural and Related Services,132A,Bates Office Services Ltd,11/05/2022,PE141430,14.00,0.00,ARTWORK A3 WHITE COPIER PAPER REAM,Stationery
Wyre Council,http://opendatacommunities.org/doc/district-council/wyre,30/05/2022,People and Places,Cultural and Related Services,132A,Bates Office Services Ltd,11/05/2022,PE141430,5.06,0.00,INITIATIVE LAMG POUCH A4 150 MIC PK100,Stationery
Wyre Council,http://opendatacommunities.org/doc/district-council/wyre,30/05/2022,People and Places,Cultural and Related Services,132A,Bates Office Services Ltd,11/05/2022,PE141430,11.10,0.00,INITIATIVE LAMG POUCH A3 150 MICRON P100,Stationery
Wyre Council,http://opendatacommunities.org/doc/district-council/wyre,30/05/2022,People and Places,Support Services,135B,Bates Office Services Ltd,11/05/2022,PE141458,0.93,0.00,INITIATIVE STICKY TAC 70G,Stationery
Wyre Council,http://opendatacommunities.org/doc/district-council/wyre,30/05/2022,People and Places,Support Services,135B,Bates Office Services Ltd,11/05/2022,PE141458,9.06,0.00,VERBATIM AAA ALKALINE BATTERIES PK24,Stationery
Wyre Council,http://opendatacommunities.org/doc/district-council/wyre,30/05/2022,People and Places,Support Services,135B,Bates Office Services Ltd,11/05/2022,PE141458,12.80,0.00,Q CONNECT STAPLER PLASTIC FULL STRIP BLK,Stationery
Wyre Council,http://opendatacommunities.org/doc/district-council/wyre,30/05/2022,People and Places,Support Services,135B,Bates Office Services Ltd,11/05/2022,PE141458,0.75,0.00,INITIATIVE STAPLES 26/6 BOX 5000,Stationery
Wyre Council,http://opendatacommunities.org/doc/district-council/wyre,30/05/2022,People and Places,Support Services,135B,Bates Office Services Ltd,10/05/2022,PE141424,8.57,0.00,Q CONNECT REFILL PADS A4 FEINT 80 LEAF,Stationery
Wyre Council,http://opendatacommunities.org/doc/district-council/wyre,30/05/2022,People and Places,Support Services,135B,Bates Office Services Ltd,10/05/2022,PE141424,16.23,0.00,BIC CRISTAL BALLPOINT MEDIUM BLACK PK100,Stationery
Wyre Council,http://opendatacommunities.org/doc/district-council/wyre,30/05/2022,People and Places,Support Services,135B,Bates Office Services Ltd,10/05/2022,PE141424,6.32,0.00,COLOP 801 STAMP PAD INK 25ML BLUE 801BE,Stationery
Wyre Council,http://opendatacommunities.org/doc/district-council/wyre,30/05/2022,People and Places,Support Services,135B,Bates Office Services Ltd,10/05/2022,PE141424,48.18,0.00,LAMINATING POUCH A4 L/WT PK100 ECON,Stationery
Wyre Council,http://opendatacommunities.org/doc/district-council/wyre,30/05/2022,People and Places,Support Services,135B,Bates Office Services Ltd,10/05/2022,PE141424,30.88,0.00,LAMINATING POUCH A3 L/WT PK100,Stationery
Wyre Council,http://opendatacommunities.org/doc/district-council/wyre,30/05/2022,People and Places,Support Services,135B,Bates Office Services Ltd,10/05/2022,PE141424,10.51,0.00,GBC ECONOMY PVC CLEAR COVERS 41605E,Stationery
Wyre Council,http://opendatacommunities.org/doc/district-council/wyre,30/05/2022,People and Places,Support Services,135B,Bates Office Services Ltd,10/05/2022,PE141424,13.96,0.00,GBC SUPER CLEAR PVC COVERS 41606E,Stationery
Wyre Council,http://opendatacommunities.org/doc/district-council/wyre,30/05/2022,People and Places,Support Services,135B,Bates Office Services Ltd,10/05/2022,PE141424,12.28,0.00,Q-CONNECT NEON QUICK NOTE 76X76MM PK12,Stationery
Wyre Council,http://opendatacommunities.org/doc/district-council/wyre,30/05/2022,People and Places,Support Services,135B,Bates Office Services Ltd,10/05/2022,PE141424,8.61,0.00,Q CONNECT QUICK STICKY NOTE 76X76MM RBOW,Stationery
Wyre Council,http://opendatacommunities.org/doc/district-council/wyre,30/05/2022,People and Places,Support Services,135B,Bates Office Services Ltd,10/05/2022,PE141424,5.30,0.00,BIC CRISTAL MEDIUM RED,Stationery
Wyre Council,http://opendatacommunities.org/doc/district-council/wyre,30/05/2022,People and Places,Support Services,135B,Bates Office Services Ltd,10/05/2022,PE141424,4.27,0.00,LOCTITE SUPERGLUE BRUSHON 5G 577091,Stationery
Wyre Council,http://opendatacommunities.org/doc/district-council/wyre,30/05/2022,People and Places,Support Services,135B,Bates Office Services Ltd,10/05/2022,PE141424,21.71,0.00,GRAFFICO REC W/BD NTEBK 160P A4 P10,Stationery
Wyre Council,http://opendatacommunities.org/doc/district-council/wyre,30/05/2022,People and Places,Support Services,135B,Bates Office Services Ltd,10/05/2022,PE141424,19.84,0.00,SELLOTAPE BROWN PARCEL TAPE 48MMX50M,Stationery
Wyre Council,http://opendatacommunities.org/doc/district-council/wyre,30/05/2022,People and Places,Support Services,135B,Bates Office Services Ltd,10/05/2022,PE141424,3.53,0.00,QCONNECT MECHANICAL PENCIL BLK 0.5MM P10,Stationery
Wyre Council,http://opendatacommunities.org/doc/district-council/wyre,30/05/2022,People and Places,Support Services,135B,Bates Office Services Ltd,10/05/2022,PE141424,46.57,0.00,BANKERS STANDARD STORE BOX GRY,Stationery
Wyre Council,http://opendatacommunities.org/doc/district-council/wyre,30/05/2022,People and Places,Support Services,135B,Bates Office Services Ltd,10/05/2022,PE141424,17.54,0.00,REXEL A5 2 RING BINDER BLACK 13428BK,Stationery
Wyre Council,http://opendatacommunities.org/doc/district-council/wyre,30/05/2022,People and Places,Support Services,135B,Bates Office Services Ltd,10/05/2022,PE141424,21.28,0.00,ELBA LEVER ARCH FILE A3 OBL 70MM BLK,Stationery
Wyre Council,http://opendatacommunities.org/doc/district-council/wyre,30/05/2022,People and Places,Support Services,135B,Bates Office Services Ltd,11/05/2022,PE141459,12.69,0.00,GRAFFICO REC W/BD NTEBK 160P A5 P10,Stationery
Wyre Council,http://opendatacommunities.org/doc/district-council/wyre,30/05/2022,Resources,Support Services,135B,Amazon Business,05/05/2022,RS141344,26.67,0.00,1000 tamper proof bank bags,Stationery
Wyre Council,http://opendatacommunities.org/doc/district-council/wyre,30/05/2022,People and Places,Current Assets,130B,Standard Fuel Oils,18/05/2022,PE141637,50890.86,0.00,confirmation orderfor 35003 litres of white diesel@145.39ppl delivered 10/05/22 @ 09:30 . delivery to copse road depot,Stock - Copse Road Fuel
Wyre Council,http://opendatacommunities.org/doc/district-council/wyre,30/05/2022,Resources,Current Assets,130B,Whistl Uk Limited,31/05/2022,RS141778,10.21,0.00,Annual postage charges 01/04/2022 - 31/03/2022,Stores Purchases
Wyre Council,http://opendatacommunities.org/doc/district-council/wyre,30/05/2022,Resources,Current Assets,130B,Whistl Uk Limited,16/05/2022,RS141482,305.71,0.00,Annual postage charges 01/04/2022 - 31/03/2022,Stores Purchases
Wyre Council,http://opendatacommunities.org/doc/district-council/wyre,30/05/2022,Resources,Current Assets,130B,Whistl Uk Limited,10/05/2022,RS140986,247.67,0.00,Annual postage charges 01/04/2022 to 31/03/2022,Stores Purchases
Wyre Council,http://opendatacommunities.org/doc/district-council/wyre,30/05/2022,Resources,Current Assets,130B,Whistl Uk Limited,10/05/2022,RS141095,211.28,0.00,Annual postage charges 01/04/2022 - 31/03/2022,Stores Purchases
Wyre Council,http://opendatacommunities.org/doc/district-council/wyre,30/05/2022,Resources,Current Assets,130B,Whistl Uk Limited,10/05/2022,RS141281,218.43,0.00,Annual postage charges 01/04/2022 - 31/03/2022,Stores Purchases
Wyre Council,http://opendatacommunities.org/doc/district-council/wyre,30/05/2022,Resources,Current Assets,130B,Whistl Uk Limited,10/05/2022,RS141281,1.60,0.00,Annual postage charges 01/04/2022 - 31/03/2022,Stores Purchases
Wyre Council,http://opendatacommunities.org/doc/district-council/wyre,30/05/2022,Resources,Current Assets,130B,Whistl Uk Limited,11/05/2022,RS141414,395.75,0.00,Annual postage charges 01/04/2022 - 31/03/2022,Stores Purchases
Wyre Council,http://opendatacommunities.org/doc/district-council/wyre,30/05/2022,Resources,Current Assets,130B,Whistl Uk Limited,10/05/2022,RS140872,265.07,0.00,POSTAGE FOR 2021-2022,Stores Purchases
Wyre Council,http://opendatacommunities.org/doc/district-council/wyre,30/05/2022,Resources,Current Assets,130B,Whistl Uk Limited,10/05/2022,RS140646,369.95,0.00,Postage 2021/2022,Stores Purchases
Wyre Council,http://opendatacommunities.org/doc/district-council/wyre,30/05/2022,Resources,Current Assets,130B,Whistl Uk Limited,10/05/2022,RS140646,19.70,0.00,Postage 2021/2022,Stores Purchases
Wyre Council,http://opendatacommunities.org/doc/district-council/wyre,30/05/2022,People and Places,Environmental Services,132B,Lancaster Training Services LTD,30/05/2022,PE141767,50.00,0.00,LGV CATEGORY C DRIVING ASSESSMENT 20/5/2022STEVEN BIRCHENOUGH,Street Cleansing Projects
Wyre Council,http://opendatacommunities.org/doc/district-council/wyre,30/05/2022,People and Places,Cultural and Related Services,132A,WATER PLUS LTD,24/05/2022,PE141675,3.45,0.00,Water Waste Water Charges,Surface Water/Highway Drainage
Wyre Council,http://opendatacommunities.org/doc/district-council/wyre,30/05/2022,People and Places,Cultural and Related Services,132A,WATER PLUS LTD,24/05/2022,PE141679,44.75,0.00,Water Waste Water Charges,Surface Water/Highway Drainage
